{"text_format":"1","workbook":"xlsx","n_sheets":16,"sheets":["MENU","CARATULA","C. FILIACION","CODIGO Y FOTOGRAFIA ","ASIS. 1° B","VAL. 1° B","ASIS. 2° B","VAL. 2° B","ASIS. 3° B","VAL. 3° B","ASIS. 4° B","VAL. 4° B","CENTRALIZADOR","% REP-APR","CEN. POR AREA","BOLETINES "],"not_rendered":{"charts":9,"images":14,"macros":1,"external_links":1,"defined_names":63,"comments":5,"pivot_tables":0},"unopened":[],"bounds":{"document_bytes":16777216,"sheet_cells":100000,"rows_first":2000,"rows_last":500,"rows_between":2000,"halvings":0,"cell_chars":16384,"cell_head_chars":4096},"cells_cut":0,"cells_raw":0,"read":"whole","date_system":"1900"}

{"sheet":"MENU","index":0,"n_rows":0,"n_cols":0,"rows_kept":0,"cut":false,"hidden":false,"merged":[]}

{"sheet":"CARATULA","index":1,"n_rows":79,"n_cols":5,"rows_kept":79,"cut":false,"hidden":false,"merged":[[11,3,11,6],[39,3,39,6]]}
["con"]
[]
[]
[]
[]
[]
[]
[]
[]
[]
[]
[null,null,null,"DATOS REFERENCIALES "]
[]
[]
[]
[null,null,null,"DISTRITO EDUCATIVO ",":"]
[]
[null,null,null,"RED/NUCLEO EDUCATIVO",":"]
[]
[null,null,null,"UNIDAD EDUCATIVA ",":"]
[]
[null,null,null,"DIRECTOR/A",":"]
[]
[null,null,null,"MAESTRO/A",":"]
[]
[null,null,null,"NIVEL ",":"]
[]
[null,null,null,"AÑO DE ESCOLARIDAD ",":"]
[]
[null,null,null,"CAMPO ",":"]
[]
[null,null,null,"ÁREA ",":"]
[]
[null,null,null,"GESTIÓN ",":"]
[]
[]
[]
[]
[]
[]
[]
[]
[]
[]
[]
[]
[]
[]
[]
[null,null,"PRIMERO "]
[null,null,"SEGUNDO "]
[null,null,"TERCERO "]
[null,null,"CUARTO "]
[null,null,"QUINTO "]
[null,null,"SEXTO "]
[]
[null,null,null,"CIENCIA TECNOLOÍA Y PRODUCCIÓN "]
[null,null,null,"COMUNIDAD Y SOCIEDAD "]
[null,null,null,"VIDA TIERRA Y TERRITORIO "]
[null,null,null,"COSMOS Y PENSAMIENTO "]
[]
[]
[null,null,"COMUNICACIÓN Y LEGUAJES "]
[null,null,"LENGUA EXTRANJERA"]
[null,null,"CIENCIAS SOCIALES "]
[null,null,"EDUCACIÓN FÍSICA Y DEPORTES "]
[null,null,"EDUCACIÓN MUSICAL"]
[null,null,"ARTES PLÁSTICAS Y VISUALES "]
[null,null,"MATEMÁTICA"]
[null,null,"BIOLOGÍA - GEOGRAFÍA"]
[null,null,"FÍSICA - QUÍMICA "]
[null,null,"FILOSOFÍA - PSICOLOGÍA "]
[null,null,"VALORES, ESPIRITUALIDAD Y RELIGIÓN "]
[null,null,"BIOLOGÍA "]
[null,null,"GEOGRAFÍA "]
[null,null,"FÍSICA"]
[null,null,"QUÍMICA "]
[null,null,"FILOSOFÍA"]
[null,null,"PSICOLOGÍA "]

{"sheet":"C. FILIACION","index":2,"n_rows":100,"n_cols":18,"rows_kept":100,"cut":false,"hidden":false,"merged":[[60,4,60,7],[61,4,61,7],[1,1,2,16],[12,2,12,3],[12,5,12,7],[12,11,12,12],[4,4,4,8],[5,4,5,8],[7,4,7,8],[8,4,8,8],[10,4,10,8],[6,4,6,5],[4,15,4,16],[9,15,10,16]]}
[]
[null,"REGISTRO Y CUADRO DE FILIACIÓN "]
[]
[]
[null,null,"UNIDAD EDUCATIVA ",":",{"$f":"CARATULA!G20","v":0},null,null,null,null,null,"FECHA",{"$f":"TODAY()","v":"2018-05-07"},null,"TOTAL FEMENINO (F)","TOTAL MASCULINO (M)","DATOS DE REGISTRO"]
[null,null,"NIVEL ",":",{"$f":"CARATULA!G26","v":0},null,null,null,null,null,null,null,null,{"$f":"COUNTIF(E14:E58,\"F\")","v":0},{"$f":"COUNTIF(E14:E58,\"M\")","v":0},"INSCRITOS",{"$f":"COUNTIF(R14:R58,\"*\")","v":0}]
[null,null,"AÑO DE ESCOLARIDAD",":",{"$f":"CARATULA!G28","v":0},null,null,null,null,null,null,null,null,null,null,"RETIRO O ABANDONO",{"$f":"COUNTIF(R14:R58,\"RETIRO O ABANDONO\")","v":0}]
[null,null,"DIRECTOR/A",":",{"$f":"CARATULA!G22","v":0},null,null,null,null,null,null,null,null,null,null,"NO INCORPORADO",{"$f":"COUNTIF(R14:R58,\"NO INCORPORADO\")","v":0}]
[null,null,"MAESTRO/A",":",{"$f":"CARATULA!G24","v":0},null,null,null,null,null,null,null,null,null,null,"EFECTIVOS",{"$f":"Q6-(Q7+Q8)","v":0}]
[null,null,"CAMPO ",":",{"$f":"CARATULA!G30","v":0},null,null,null,null,null,null,null,null,null,null,"ES IMPORTANTE QUE REGISTRE EL ESTADO DEL ESTUDIANTE "]
[null,null,"ÁREA",":",{"$f":"CARATULA!G32","v":0}]
[]
[null,"N°","APELLIDOS Y NOMBRES ",null,"GENERO","FECHA NACIMIENTO",null,null,"EDAD","LUGAR DE NAC.","RUDE","CI ",null,"DIRECCIÓN ACTUAL","NOMBRE DE TUTOR ","PARENTESCO","TELF/CEL","REGISTRO"]
["A1",1,null,null,null,null,null,null,{"$f":"(YEAR(TODAY())-YEAR(DATE(H14,G14,F14)))","v":{"$error":"#NUM!"}}]
["A2",2,null,null,null,null,null,null,{"$f":"(YEAR(TODAY())-YEAR(DATE(H15,G15,F15)))","v":{"$error":"#NUM!"}}]
["A3",3,null,null,null,null,null,null,{"$f":"(YEAR(TODAY())-YEAR(DATE(H16,G16,F16)))","v":{"$error":"#NUM!"}}]
["A4",4,null,null,null,null,null,null,{"$error":"#NUM!"}]
["A5",5,null,null,null,null,null,null,{"$error":"#NUM!"}]
["A6",6,null,null,null,null,null,null,{"$error":"#NUM!"}]
["A7",7,null,null,null,null,null,null,{"$error":"#NUM!"}]
["A8",8,null,null,null,null,null,null,{"$error":"#NUM!"}]
["A9",9,null,null,null,null,null,null,{"$error":"#NUM!"}]
["A10",10,null,null,null,null,null,null,{"$error":"#NUM!"}]
["A11",11,null,null,null,null,null,null,{"$error":"#NUM!"}]
["A12",12,null,null,null,null,null,null,{"$error":"#NUM!"}]
["A13",13,null,null,null,null,null,null,{"$error":"#NUM!"}]
["A14",14,null,null,null,null,null,null,{"$error":"#NUM!"}]
["A15",15,null,null,null,null,null,null,{"$error":"#NUM!"}]
["A16",16,null,null,null,null,null,null,{"$error":"#NUM!"}]
["A17",17,null,null,null,null,null,null,{"$error":"#NUM!"}]
["A18",18,null,null,null,null,null,null,{"$error":"#NUM!"}]
["A19",19,null,null,null,null,null,null,{"$error":"#NUM!"}]
["A20",20,null,null,null,null,null,null,{"$error":"#NUM!"}]
["A21",21,null,null,null,null,null,null,{"$error":"#NUM!"}]
["A22",22,null,null,null,null,null,null,{"$error":"#NUM!"}]
["A23",23,null,null,null,null,null,null,{"$error":"#NUM!"}]
["A24",24,null,null,null,null,null,null,{"$error":"#NUM!"}]
["A25",25,null,null,null,null,null,null,{"$error":"#NUM!"}]
["A26",26,null,null,null,null,null,null,{"$error":"#NUM!"}]
["A27",27,null,null,null,null,null,null,{"$error":"#NUM!"}]
["A28",28,null,null,null,null,null,null,{"$error":"#NUM!"}]
["A29",29,null,null,null,null,null,null,{"$error":"#NUM!"}]
["A30",30,null,null,null,null,null,null,{"$error":"#NUM!"}]
["A31",31,null,null,null,null,null,null,{"$error":"#NUM!"}]
["A32",32,null,null,null,null,null,null,{"$error":"#NUM!"}]
["A33",33,null,null,null,null,null,null,{"$error":"#NUM!"}]
["A34",34,null,null,null,null,null,null,{"$error":"#NUM!"}]
["A35",35,null,null,null,null,null,null,{"$error":"#NUM!"}]
["A36",36,null,null,null,null,null,null,{"$error":"#NUM!"}]
["A37",37,null,null,null,null,null,null,{"$error":"#NUM!"}]
["A38",38,null,null,null,null,null,null,{"$error":"#NUM!"}]
["A39",39,null,null,null,null,null,null,{"$error":"#NUM!"}]
["A40",40,null,null,null,null,null,null,{"$error":"#NUM!"}]
["A41",41,null,null,null,null,null,null,{"$error":"#NUM!"}]
["A42",42,null,null,null,null,null,null,{"$error":"#NUM!"}]
["A43",43,null,null,null,null,null,null,{"$error":"#NUM!"}]
["A44",44,null,null,null,null,null,null,{"$error":"#NUM!"}]
["A45",45,null,null,null,null,null,null,{"$error":"#NUM!"}]
[]
[]
[]
[null,null,null,null,{"$f":"CARATULA!G22","v":0},null,null,null,null,{"$f":"CARATULA!G24","v":0}]
[]
["INSCRITO"]
["RETIRO O ABANDONO"]
["NO INCORPORADO"]
[null,"M"]
[null,"F"]
[]
[null,1,1997,null,"LP"]
[null,2,1998,null,"SC"]
[null,3,1999,null,"CB"]
[null,4,2000,null,"TR"]
[null,5,2001,null,"PT"]
[null,6,2002,null,"BN"]
[null,7,2003,null,"PN"]
[null,8,2004,null,"OR"]
[null,9,2005,null,"SCR"]
[null,10,2006]
[null,11,2007]
[null,12,2008]
[null,13,2009]
[null,14,2010]
[null,15,2011]
[null,16,2012]
[null,17,2013]
[null,18,2014]
[null,19,2015]
[null,20,2016]
[null,21,2017]
[null,22,2018]
[null,23]
[null,24]
[null,25]
[null,26]
[null,27]
[null,28]
[null,29]
[null,30]
[null,31]

{"sheet":"CODIGO Y FOTOGRAFIA ","index":3,"n_rows":47,"n_cols":5,"rows_kept":47,"cut":false,"hidden":false,"merged":[]}
[]
[null,"CÓDIGO ","NOMBRE ","FOTOGRAFÍA "]
[null,"A1",{"$f":"'C. FILIACION'!C14:D14","v":0},null,"IMAG1"]
[null,"A2",{"$f":"'C. FILIACION'!C15:D15","v":0},null,"IMAG2"]
[null,"A3",{"$f":"'C. FILIACION'!C16:D16","v":0},null,"IMAG3"]
[null,"A4",{"$f":"'C. FILIACION'!C17:D17","v":0},null,"IMAG4"]
[null,"A5",{"$f":"'C. FILIACION'!C18:D18","v":0},null,"IMAG5"]
[null,"A6",{"$f":"'C. FILIACION'!C19:D19","v":0},null,"IMAG6"]
[null,"A7",{"$f":"'C. FILIACION'!C20:D20","v":0},null,"IMAG7"]
[null,"A8",{"$f":"'C. FILIACION'!C21:D21","v":0},null,"IMAG8"]
[null,"A9",{"$f":"'C. FILIACION'!C22:D22","v":0},null,"IMAG9"]
[null,"A10",{"$f":"'C. FILIACION'!C23:D23","v":0},null,"IMAG10"]
[null,"A11",{"$f":"'C. FILIACION'!C24:D24","v":0},null,"IMAG11"]
[null,"A12",{"$f":"'C. FILIACION'!C25:D25","v":0},null,"IMAG12"]
[null,"A13",{"$f":"'C. FILIACION'!C26:D26","v":0},null,"IMAG13"]
[null,"A14",{"$f":"'C. FILIACION'!C27:D27","v":0},null,"IMAG14"]
[null,"A15",{"$f":"'C. FILIACION'!C28:D28","v":0},null,"IMAG15"]
[null,"A16",{"$f":"'C. FILIACION'!C29:D29","v":0},null,"IMAG16"]
[null,"A17",{"$f":"'C. FILIACION'!C30:D30","v":0},null,"IMAG17"]
[null,"A18",{"$f":"'C. FILIACION'!C31:D31","v":0},null,"IMAG18"]
[null,"A19",{"$f":"'C. FILIACION'!C32:D32","v":0},null,"IMAG19"]
[null,"A20",{"$f":"'C. FILIACION'!C33:D33","v":0},null,"IMAG20"]
[null,"A21",{"$f":"'C. FILIACION'!C34:D34","v":0},null,"IMAG21"]
[null,"A22",{"$f":"'C. FILIACION'!C35:D35","v":0},null,"IMAG22"]
[null,"A23",{"$f":"'C. FILIACION'!C36:D36","v":0},null,"IMAG23"]
[null,"A24",{"$f":"'C. FILIACION'!C37:D37","v":0},null,"IMAG24"]
[null,"A25",{"$f":"'C. FILIACION'!C38:D38","v":0},null,"IMAG25"]
[null,"A26",{"$f":"'C. FILIACION'!C39:D39","v":0},null,"IMAG26"]
[null,"A27",{"$f":"'C. FILIACION'!C40:D40","v":0},null,"IMAG27"]
[null,"A28",{"$f":"'C. FILIACION'!C41:D41","v":0},null,"IMAG28"]
[null,"A29",{"$f":"'C. FILIACION'!C42:D42","v":0},null,"IMAG29"]
[null,"A30",{"$f":"'C. FILIACION'!C43:D43","v":0},null,"IMAG30"]
[null,"A31",{"$f":"'C. FILIACION'!C44:D44","v":0},null,"IMAG31"]
[null,"A32",{"$f":"'C. FILIACION'!C45:D45","v":0},null,"IMAG32"]
[null,"A33",{"$f":"'C. FILIACION'!C46:D46","v":0},null,"IMAG33"]
[null,"A34",{"$f":"'C. FILIACION'!C47:D47","v":0},null,"IMAG34"]
[null,"A35",{"$f":"'C. FILIACION'!C48:D48","v":0},null,"IMAG35"]
[null,"A36",{"$f":"'C. FILIACION'!C49:D49","v":0},null,"IMAG36"]
[null,"A37",{"$f":"'C. FILIACION'!C50:D50","v":0},null,"IMAG37"]
[null,"A38",{"$f":"'C. FILIACION'!C51:D51","v":0},null,"IMAG38"]
[null,"A39",{"$f":"'C. FILIACION'!C52:D52","v":0},null,"IMAG39"]
[null,"A40",{"$f":"'C. FILIACION'!C53:D53","v":0},null,"IMAG40"]
[null,"A41",{"$f":"'C. FILIACION'!C54:D54","v":0},null,"IMAG41"]
[null,"A42",{"$f":"'C. FILIACION'!C55:D55","v":0},null,"IMAG42"]
[null,"A43",{"$f":"'C. FILIACION'!C56:D56","v":0},null,"IMAG43"]
[null,"A44",{"$f":"'C. FILIACION'!C57:D57","v":0},null,"IMAG44"]
[null,"A45",{"$f":"'C. FILIACION'!C58:D58","v":0},null,"IMAG45"]

{"sheet":"ASIS. 1° B","index":4,"n_rows":63,"n_cols":34,"rows_kept":63,"cut":false,"hidden":false,"merged":[[1,1,2,33],[5,4,5,13],[6,17,6,19],[7,4,7,19],[4,24,4,29],[6,24,6,29],[4,30,4,32],[6,30,6,32],[3,1,3,33],[8,4,8,19],[9,4,9,19],[12,1,13,1],[12,4,12,28],[12,29,12,32],[8,24,8,29],[8,30,8,32],[24,2,24,3],[12,33,13,33],[62,4,62,14],[62,20,62,29],[12,2,13,3],[14,2,14,3],[15,2,15,3],[16,2,16,3],[17,2,17,3],[18,2,18,3],[19,2,19,3],[20,2,20,3],[21,2,21,3],[22,2,22,3],[23,2,23,3],[36,2,36,3],[25,2,25,3],[26,2,26,3],[27,2,27,3],[28,2,28,3],[29,2,29,3],[30,2,30,3],[31,2,31,3],[32,2,32,3],[33,2,33,3],[34,2,34,3],[35,2,35,3],[45,2,45,3],[46,2,46,3],[47,2,47,3],[48,2,48,3],[37,2,37,3],[38,2,38,3],[39,2,39,3],[40,2,40,3],[41,2,41,3],[42,2,42,3],[55,2,55,3],[56,2,56,3],[57,2,57,3],[58,2,58,3],[4,4,4,22],[6,4,6,11],[6,13,6,14],[10,4,10,15],[49,2,49,3],[50,2,50,3],[51,2,51,3],[52,2,52,3],[53,2,53,3],[54,2,54,3],[43,2,43,3],[44,2,44,3]]}
[]
[null,"REGISTRO DE ASISTENCIA 1⁰ BIMESTRE "]
[]
[]
[null,null,"UNIDAD EDUCATIVA ",":",{"$f":"CARATULA!G20","v":0},null,null,null,null,null,null,null,null,null,null,null,null,null,null,null,null,null,null,null,"INICIO DE BIMESTRE ",null,null,null,null,null,"2018-02-05"]
[null,null,"NIVEL ",":",{"$f":"CARATULA!G26","v":0}]
[null,null,"AÑO DE ESCOLARIDAD",":",{"$f":"CARATULA!G28","v":0},null,null,null,null,null,null,null,null,null,null,null,null,null,null,null,null,null,null,null,"FIN DE BIMESTRE ",null,null,null,null,null,"2018-04-20"]
[null,null,"DIRECTOR/A",":",{"$f":"CARATULA!G22","v":0}]
[null,null,"MAESTRO/A",":",{"$f":"CARATULA!G24","v":0},null,null,null,null,null,null,null,null,null,null,null,null,null,null,null,null,null,null,null,"FECHA ACTUAL",null,null,null,null,null,{"$f":"TODAY()","v":"2018-05-07"}]
[null,null,"CAMPO ",":",{"$f":"CARATULA!G30","v":0}]
[null,null,"ÁREA",":",{"$f":"CARATULA!G32","v":0}]
[]
[null,"N","APELLIDOS Y NOMBRES ",null," 1ER BIMESTRE",null,null,null,null,null,null,null,null,null,null,null,null,null,null,null,null,null,null,null,null,null,null,null,null,"TOTALES ",null,null,null," DÍAS TRABAJADOS "]
[null,null,null,null,null,null,null,null,null,null,null,null,null,null,null,null,null,null,null,null,null,null,null,null,null,null,null,null,null,"ASISTENCIAS (A)","FALTAS (F)","RETRASOS (R)","LICENCIAS (L)"]
[null,1,{"$f":"'C. FILIACION'!C14","v":0},null,null,null,null,null,null,null,null,null,null,null,null,null,null,null,null,null,null,null,null,null,null,null,null,null,null,{"$f":"IF(COUNTIF(E15:AC15,\"A\")=0,\"\",COUNTIF(E15:AC15,\"A\"))","v":""},{"$f":"IF(COUNTIF(E15:AC15,\"F\")=0,\"\",COUNTIF(E15:AC15,\"F\"))","v":""},{"$f":"IF(COUNTIF(E15:AC15,\"R\")=0,\"\",COUNTIF(E15:AC15,\"R\"))","v":""},{"$f":"IF(COUNTIF(E15:AC15,\"L\")=0,\"\",COUNTIF(E15:AC15,\"L\"))","v":""},{"$f":"IF((IF(AD15=\"\",0,AD15)+IF(AF15=\"\",0,AF15))=0,\"\",(IF(AD15=\"\",0,AD15)+IF(AF15=\"\",0,AF15)))","v":""}]
[null,2,{"$f":"'C. FILIACION'!C15","v":0},null,null,null,null,null,null,null,null,null,null,null,null,null,null,null,null,null,null,null,null,null,null,null,null,null,null,{"$f":"IF(COUNTIF(E16:AC16,\"A\")=0,\"\",COUNTIF(E16:AC16,\"A\"))","v":""},{"$f":"IF(COUNTIF(E16:AC16,\"F\")=0,\"\",COUNTIF(E16:AC16,\"F\"))","v":""},{"$f":"IF(COUNTIF(E16:AC16,\"R\")=0,\"\",COUNTIF(E16:AC16,\"R\"))","v":""},{"$f":"IF(COUNTIF(E16:AC16,\"L\")=0,\"\",COUNTIF(E16:AC16,\"L\"))","v":""},{"$f":"IF((IF(AD16=\"\",0,AD16)+IF(AF16=\"\",0,AF16))=0,\"\",(IF(AD16=\"\",0,AD16)+IF(AF16=\"\",0,AF16)))","v":""}]
[null,3,{"$f":"'C. FILIACION'!C16","v":0},null,null,null,null,null,null,null,null,null,null,null,null,null,null,null,null,null,null,null,null,null,null,null,null,null,null,"","","","",""]
[null,4,{"$f":"'C. FILIACION'!C17","v":0},null,null,null,null,null,null,null,null,null,null,null,null,null,null,null,null,null,null,null,null,null,null,null,null,null,null,"","","","",""]
[null,5,{"$f":"'C. FILIACION'!C18","v":0},null,null,null,null,null,null,null,null,null,null,null,null,null,null,null,null,null,null,null,null,null,null,null,null,null,null,"","","","",""]
[null,6,{"$f":"'C. FILIACION'!C19","v":0},null,null,null,null,null,null,null,null,null,null,null,null,null,null,null,null,null,null,null,null,null,null,null,null,null,null,"","","","",""]
[null,7,{"$f":"'C. FILIACION'!C20","v":0},null,null,null,null,null,null,null,null,null,null,null,null,null,null,null,null,null,null,null,null,null,null,null,null,null,null,"","","","",""]
[null,8,{"$f":"'C. FILIACION'!C21","v":0},null,null,null,null,null,null,null,null,null,null,null,null,null,null,null,null,null,null,null,null,null,null,null,null,null,null,"","","","",""]
[null,9,{"$f":"'C. FILIACION'!C22","v":0},null,null,null,null,null,null,null,null,null,null,null,null,null,null,null,null,null,null,null,null,null,null,null,null,null,null,"","","","",""]
[null,10,{"$f":"'C. FILIACION'!C23","v":0},null,null,null,null,null,null,null,null,null,null,null,null,null,null,null,null,null,null,null,null,null,null,null,null,null,null,"","","","",""]
[null,11,{"$f":"'C. FILIACION'!C24","v":0},null,null,null,null,null,null,null,null,null,null,null,null,null,null,null,null,null,null,null,null,null,null,null,null,null,null,"","","","",""]
[null,12,{"$f":"'C. FILIACION'!C25","v":0},null,null,null,null,null,null,null,null,null,null,null,null,null,null,null,null,null,null,null,null,null,null,null,null,null,null,"","","","",""]
[null,13,{"$f":"'C. FILIACION'!C26","v":0},null,null,null,null,null,null,null,null,null,null,null,null,null,null,null,null,null,null,null,null,null,null,null,null,null,null,"","","","",""]
[null,14,{"$f":"'C. FILIACION'!C27","v":0},null,null,null,null,null,null,null,null,null,null,null,null,null,null,null,null,null,null,null,null,null,null,null,null,null,null,"","","","",""]
[null,15,{"$f":"'C. FILIACION'!C28","v":0},null,null,null,null,null,null,null,null,null,null,null,null,null,null,null,null,null,null,null,null,null,null,null,null,null,null,"","","","",""]
[null,16,{"$f":"'C. FILIACION'!C29","v":0},null,null,null,null,null,null,null,null,null,null,null,null,null,null,null,null,null,null,null,null,null,null,null,null,null,null,"","","","",""]
[null,17,{"$f":"'C. FILIACION'!C30","v":0},null,null,null,null,null,null,null,null,null,null,null,null,null,null,null,null,null,null,null,null,null,null,null,null,null,null,"","","","",""]
[null,18,{"$f":"'C. FILIACION'!C31","v":0},null,null,null,null,null,null,null,null,null,null,null,null,null,null,null,null,null,null,null,null,null,null,null,null,null,null,"","","","",""]
[null,19,{"$f":"'C. FILIACION'!C32","v":0},null,null,null,null,null,null,null,null,null,null,null,null,null,null,null,null,null,null,null,null,null,null,null,null,null,null,"","","","",""]
[null,20,{"$f":"'C. FILIACION'!C33","v":0},null,null,null,null,null,null,null,null,null,null,null,null,null,null,null,null,null,null,null,null,null,null,null,null,null,null,"","","","",""]
[null,21,{"$f":"'C. FILIACION'!C34","v":0},null,null,null,null,null,null,null,null,null,null,null,null,null,null,null,null,null,null,null,null,null,null,null,null,null,null,"","","","",""]
[null,22,{"$f":"'C. FILIACION'!C35","v":0},null,null,null,null,null,null,null,null,null,null,null,null,null,null,null,null,null,null,null,null,null,null,null,null,null,null,"","","","",""]
[null,23,{"$f":"'C. FILIACION'!C36","v":0},null,null,null,null,null,null,null,null,null,null,null,null,null,null,null,null,null,null,null,null,null,null,null,null,null,null,"","","","",""]
[null,24,{"$f":"'C. FILIACION'!C37","v":0},null,null,null,null,null,null,null,null,null,null,null,null,null,null,null,null,null,null,null,null,null,null,null,null,null,null,"","","","",""]
[null,25,{"$f":"'C. FILIACION'!C38","v":0},null,null,null,null,null,null,null,null,null,null,null,null,null,null,null,null,null,null,null,null,null,null,null,null,null,null,"","","","",""]
[null,26,{"$f":"'C. FILIACION'!C39","v":0},null,null,null,null,null,null,null,null,null,null,null,null,null,null,null,null,null,null,null,null,null,null,null,null,null,null,"","","","",""]
[null,27,{"$f":"'C. FILIACION'!C40","v":0},null,null,null,null,null,null,null,null,null,null,null,null,null,null,null,null,null,null,null,null,null,null,null,null,null,null,"","","","",""]
[null,28,{"$f":"'C. FILIACION'!C41","v":0},null,null,null,null,null,null,null,null,null,null,null,null,null,null,null,null,null,null,null,null,null,null,null,null,null,null,"","","","",""]
[null,29,{"$f":"'C. FILIACION'!C42","v":0},null,null,null,null,null,null,null,null,null,null,null,null,null,null,null,null,null,null,null,null,null,null,null,null,null,null,"","","","",""]
[null,30,{"$f":"'C. FILIACION'!C43","v":0},null,null,null,null,null,null,null,null,null,null,null,null,null,null,null,null,null,null,null,null,null,null,null,null,null,null,"","","","",""]
[null,31,{"$f":"'C. FILIACION'!C44","v":0},null,null,null,null,null,null,null,null,null,null,null,null,null,null,null,null,null,null,null,null,null,null,null,null,null,null,"","","","",""]
[null,32,{"$f":"'C. FILIACION'!C45","v":0},null,null,null,null,null,null,null,null,null,null,null,null,null,null,null,null,null,null,null,null,null,null,null,null,null,null,"","","","",""]
[null,33,{"$f":"'C. FILIACION'!C46","v":0},null,null,null,null,null,null,null,null,null,null,null,null,null,null,null,null,null,null,null,null,null,null,null,null,null,null,"","","","",""]
[null,34,{"$f":"'C. FILIACION'!C47","v":0},null,null,null,null,null,null,null,null,null,null,null,null,null,null,null,null,null,null,null,null,null,null,null,null,null,null,"","","","",""]
[null,35,{"$f":"'C. FILIACION'!C48","v":0},null,null,null,null,null,null,null,null,null,null,null,null,null,null,null,null,null,null,null,null,null,null,null,null,null,null,"","","","",""]
[null,36,{"$f":"'C. FILIACION'!C49","v":0},null,null,null,null,null,null,null,null,null,null,null,null,null,null,null,null,null,null,null,null,null,null,null,null,null,null,"","","","",""]
[null,37,{"$f":"'C. FILIACION'!C50","v":0},null,null,null,null,null,null,null,null,null,null,null,null,null,null,null,null,null,null,null,null,null,null,null,null,null,null,"","","","",""]
[null,38,{"$f":"'C. FILIACION'!C51","v":0},null,null,null,null,null,null,null,null,null,null,null,null,null,null,null,null,null,null,null,null,null,null,null,null,null,null,"","","","",""]
[null,39,{"$f":"'C. FILIACION'!C52","v":0},null,null,null,null,null,null,null,null,null,null,null,null,null,null,null,null,null,null,null,null,null,null,null,null,null,null,"","","","",""]
[null,40,{"$f":"'C. FILIACION'!C53","v":0},null,null,null,null,null,null,null,null,null,null,null,null,null,null,null,null,null,null,null,null,null,null,null,null,null,null,"","","","",""]
[null,41,{"$f":"'C. FILIACION'!C54","v":0},null,null,null,null,null,null,null,null,null,null,null,null,null,null,null,null,null,null,null,null,null,null,null,null,null,null,"","","","",""]
[null,42,{"$f":"'C. FILIACION'!C55","v":0},null,null,null,null,null,null,null,null,null,null,null,null,null,null,null,null,null,null,null,null,null,null,null,null,null,null,"","","","",""]
[null,43,{"$f":"'C. FILIACION'!C56","v":0},null,null,null,null,null,null,null,null,null,null,null,null,null,null,null,null,null,null,null,null,null,null,null,null,null,null,"","","","",""]
[null,44,{"$f":"'C. FILIACION'!C57","v":0},null,null,null,null,null,null,null,null,null,null,null,null,null,null,null,null,null,null,null,null,null,null,null,null,null,null,"","","","",""]
[null,45,{"$f":"'C. FILIACION'!C58","v":0},null,null,null,null,null,null,null,null,null,null,null,null,null,null,null,null,null,null,null,null,null,null,null,null,null,null,"","","","",""]
[]
[]
[]
[null,null,null,null,{"$f":"CARATULA!G22","v":0},null,null,null,null,null,null,null,null,null,null,null,null,null,null,null,{"$f":"CARATULA!G24","v":0}]

{"sheet":"VAL. 1° B","index":5,"n_rows":68,"n_cols":52,"rows_kept":68,"cut":false,"hidden":false,"merged":[[66,8,66,19],[66,30,66,42],[67,8,67,19],[67,30,67,42],[16,4,16,8],[16,10,16,14],[16,36,16,40],[16,42,16,46],[16,9,17,9],[16,25,17,25],[16,41,17,41],[13,51,17,51],[13,1,16,2],[13,48,13,49],[14,48,14,49],[16,48,17,48],[16,49,17,49],[16,20,16,24],[16,31,16,35],[16,15,16,19],[16,26,16,30],[15,10,15,25],[15,26,15,41],[16,47,17,47],[15,42,15,47],[13,50,17,50],[7,21,7,28],[9,21,9,27],[2,1,3,51],[5,5,5,18],[6,5,6,18],[7,5,7,18],[8,5,8,18],[5,29,5,33],[7,29,7,33],[5,50,6,51],[7,50,11,51],[64,48,64,49],[9,29,9,33],[65,48,65,49],[5,35,5,41],[7,35,7,41],[5,42,5,43],[7,42,7,43],[6,35,6,41],[6,42,6,43],[13,3,13,47],[14,3,14,47],[15,3,15,9],[5,44,11,49],[9,5,9,18],[10,5,10,18],[11,5,11,18]]}
[]
[]
[null,"REGISTRO DE VALORACION 1⁰ BIMESTRE"]
[]
[]
[null,null,"UNIDAD EDUCATIVA ",":",null,{"$f":"CARATULA!G20","v":0},null,null,null,null,null,null,null,null,null,null,null,null,null,null,null,"INICIO DE BIMESTRE ",null,null,null,null,null,null,null,"2018-02-05",null,null,null,null,null,null,null,null,null,null,null,null,null,null,null,null,null,null,null,null,"DÍAS RESTANTES PARA FIN DE BIMESTRE "]
[null,null,"NIVEL ",":",null,{"$f":"CARATULA!G26","v":0},null,null,null,null,null,null,null,null,null,null,null,null,null,null,null,null,null,null,null,null,null,null,null,null,null,null,null,null,null,"N° TOTAL APROBADOS",null,null,null,null,null,null,{"$f":"COUNTIF(AY19:AY63,\">=51\")","v":0}]
[null,null,"AÑO DE ESCOLARIDAD",":",null,{"$f":"CARATULA!G28","v":0},null,null,null,null,null,null,null,null,null,null,null,null,null,null,null,"FIN DE BIMESTRE ",null,null,null,null,null,null,null,"2018-04-20",null,null,null,null,null,"N° TOTAL REPROBADOS",null,null,null,null,null,null,{"$f":"COUNTIFS(AY19:AY63,\">=1\",AY19:AY63,\"<=50\")","v":0},null,null,null,null,null,null,null,{"$f":"AD8-AD10","v":-17}]
[null,null,"DIRECTOR/A",":",null,{"$f":"CARATULA!G22","v":0}]
[null,null,"MAESTRO/A",":",null,{"$f":"CARATULA!G24","v":0},null,null,null,null,null,null,null,null,null,null,null,null,null,null,null,"FECHA ACTUAL",null,null,null,null,null,null,null,{"$f":"TODAY()","v":"2018-05-07"}]
[{"$f":"COUNTIF(AY19:AY63,¨>=50)","v":0},null,"CAMPO ",":",null,{"$f":"CARATULA!G30","v":0}]
[null,null,"ÁREA",":",null,{"$f":"CARATULA!G32","v":0}]
[]
[null,null,null,"EVALUACIÓN MAESTRA(O)",null,null,null,null,null,null,null,null,null,null,null,null,null,null,null,null,null,null,null,null,null,null,null,null,null,null,null,null,null,null,null,null,null,null,null,null,null,null,null,null,null,null,null,null,"AUTO EVALUACIÓN ESTUDIANTE ",null," TOTAL BIMESTRAL","SITUACIÓN BIMESTRAL"]
[null,null,null,"DIMENSIONES ",null,null,null,null,null,null,null,null,null,null,null,null,null,null,null,null,null,null,null,null,null,null,null,null,null,null,null,null,null,null,null,null,null,null,null,null,null,null,null,null,null,null,null,null,"DIMENSIONES "]
[null,null,null,"SER -10",null,null,null,null,null,null,"SABER - 35",null,null,null,null,null,null,null,null,null,null,null,null,null,null,null,"HACER - 35",null,null,null,null,null,null,null,null,null,null,null,null,null,null,null,"DECIDIR - 10 ",null,null,null,null,null,"SER - 5","DECIDIR - 5"]
[null,null,null,"CRITERIOS DE EVALUACIÓN  ",null,null,null,null,null,"VALORACIÓN 10 PUN.",null,null,null,null,null,null,null,null,null,null,null,null,null,null,null,"VALORACIÓN 35 PUN.",null,null,null,null,null,null,null,null,null,null,null,null,null,null,null,"VALORACIÓN 35 PUN.",null,null,null,null,null,"VALORACIÓN 10 PUN."]
[null,"N ","NOMBRES Y APELLIDOS ","ACTIVIDADES"]
[null,1,{"$f":"'C. FILIACION'!C14","v":0},null,null,null,null,null,null,{"$f":"(IFERROR((SUM(E19:I19)/(COUNT(E19:I19))),0))","v":0},null,null,null,null,null,null,null,null,null,null,null,null,null,null,null,{"$f":"IFERROR(((SUM(K19:Y19))/(COUNT(K19:Y19))),0)","v":0},null,null,null,null,null,null,null,null,null,null,null,null,null,null,null,{"$f":"IFERROR(((SUM(AA19:AO19))/(COUNT(AA19:AO19))),0)","v":0},null,null,null,null,null,{"$f":"IFERROR(((SUM(AQ19:AU19))/(COUNT(AQ19:AU19))),0)","v":0},null,null,{"$f":"ROUND((SUM(J19,Z19,AP19,AV19,AW19,AX19)),0)","v":0},{"$f":"IF(AY19=0,\" \",IF(AY19>=51,\"APROBADO\",\"REPROBADO\"))","v":" "}]
[null,2,{"$f":"'C. FILIACION'!C15","v":0},null,null,null,null,null,null,{"$f":"IFERROR((SUM(E20:I20)/(COUNT(E20:I20))),0)","v":0},null,null,null,null,null,null,null,null,null,null,null,null,null,null,null,0,null,null,null,null,null,null,null,null,null,null,null,null,null,null,null,0,null,null,null,null,null,0,null,null,{"$f":"ROUND((SUM(J20,Z20,AP20,AV20,AW20,AX20)),0)","v":0},{"$f":"IF(AY20=0,\" \",IF(AY20>=51,\"APROBADO\",\"REPROBADO\"))","v":" "}]
[null,3,{"$f":"'C. FILIACION'!C16","v":0},null,null,null,null,null,null,0,null,null,null,null,null,null,null,null,null,null,null,null,null,null,null,0,null,null,null,null,null,null,null,null,null,null,null,null,null,null,null,0,null,null,null,null,null,0,null,null,0," "]
[null,4,{"$f":"'C. FILIACION'!C17","v":0},null,null,null,null,null,null,{"$f":"IFERROR((SUM(E22:I22)/(COUNT(E22:I22))),0)","v":0},null,null,null,null,null,null,null,null,null,null,null,null,null,null,null,0,null,null,null,null,null,null,null,null,null,null,null,null,null,null,null,0,null,null,null,null,null,0,null,null,0," "]
[null,5,{"$f":"'C. FILIACION'!C18","v":0},null,null,null,null,null,null,0,null,null,null,null,null,null,null,null,null,null,null,null,null,null,null,0,null,null,null,null,null,null,null,null,null,null,null,null,null,null,null,0,null,null,null,null,null,0,null,null,0," "]
[null,6,{"$f":"'C. FILIACION'!C19","v":0},null,null,null,null,null,null,0,null,null,null,null,null,null,null,null,null,null,null,null,null,null,null,0,null,null,null,null,null,null,null,null,null,null,null,null,null,null,null,0,null,null,null,null,null,0,null,null,0," "]
[null,7,{"$f":"'C. FILIACION'!C20","v":0},null,null,null,null,null,null,0,null,null,null,null,null,null,null,null,null,null,null,null,null,null,null,0,null,null,null,null,null,null,null,null,null,null,null,null,null,null,null,0,null,null,null,null,null,0,null,null,0," "]
[null,8,{"$f":"'C. FILIACION'!C21","v":0},null,null,null,null,null,null,0,null,null,null,null,null,null,null,null,null,null,null,null,null,null,null,0,null,null,null,null,null,null,null,null,null,null,null,null,null,null,null,0,null,null,null,null,null,0,null,null,0," "]
[null,9,{"$f":"'C. FILIACION'!C22","v":0},null,null,null,null,null,null,0,null,null,null,null,null,null,null,null,null,null,null,null,null,null,null,0,null,null,null,null,null,null,null,null,null,null,null,null,null,null,null,0,null,null,null,null,null,0,null,null,0," "]
[null,10,{"$f":"'C. FILIACION'!C23","v":0},null,null,null,null,null,null,0,null,null,null,null,null,null,null,null,null,null,null,null,null,null,null,0,null,null,null,null,null,null,null,null,null,null,null,null,null,null,null,0,null,null,null,null,null,0,null,null,0," "]
[null,11,{"$f":"'C. FILIACION'!C24","v":0},null,null,null,null,null,null,0,null,null,null,null,null,null,null,null,null,null,null,null,null,null,null,0,null,null,null,null,null,null,null,null,null,null,null,null,null,null,null,0,null,null,null,null,null,0,null,null,0," "]
[null,12,{"$f":"'C. FILIACION'!C25","v":0},null,null,null,null,null,null,0,null,null,null,null,null,null,null,null,null,null,null,null,null,null,null,0,null,null,null,null,null,null,null,null,null,null,null,null,null,null,null,0,null,null,null,null,null,0,null,null,0," "]
[null,13,{"$f":"'C. FILIACION'!C26","v":0},null,null,null,null,null,null,0,null,null,null,null,null,null,null,null,null,null,null,null,null,null,null,0,null,null,null,null,null,null,null,null,null,null,null,null,null,null,null,0,null,null,null,null,null,0,null,null,0," "]
[null,14,{"$f":"'C. FILIACION'!C27","v":0},null,null,null,null,null,null,0,null,null,null,null,null,null,null,null,null,null,null,null,null,null,null,0,null,null,null,null,null,null,null,null,null,null,null,null,null,null,null,0,null,null,null,null,null,0,null,null,0," "]
[null,15,{"$f":"'C. FILIACION'!C28","v":0},null,null,null,null,null,null,0,null,null,null,null,null,null,null,null,null,null,null,null,null,null,null,0,null,null,null,null,null,null,null,null,null,null,null,null,null,null,null,0,null,null,null,null,null,0,null,null,0," "]
[null,16,{"$f":"'C. FILIACION'!C29","v":0},null,null,null,null,null,null,0,null,null,null,null,null,null,null,null,null,null,null,null,null,null,null,0,null,null,null,null,null,null,null,null,null,null,null,null,null,null,null,0,null,null,null,null,null,0,null,null,0," "]
[null,17,{"$f":"'C. FILIACION'!C30","v":0},null,null,null,null,null,null,0,null,null,null,null,null,null,null,null,null,null,null,null,null,null,null,0,null,null,null,null,null,null,null,null,null,null,null,null,null,null,null,0,null,null,null,null,null,0,null,null,0," "]
[null,18,{"$f":"'C. FILIACION'!C31","v":0},null,null,null,null,null,null,0,null,null,null,null,null,null,null,null,null,null,null,null,null,null,null,0,null,null,null,null,null,null,null,null,null,null,null,null,null,null,null,0,null,null,null,null,null,0,null,null,0," "]
[null,19,{"$f":"'C. FILIACION'!C32","v":0},null,null,null,null,null,null,0,null,null,null,null,null,null,null,null,null,null,null,null,null,null,null,0,null,null,null,null,null,null,null,null,null,null,null,null,null,null,null,0,null,null,null,null,null,0,null,null,0," "]
[null,20,{"$f":"'C. FILIACION'!C33","v":0},null,null,null,null,null,null,0,null,null,null,null,null,null,null,null,null,null,null,null,null,null,null,0,null,null,null,null,null,null,null,null,null,null,null,null,null,null,null,0,null,null,null,null,null,0,null,null,0," "]
[null,21,{"$f":"'C. FILIACION'!C34","v":0},null,null,null,null,null,null,0,null,null,null,null,null,null,null,null,null,null,null,null,null,null,null,0,null,null,null,null,null,null,null,null,null,null,null,null,null,null,null,0,null,null,null,null,null,0,null,null,0," "]
[null,22,{"$f":"'C. FILIACION'!C35","v":0},null,null,null,null,null,null,0,null,null,null,null,null,null,null,null,null,null,null,null,null,null,null,0,null,null,null,null,null,null,null,null,null,null,null,null,null,null,null,0,null,null,null,null,null,0,null,null,0," "]
[null,23,{"$f":"'C. FILIACION'!C36","v":0},null,null,null,null,null,null,0,null,null,null,null,null,null,null,null,null,null,null,null,null,null,null,0,null,null,null,null,null,null,null,null,null,null,null,null,null,null,null,0,null,null,null,null,null,0,null,null,0," "]
[null,24,{"$f":"'C. FILIACION'!C37","v":0},null,null,null,null,null,null,0,null,null,null,null,null,null,null,null,null,null,null,null,null,null,null,0,null,null,null,null,null,null,null,null,null,null,null,null,null,null,null,0,null,null,null,null,null,0,null,null,0," "]
[null,25,{"$f":"'C. FILIACION'!C38","v":0},null,null,null,null,null,null,0,null,null,null,null,null,null,null,null,null,null,null,null,null,null,null,0,null,null,null,null,null,null,null,null,null,null,null,null,null,null,null,0,null,null,null,null,null,0,null,null,0," "]
[null,26,{"$f":"'C. FILIACION'!C39","v":0},null,null,null,null,null,null,0,null,null,null,null,null,null,null,null,null,null,null,null,null,null,null,0,null,null,null,null,null,null,null,null,null,null,null,null,null,null,null,0,null,null,null,null,null,0,null,null,0," "]
[null,27,{"$f":"'C. FILIACION'!C40","v":0},null,null,null,null,null,null,0,null,null,null,null,null,null,null,null,null,null,null,null,null,null,null,0,null,null,null,null,null,null,null,null,null,null,null,null,null,null,null,0,null,null,null,null,null,0,null,null,0," "]
[null,28,{"$f":"'C. FILIACION'!C41","v":0},null,null,null,null,null,null,0,null,null,null,null,null,null,null,null,null,null,null,null,null,null,null,0,null,null,null,null,null,null,null,null,null,null,null,null,null,null,null,0,null,null,null,null,null,0,null,null,0," "]
[null,29,{"$f":"'C. FILIACION'!C42","v":0},null,null,null,null,null,null,0,null,null,null,null,null,null,null,null,null,null,null,null,null,null,null,0,null,null,null,null,null,null,null,null,null,null,null,null,null,null,null,0,null,null,null,null,null,0,null,null,0," "]
[null,30,{"$f":"'C. FILIACION'!C43","v":0},null,null,null,null,null,null,0,null,null,null,null,null,null,null,null,null,null,null,null,null,null,null,0,null,null,null,null,null,null,null,null,null,null,null,null,null,null,null,0,null,null,null,null,null,0,null,null,0," "]
[null,31,{"$f":"'C. FILIACION'!C44","v":0},null,null,null,null,null,null,0,null,null,null,null,null,null,null,null,null,null,null,null,null,null,null,0,null,null,null,null,null,null,null,null,null,null,null,null,null,null,null,0,null,null,null,null,null,0,null,null,0," "]
[null,32,{"$f":"'C. FILIACION'!C45","v":0},null,null,null,null,null,null,0,null,null,null,null,null,null,null,null,null,null,null,null,null,null,null,0,null,null,null,null,null,null,null,null,null,null,null,null,null,null,null,0,null,null,null,null,null,0,null,null,0," "]
[null,33,{"$f":"'C. FILIACION'!C46","v":0},null,null,null,null,null,null,0,null,null,null,null,null,null,null,null,null,null,null,null,null,null,null,0,null,null,null,null,null,null,null,null,null,null,null,null,null,null,null,0,null,null,null,null,null,0,null,null,0," "]
[null,34,{"$f":"'C. FILIACION'!C47","v":0},null,null,null,null,null,null,0,null,null,null,null,null,null,null,null,null,null,null,null,null,null,null,0,null,null,null,null,null,null,null,null,null,null,null,null,null,null,null,0,null,null,null,null,null,0,null,null,0," "]
[null,35,{"$f":"'C. FILIACION'!C48","v":0},null,null,null,null,null,null,0,null,null,null,null,null,null,null,null,null,null,null,null,null,null,null,0,null,null,null,null,null,null,null,null,null,null,null,null,null,null,null,0,null,null,null,null,null,0,null,null,0," "]
[null,36,{"$f":"'C. FILIACION'!C49","v":0},null,null,null,null,null,null,0,null,null,null,null,null,null,null,null,null,null,null,null,null,null,null,0,null,null,null,null,null,null,null,null,null,null,null,null,null,null,null,0,null,null,null,null,null,0,null,null,0," "]
[null,37,{"$f":"'C. FILIACION'!C50","v":0},null,null,null,null,null,null,0,null,null,null,null,null,null,null,null,null,null,null,null,null,null,null,0,null,null,null,null,null,null,null,null,null,null,null,null,null,null,null,0,null,null,null,null,null,0,null,null,0," "]
[null,38,{"$f":"'C. FILIACION'!C51","v":0},null,null,null,null,null,null,0,null,null,null,null,null,null,null,null,null,null,null,null,null,null,null,0,null,null,null,null,null,null,null,null,null,null,null,null,null,null,null,0,null,null,null,null,null,0,null,null,0," "]
[null,39,{"$f":"'C. FILIACION'!C52","v":0},null,null,null,null,null,null,0,null,null,null,null,null,null,null,null,null,null,null,null,null,null,null,0,null,null,null,null,null,null,null,null,null,null,null,null,null,null,null,0,null,null,null,null,null,0,null,null,0," "]
[null,40,{"$f":"'C. FILIACION'!C53","v":0},null,null,null,null,null,null,0,null,null,null,null,null,null,null,null,null,null,null,null,null,null,null,0,null,null,null,null,null,null,null,null,null,null,null,null,null,null,null,0,null,null,null,null,null,0,null,null,0," "]
[null,41,{"$f":"'C. FILIACION'!C54","v":0},null,null,null,null,null,null,0,null,null,null,null,null,null,null,null,null,null,null,null,null,null,null,0,null,null,null,null,null,null,null,null,null,null,null,null,null,null,null,0,null,null,null,null,null,0,null,null,0," "]
[null,42,{"$f":"'C. FILIACION'!C55","v":0},null,null,null,null,null,null,0,null,null,null,null,null,null,null,null,null,null,null,null,null,null,null,0,null,null,null,null,null,null,null,null,null,null,null,null,null,null,null,0,null,null,null,null,null,0,null,null,0," "]
[null,43,{"$f":"'C. FILIACION'!C56","v":0},null,null,null,null,null,null,0,null,null,null,null,null,null,null,null,null,null,null,null,null,null,null,0,null,null,null,null,null,null,null,null,null,null,null,null,null,null,null,0,null,null,null,null,null,0,null,null,0," "]
[null,44,{"$f":"'C. FILIACION'!C57","v":0},null,null,null,null,null,null,0,null,null,null,null,null,null,null,null,null,null,null,null,null,null,null,0,null,null,null,null,null,null,null,null,null,null,null,null,null,null,null,0,null,null,null,null,null,0,null,null,0," "]
[null,45,{"$f":"'C. FILIACION'!C58","v":0},null,null,null,null,null,null,0,null,null,null,null,null,null,null,null,null,null,null,null,null,null,null,0,null,null,null,null,null,null,null,null,null,null,null,null,null,null,null,0,null,null,null,null,null,0,null,null,0," "]
[]
[]
[]
[]
[null,null,null,null,null,null,null,null,{"$f":"CARATULA!G22","v":0},null,null,null,null,null,null,null,null,null,null,null,null,null,null,null,null,null,null,null,null,null,{"$f":"CARATULA!G24","v":0}]

{"sheet":"ASIS. 2° B","index":6,"n_rows":70,"n_cols":34,"rows_kept":70,"cut":false,"hidden":false,"merged":[[62,20,62,29],[54,2,54,3],[55,2,55,3],[56,2,56,3],[57,2,57,3],[58,2,58,3],[62,4,62,14],[53,2,53,3],[42,2,42,3],[43,2,43,3],[44,2,44,3],[45,2,45,3],[46,2,46,3],[47,2,47,3],[48,2,48,3],[49,2,49,3],[50,2,50,3],[51,2,51,3],[52,2,52,3],[41,2,41,3],[30,2,30,3],[31,2,31,3],[32,2,32,3],[33,2,33,3],[34,2,34,3],[35,2,35,3],[36,2,36,3],[37,2,37,3],[38,2,38,3],[39,2,39,3],[40,2,40,3],[12,33,13,33],[14,2,14,3],[15,2,15,3],[16,2,16,3],[29,2,29,3],[18,2,18,3],[19,2,19,3],[20,2,20,3],[21,2,21,3],[22,2,22,3],[23,2,23,3],[24,2,24,3],[25,2,25,3],[26,2,26,3],[27,2,27,3],[28,2,28,3],[17,2,17,3],[8,4,8,19],[9,4,9,19],[10,4,10,15],[12,1,13,1],[12,2,13,3],[12,4,12,28],[8,24,8,29],[12,29,12,32],[8,30,8,32],[7,4,7,19],[1,1,2,33],[3,1,3,33],[4,4,4,22],[4,24,4,29],[4,30,4,32],[5,4,5,13],[6,4,6,11],[6,13,6,14],[6,17,6,19],[6,24,6,29],[6,30,6,32]]}
[]
[null,"REGISTRO DE ASISTENCIA 2⁰ BIMESTRE "]
[]
[]
[null,null,"UNIDAD EDUCATIVA ",":",{"$f":"CARATULA!G20","v":0},null,null,null,null,null,null,null,null,null,null,null,null,null,null,null,null,null,null,null,"INICIO DE BIMESTRE ",null,null,null,null,null,"2018-04-23"]
[null,null,"NIVEL ",":",{"$f":"CARATULA!G26","v":0}]
[null,null,"AÑO DE ESCOLARIDAD",":",{"$f":"CARATULA!G28","v":0},null,null,null,null,null,null,null,null,null,null,null,null,null,null,null,null,null,null,null,"FIN DE BIMESTRE ",null,null,null,null,null,"2018-06-29"]
[null,null,"DIRECTOR/A",":",{"$f":"CARATULA!G22","v":0}]
[null,null,"MAESTRO/A",":",{"$f":"CARATULA!G24","v":0},null,null,null,null,null,null,null,null,null,null,null,null,null,null,null,null,null,null,null,"FECHA ACTUAL ",null,null,null,null,null,{"$f":"TODAY()","v":"2018-05-07"}]
[null,null,"CAMPO ",":",{"$f":"CARATULA!G30","v":0}]
[null,null,"ÁREA",":",{"$f":"CARATULA!G32","v":0}]
[]
[null,"N","APELLIDOS Y NOMBRES ",null," 2DO BIMESTRE",null,null,null,null,null,null,null,null,null,null,null,null,null,null,null,null,null,null,null,null,null,null,null,null,"TOTALES ",null,null,null," DÍAS TRABAJADOS "]
[null,null,null,null,null,null,null,null,null,null,null,null,null,null,null,null,null,null,null,null,null,null,null,null,null,null,null,null,null,"ASISTENCIAS (A)","FALTAS (F)","RETRASOS (R)","LICENCIAS (L)"]
[null,1,{"$f":"'C. FILIACION'!C14","v":0},null,null,null,null,null,null,null,null,null,null,null,null,null,null,null,null,null,null,null,null,null,null,null,null,null,null,{"$f":"IF(COUNTIF(E15:AC15,\"A\")=0,\"\",COUNTIF(E15:AC15,\"A\"))","v":""},{"$f":"IF(COUNTIF(E15:AC15,\"F\")=0,\"\",COUNTIF(E15:AC15,\"F\"))","v":""},{"$f":"IF(COUNTIF(E15:AC15,\"R\")=0,\"\",COUNTIF(E15:AC15,\"R\"))","v":""},{"$f":"IF(COUNTIF(E15:AC15,\"L\")=0,\"\",COUNTIF(E15:AC15,\"L\"))","v":""},{"$f":"IF((IF(AD15=\"\",0,AD15)+IF(AF15=\"\",0,AF15))=0,\"\",(IF(AD15=\"\",0,AD15)+IF(AF15=\"\",0,AF15)))","v":""}]
[null,2,{"$f":"'C. FILIACION'!C15","v":0},null,null,null,null,null,null,null,null,null,null,null,null,null,null,null,null,null,null,null,null,null,null,null,null,null,null,{"$f":"IF(COUNTIF(E16:AC16,\"A\")=0,\"\",COUNTIF(E16:AC16,\"A\"))","v":""},{"$f":"IF(COUNTIF(E16:AC16,\"F\")=0,\"\",COUNTIF(E16:AC16,\"F\"))","v":""},{"$f":"IF(COUNTIF(E16:AC16,\"R\")=0,\"\",COUNTIF(E16:AC16,\"R\"))","v":""},{"$f":"IF(COUNTIF(E16:AC16,\"L\")=0,\"\",COUNTIF(E16:AC16,\"L\"))","v":""},{"$f":"IF((IF(AD16=\"\",0,AD16)+IF(AF16=\"\",0,AF16))=0,\"\",(IF(AD16=\"\",0,AD16)+IF(AF16=\"\",0,AF16)))","v":""}]
[null,3,{"$f":"'C. FILIACION'!C16","v":0},null,null,null,null,null,null,null,null,null,null,null,null,null,null,null,null,null,null,null,null,null,null,null,null,null,null,"","","","",""]
[null,4,{"$f":"'C. FILIACION'!C17","v":0},null,null,null,null,null,null,null,null,null,null,null,null,null,null,null,null,null,null,null,null,null,null,null,null,null,null,"","","","",""]
[null,5,{"$f":"'C. FILIACION'!C18","v":0},null,null,null,null,null,null,null,null,null,null,null,null,null,null,null,null,null,null,null,null,null,null,null,null,null,null,"","","","",""]
[null,6,{"$f":"'C. FILIACION'!C19","v":0},null,null,null,null,null,null,null,null,null,null,null,null,null,null,null,null,null,null,null,null,null,null,null,null,null,null,"","","","",""]
[null,7,{"$f":"'C. FILIACION'!C20","v":0},null,null,null,null,null,null,null,null,null,null,null,null,null,null,null,null,null,null,null,null,null,null,null,null,null,null,"","","","",""]
[null,8,{"$f":"'C. FILIACION'!C21","v":0},null,null,null,null,null,null,null,null,null,null,null,null,null,null,null,null,null,null,null,null,null,null,null,null,null,null,"","","","",""]
[null,9,{"$f":"'C. FILIACION'!C22","v":0},null,null,null,null,null,null,null,null,null,null,null,null,null,null,null,null,null,null,null,null,null,null,null,null,null,null,"","","","",""]
[null,10,{"$f":"'C. FILIACION'!C23","v":0},null,null,null,null,null,null,null,null,null,null,null,null,null,null,null,null,null,null,null,null,null,null,null,null,null,null,"","","","",""]
[null,11,{"$f":"'C. FILIACION'!C24","v":0},null,null,null,null,null,null,null,null,null,null,null,null,null,null,null,null,null,null,null,null,null,null,null,null,null,null,"","","","",""]
[null,12,{"$f":"'C. FILIACION'!C25","v":0},null,null,null,null,null,null,null,null,null,null,null,null,null,null,null,null,null,null,null,null,null,null,null,null,null,null,"","","","",""]
[null,13,{"$f":"'C. FILIACION'!C26","v":0},null,null,null,null,null,null,null,null,null,null,null,null,null,null,null,null,null,null,null,null,null,null,null,null,null,null,"","","","",""]
[null,14,{"$f":"'C. FILIACION'!C27","v":0},null,null,null,null,null,null,null,null,null,null,null,null,null,null,null,null,null,null,null,null,null,null,null,null,null,null,"","","","",""]
[null,15,{"$f":"'C. FILIACION'!C28","v":0},null,null,null,null,null,null,null,null,null,null,null,null,null,null,null,null,null,null,null,null,null,null,null,null,null,null,"","","","",""]
[null,16,{"$f":"'C. FILIACION'!C29","v":0},null,null,null,null,null,null,null,null,null,null,null,null,null,null,null,null,null,null,null,null,null,null,null,null,null,null,"","","","",""]
[null,17,{"$f":"'C. FILIACION'!C30","v":0},null,null,null,null,null,null,null,null,null,null,null,null,null,null,null,null,null,null,null,null,null,null,null,null,null,null,"","","","",""]
[null,18,{"$f":"'C. FILIACION'!C31","v":0},null,null,null,null,null,null,null,null,null,null,null,null,null,null,null,null,null,null,null,null,null,null,null,null,null,null,"","","","",""]
[null,19,{"$f":"'C. FILIACION'!C32","v":0},null,null,null,null,null,null,null,null,null,null,null,null,null,null,null,null,null,null,null,null,null,null,null,null,null,null,"","","","",""]
[null,20,{"$f":"'C. FILIACION'!C33","v":0},null,null,null,null,null,null,null,null,null,null,null,null,null,null,null,null,null,null,null,null,null,null,null,null,null,null,"","","","",""]
[null,21,{"$f":"'C. FILIACION'!C34","v":0},null,null,null,null,null,null,null,null,null,null,null,null,null,null,null,null,null,null,null,null,null,null,null,null,null,null,"","","","",""]
[null,22,{"$f":"'C. FILIACION'!C35","v":0},null,null,null,null,null,null,null,null,null,null,null,null,null,null,null,null,null,null,null,null,null,null,null,null,null,null,"","","","",""]
[null,23,{"$f":"'C. FILIACION'!C36","v":0},null,null,null,null,null,null,null,null,null,null,null,null,null,null,null,null,null,null,null,null,null,null,null,null,null,null,"","","","",""]
[null,24,{"$f":"'C. FILIACION'!C37","v":0},null,null,null,null,null,null,null,null,null,null,null,null,null,null,null,null,null,null,null,null,null,null,null,null,null,null,"","","","",""]
[null,25,{"$f":"'C. FILIACION'!C38","v":0},null,null,null,null,null,null,null,null,null,null,null,null,null,null,null,null,null,null,null,null,null,null,null,null,null,null,"","","","",""]
[null,26,{"$f":"'C. FILIACION'!C39","v":0},null,null,null,null,null,null,null,null,null,null,null,null,null,null,null,null,null,null,null,null,null,null,null,null,null,null,"","","","",""]
[null,27,{"$f":"'C. FILIACION'!C40","v":0},null,null,null,null,null,null,null,null,null,null,null,null,null,null,null,null,null,null,null,null,null,null,null,null,null,null,"","","","",""]
[null,28,{"$f":"'C. FILIACION'!C41","v":0},null,null,null,null,null,null,null,null,null,null,null,null,null,null,null,null,null,null,null,null,null,null,null,null,null,null,"","","","",""]
[null,29,{"$f":"'C. FILIACION'!C42","v":0},null,null,null,null,null,null,null,null,null,null,null,null,null,null,null,null,null,null,null,null,null,null,null,null,null,null,"","","","",""]
[null,30,{"$f":"'C. FILIACION'!C43","v":0},null,null,null,null,null,null,null,null,null,null,null,null,null,null,null,null,null,null,null,null,null,null,null,null,null,null,"","","","",""]
[null,31,{"$f":"'C. FILIACION'!C44","v":0},null,null,null,null,null,null,null,null,null,null,null,null,null,null,null,null,null,null,null,null,null,null,null,null,null,null,"","","","",""]
[null,32,{"$f":"'C. FILIACION'!C45","v":0},null,null,null,null,null,null,null,null,null,null,null,null,null,null,null,null,null,null,null,null,null,null,null,null,null,null,"","","","",""]
[null,33,{"$f":"'C. FILIACION'!C46","v":0},null,null,null,null,null,null,null,null,null,null,null,null,null,null,null,null,null,null,null,null,null,null,null,null,null,null,"","","","",""]
[null,34,{"$f":"'C. FILIACION'!C47","v":0},null,null,null,null,null,null,null,null,null,null,null,null,null,null,null,null,null,null,null,null,null,null,null,null,null,null,"","","","",""]
[null,35,{"$f":"'C. FILIACION'!C48","v":0},null,null,null,null,null,null,null,null,null,null,null,null,null,null,null,null,null,null,null,null,null,null,null,null,null,null,"","","","",""]
[null,36,{"$f":"'C. FILIACION'!C49","v":0},null,null,null,null,null,null,null,null,null,null,null,null,null,null,null,null,null,null,null,null,null,null,null,null,null,null,"","","","",""]
[null,37,{"$f":"'C. FILIACION'!C50","v":0},null,null,null,null,null,null,null,null,null,null,null,null,null,null,null,null,null,null,null,null,null,null,null,null,null,null,"","","","",""]
[null,38,{"$f":"'C. FILIACION'!C51","v":0},null,null,null,null,null,null,null,null,null,null,null,null,null,null,null,null,null,null,null,null,null,null,null,null,null,null,"","","","",""]
[null,39,{"$f":"'C. FILIACION'!C52","v":0},null,null,null,null,null,null,null,null,null,null,null,null,null,null,null,null,null,null,null,null,null,null,null,null,null,null,"","","","",""]
[null,40,{"$f":"'C. FILIACION'!C53","v":0},null,null,null,null,null,null,null,null,null,null,null,null,null,null,null,null,null,null,null,null,null,null,null,null,null,null,"","","","",""]
[null,41,{"$f":"'C. FILIACION'!C54","v":0},null,null,null,null,null,null,null,null,null,null,null,null,null,null,null,null,null,null,null,null,null,null,null,null,null,null,"","","","",""]
[null,42,{"$f":"'C. FILIACION'!C55","v":0},null,null,null,null,null,null,null,null,null,null,null,null,null,null,null,null,null,null,null,null,null,null,null,null,null,null,"","","","",""]
[null,43,{"$f":"'C. FILIACION'!C56","v":0},null,null,null,null,null,null,null,null,null,null,null,null,null,null,null,null,null,null,null,null,null,null,null,null,null,null,"","","","",""]
[null,44,{"$f":"'C. FILIACION'!C57","v":0},null,null,null,null,null,null,null,null,null,null,null,null,null,null,null,null,null,null,null,null,null,null,null,null,null,null,"","","","",""]
[null,45,{"$f":"'C. FILIACION'!C58","v":0},null,null,null,null,null,null,null,null,null,null,null,null,null,null,null,null,null,null,null,null,null,null,null,null,null,null,"","","","",""]
[]
[]
[]
[null,null,null,null,{"$f":"CARATULA!G22","v":0},null,null,null,null,null,null,null,null,null,null,null,null,null,null,null,{"$f":"CARATULA!G24","v":0}]
[]
[]
[]
[null,null,"INSCRITO "]
[null,null,"NO INCORPORADO"]
[null,null,"RETIRO O ABANDONO"]
[null,null,"EFECTIVO"]

{"sheet":"VAL. 2° B","index":7,"n_rows":68,"n_cols":52,"rows_kept":68,"cut":false,"hidden":false,"merged":[[66,8,66,19],[66,30,66,42],[67,8,67,19],[67,30,67,42],[7,21,7,27],[9,21,9,27],[11,5,11,18],[7,5,7,18],[7,29,7,33],[7,35,7,41],[7,42,7,43],[65,48,65,49],[53,2,53,3],[54,2,54,3],[55,2,55,3],[56,2,56,3],[57,2,57,3],[58,2,58,3],[59,2,59,3],[60,2,60,3],[61,2,61,3],[62,2,62,3],[64,48,64,49],[52,2,52,3],[41,2,41,3],[42,2,42,3],[43,2,43,3],[44,2,44,3],[45,2,45,3],[46,2,46,3],[47,2,47,3],[48,2,48,3],[49,2,49,3],[50,2,50,3],[51,2,51,3],[40,2,40,3],[29,2,29,3],[30,2,30,3],[31,2,31,3],[32,2,32,3],[33,2,33,3],[34,2,34,3],[35,2,35,3],[36,2,36,3],[37,2,37,3],[38,2,38,3],[39,2,39,3],[23,2,23,3],[24,2,24,3],[25,2,25,3],[26,2,26,3],[27,2,27,3],[28,2,28,3],[16,49,17,49],[18,2,18,3],[19,2,19,3],[20,2,20,3],[21,2,21,3],[22,2,22,3],[16,31,16,35],[16,36,16,40],[16,41,17,41],[16,42,16,46],[16,47,17,47],[16,48,17,48],[13,1,16,2],[16,25,17,25],[16,26,16,30],[13,51,17,51],[14,3,14,47],[14,48,14,49],[15,3,15,9],[15,10,15,25],[15,26,15,41],[15,42,15,47],[16,4,16,8],[16,9,17,9],[16,10,16,14],[13,3,13,47],[13,48,13,49],[13,50,17,50],[16,15,16,19],[16,20,16,24],[2,1,3,51],[5,5,5,18],[5,29,5,33],[5,35,5,41],[5,42,5,43],[5,44,11,49],[5,50,6,51],[6,5,6,18],[6,35,6,41],[6,42,6,43],[7,50,11,51],[8,5,8,18],[9,5,9,18],[9,29,9,33],[10,5,10,18]]}
[]
[]
[null,"REGISTRO DE VALORACION 2⁰ BIMESTRE"]
[]
[]
[null,null,"UNIDAD EDUCATIVA ",":",null,{"$f":"CARATULA!G20","v":0},null,null,null,null,null,null,null,null,null,null,null,null,null,null,null,"INICIO DE BIMESTRE ",null,null,null,null,null,null,null,"2018-04-23",null,null,null,null,null,null,null,null,null,null,null,null,null,null,null,null,null,null,null,null,"DÍAS RESTANTES PARA FIN DE BIMESTRE "]
[null,null,"NIVEL ",":",null,{"$f":"CARATULA!G26","v":0},null,null,null,null,null,null,null,null,null,null,null,null,null,null,null,null,null,null,null,null,null,null,null,null,null,null,null,null,null,"N° TOTAL APROBADOS",null,null,null,null,null,null,{"$f":"COUNTIF(AY19:AY63,\">=51\")","v":0}]
[null,null,"AÑO DE ESCOLARIDAD",":",null,{"$f":"CARATULA!G28","v":0},null,null,null,null,null,null,null,null,null,null,null,null,null,null,null,"FIN DE BIMESTRE ",null,null,null,null,null,null,null,"2018-06-29",null,null,null,null,null,"N° TOTAL REPROBADOS",null,null,null,null,null,null,{"$f":"COUNTIFS(AY19:AY63,\">=1\",AY19:AY63,\"<=50\")","v":0},null,null,null,null,null,null,null,{"$f":"AD8-AD10","v":53}]
[null,null,"DIRECTOR/A",":",null,{"$f":"CARATULA!G22","v":0}]
[null,null,"MAESTRO/A",":",null,{"$f":"CARATULA!G24","v":0},null,null,null,null,null,null,null,null,null,null,null,null,null,null,null,"FECHA ACTUAL",null,null,null,null,null,null,null,{"$f":"TODAY()","v":"2018-05-07"}]
[{"$f":"COUNTIF(AY19:AY63,¨>=50)","v":0},null,"CAMPO ",":",null,{"$f":"CARATULA!G30","v":0}]
[null,null,"ÁREA",":",null,{"$f":"CARATULA!G32","v":0}]
[]
[null,null,null,"EVALUACIÓN MAESTRA(O)",null,null,null,null,null,null,null,null,null,null,null,null,null,null,null,null,null,null,null,null,null,null,null,null,null,null,null,null,null,null,null,null,null,null,null,null,null,null,null,null,null,null,null,null,"AUTO EVALUACIÓN ESTUDIANTE ",null," TOTAL BIMESTRAL","SITUACIÓN BIMESTRAL"]
[null,null,null,"DIMENSIONES ",null,null,null,null,null,null,null,null,null,null,null,null,null,null,null,null,null,null,null,null,null,null,null,null,null,null,null,null,null,null,null,null,null,null,null,null,null,null,null,null,null,null,null,null,"DIMENSIONES "]
[null,null,null,"SER -10",null,null,null,null,null,null,"SABER - 35",null,null,null,null,null,null,null,null,null,null,null,null,null,null,null,"HACER - 35",null,null,null,null,null,null,null,null,null,null,null,null,null,null,null,"DECIDIR - 10 ",null,null,null,null,null,"SER - 5","DECIDIR - 5"]
[null,null,null,"CRITERIOS DE EVALUACIÓN  ",null,null,null,null,null,"VALORACIÓN 10 PUN.",null,null,null,null,null,null,null,null,null,null,null,null,null,null,null,"VALORACIÓN 35 PUN.",null,null,null,null,null,null,null,null,null,null,null,null,null,null,null,"VALORACIÓN 35 PUN.",null,null,null,null,null,"VALORACIÓN 10 PUN."]
[null,"N ","NOMBRES Y APELLIDOS ","ACTIVIDADES"]
[null,1,{"$f":"'C. FILIACION'!C14","v":0},null,null,null,null,null,null,{"$f":"IFERROR((SUM(E19:I19)/(COUNT(E19:I19))),0)","v":0},null,null,null,null,null,null,null,null,null,null,null,null,null,null,null,{"$f":"IFERROR(((SUM(K19:Y19))/(COUNT(K19:Y19))),0)","v":0},null,null,null,null,null,null,null,null,null,null,null,null,null,null,null,{"$f":"IFERROR(((SUM(AA19:AO19))/(COUNT(AA19:AO19))),0)","v":0},null,null,null,null,null,{"$f":"IFERROR(((SUM(AQ19:AU19))/(COUNT(AQ19:AU19))),0)","v":0},null,null,{"$f":"ROUND((SUM(J19,Z19,AP19,AV19,AW19,AX19)),0)","v":0},{"$f":"IF(AY19=0,\"\",(IF(AY19>=51,\"APROBADO\",\"REPROBADO\")))","v":""}]
[null,2,{"$f":"'C. FILIACION'!C15","v":0},null,null,null,null,null,null,{"$f":"IFERROR((SUM(E20:I20)/(COUNT(E20:I20))),0)","v":0},null,null,null,null,null,null,null,null,null,null,null,null,null,null,null,0,null,null,null,null,null,null,null,null,null,null,null,null,null,null,null,{"$f":"IFERROR(((SUM(AA20:AO20))/(COUNT(AA20:AO20))),0)","v":0},null,null,null,null,null,{"$f":"IFERROR(((SUM(AQ20:AU20))/(COUNT(AQ20:AU20))),0)","v":0},null,null,{"$f":"ROUND((SUM(J20,Z20,AP20,AV20,AW20,AX20)),0)","v":0},""]
[null,3,{"$f":"'C. FILIACION'!C16","v":0},null,null,null,null,null,null,0,null,null,null,null,null,null,null,null,null,null,null,null,null,null,null,0,null,null,null,null,null,null,null,null,null,null,null,null,null,null,null,0,null,null,null,null,null,0,null,null,0,""]
[null,4,{"$f":"'C. FILIACION'!C17","v":0},null,null,null,null,null,null,0,null,null,null,null,null,null,null,null,null,null,null,null,null,null,null,0,null,null,null,null,null,null,null,null,null,null,null,null,null,null,null,0,null,null,null,null,null,0,null,null,0,""]
[null,5,{"$f":"'C. FILIACION'!C18","v":0},null,null,null,null,null,null,0,null,null,null,null,null,null,null,null,null,null,null,null,null,null,null,0,null,null,null,null,null,null,null,null,null,null,null,null,null,null,null,0,null,null,null,null,null,0,null,null,0,""]
[null,6,{"$f":"'C. FILIACION'!C19","v":0},null,null,null,null,null,null,0,null,null,null,null,null,null,null,null,null,null,null,null,null,null,null,0,null,null,null,null,null,null,null,null,null,null,null,null,null,null,null,0,null,null,null,null,null,0,null,null,0,""]
[null,7,{"$f":"'C. FILIACION'!C20","v":0},null,null,null,null,null,null,0,null,null,null,null,null,null,null,null,null,null,null,null,null,null,null,0,null,null,null,null,null,null,null,null,null,null,null,null,null,null,null,0,null,null,null,null,null,0,null,null,0,""]
[null,8,{"$f":"'C. FILIACION'!C21","v":0},null,null,null,null,null,null,0,null,null,null,null,null,null,null,null,null,null,null,null,null,null,null,0,null,null,null,null,null,null,null,null,null,null,null,null,null,null,null,0,null,null,null,null,null,0,null,null,0,""]
[null,9,{"$f":"'C. FILIACION'!C22","v":0},null,null,null,null,null,null,0,null,null,null,null,null,null,null,null,null,null,null,null,null,null,null,0,null,null,null,null,null,null,null,null,null,null,null,null,null,null,null,0,null,null,null,null,null,0,null,null,0,""]
[null,10,{"$f":"'C. FILIACION'!C23","v":0},null,null,null,null,null,null,0,null,null,null,null,null,null,null,null,null,null,null,null,null,null,null,0,null,null,null,null,null,null,null,null,null,null,null,null,null,null,null,0,null,null,null,null,null,0,null,null,0,""]
[null,11,{"$f":"'C. FILIACION'!C24","v":0},null,null,null,null,null,null,0,null,null,null,null,null,null,null,null,null,null,null,null,null,null,null,0,null,null,null,null,null,null,null,null,null,null,null,null,null,null,null,0,null,null,null,null,null,0,null,null,0,""]
[null,12,{"$f":"'C. FILIACION'!C25","v":0},null,null,null,null,null,null,0,null,null,null,null,null,null,null,null,null,null,null,null,null,null,null,0,null,null,null,null,null,null,null,null,null,null,null,null,null,null,null,0,null,null,null,null,null,0,null,null,0,""]
[null,13,{"$f":"'C. FILIACION'!C26","v":0},null,null,null,null,null,null,0,null,null,null,null,null,null,null,null,null,null,null,null,null,null,null,0,null,null,null,null,null,null,null,null,null,null,null,null,null,null,null,0,null,null,null,null,null,0,null,null,0,""]
[null,14,{"$f":"'C. FILIACION'!C27","v":0},null,null,null,null,null,null,0,null,null,null,null,null,null,null,null,null,null,null,null,null,null,null,0,null,null,null,null,null,null,null,null,null,null,null,null,null,null,null,0,null,null,null,null,null,0,null,null,0,""]
[null,15,{"$f":"'C. FILIACION'!C28","v":0},null,null,null,null,null,null,0,null,null,null,null,null,null,null,null,null,null,null,null,null,null,null,0,null,null,null,null,null,null,null,null,null,null,null,null,null,null,null,0,null,null,null,null,null,0,null,null,0,""]
[null,16,{"$f":"'C. FILIACION'!C29","v":0},null,null,null,null,null,null,0,null,null,null,null,null,null,null,null,null,null,null,null,null,null,null,0,null,null,null,null,null,null,null,null,null,null,null,null,null,null,null,0,null,null,null,null,null,0,null,null,0,""]
[null,17,{"$f":"'C. FILIACION'!C30","v":0},null,null,null,null,null,null,0,null,null,null,null,null,null,null,null,null,null,null,null,null,null,null,0,null,null,null,null,null,null,null,null,null,null,null,null,null,null,null,0,null,null,null,null,null,0,null,null,0,""]
[null,18,{"$f":"'C. FILIACION'!C31","v":0},null,null,null,null,null,null,0,null,null,null,null,null,null,null,null,null,null,null,null,null,null,null,0,null,null,null,null,null,null,null,null,null,null,null,null,null,null,null,0,null,null,null,null,null,0,null,null,0,""]
[null,19,{"$f":"'C. FILIACION'!C32","v":0},null,null,null,null,null,null,0,null,null,null,null,null,null,null,null,null,null,null,null,null,null,null,0,null,null,null,null,null,null,null,null,null,null,null,null,null,null,null,0,null,null,null,null,null,0,null,null,0,""]
[null,20,{"$f":"'C. FILIACION'!C33","v":0},null,null,null,null,null,null,0,null,null,null,null,null,null,null,null,null,null,null,null,null,null,null,0,null,null,null,null,null,null,null,null,null,null,null,null,null,null,null,0,null,null,null,null,null,0,null,null,0,""]
[null,21,{"$f":"'C. FILIACION'!C34","v":0},null,null,null,null,null,null,0,null,null,null,null,null,null,null,null,null,null,null,null,null,null,null,0,null,null,null,null,null,null,null,null,null,null,null,null,null,null,null,0,null,null,null,null,null,0,null,null,0,""]
[null,22,{"$f":"'C. FILIACION'!C35","v":0},null,null,null,null,null,null,0,null,null,null,null,null,null,null,null,null,null,null,null,null,null,null,0,null,null,null,null,null,null,null,null,null,null,null,null,null,null,null,0,null,null,null,null,null,0,null,null,0,""]
[null,23,{"$f":"'C. FILIACION'!C36","v":0},null,null,null,null,null,null,0,null,null,null,null,null,null,null,null,null,null,null,null,null,null,null,0,null,null,null,null,null,null,null,null,null,null,null,null,null,null,null,0,null,null,null,null,null,0,null,null,0,""]
[null,24,{"$f":"'C. FILIACION'!C37","v":0},null,null,null,null,null,null,0,null,null,null,null,null,null,null,null,null,null,null,null,null,null,null,0,null,null,null,null,null,null,null,null,null,null,null,null,null,null,null,0,null,null,null,null,null,0,null,null,0,""]
[null,25,{"$f":"'C. FILIACION'!C38","v":0},null,null,null,null,null,null,0,null,null,null,null,null,null,null,null,null,null,null,null,null,null,null,0,null,null,null,null,null,null,null,null,null,null,null,null,null,null,null,0,null,null,null,null,null,0,null,null,0,""]
[null,26,{"$f":"'C. FILIACION'!C39","v":0},null,null,null,null,null,null,0,null,null,null,null,null,null,null,null,null,null,null,null,null,null,null,0,null,null,null,null,null,null,null,null,null,null,null,null,null,null,null,0,null,null,null,null,null,0,null,null,0,""]
[null,27,{"$f":"'C. FILIACION'!C40","v":0},null,null,null,null,null,null,0,null,null,null,null,null,null,null,null,null,null,null,null,null,null,null,0,null,null,null,null,null,null,null,null,null,null,null,null,null,null,null,0,null,null,null,null,null,0,null,null,0,""]
[null,28,{"$f":"'C. FILIACION'!C41","v":0},null,null,null,null,null,null,0,null,null,null,null,null,null,null,null,null,null,null,null,null,null,null,0,null,null,null,null,null,null,null,null,null,null,null,null,null,null,null,0,null,null,null,null,null,0,null,null,0,""]
[null,29,{"$f":"'C. FILIACION'!C42","v":0},null,null,null,null,null,null,0,null,null,null,null,null,null,null,null,null,null,null,null,null,null,null,0,null,null,null,null,null,null,null,null,null,null,null,null,null,null,null,0,null,null,null,null,null,0,null,null,0,""]
[null,30,{"$f":"'C. FILIACION'!C43","v":0},null,null,null,null,null,null,0,null,null,null,null,null,null,null,null,null,null,null,null,null,null,null,0,null,null,null,null,null,null,null,null,null,null,null,null,null,null,null,0,null,null,null,null,null,0,null,null,0,""]
[null,31,{"$f":"'C. FILIACION'!C44","v":0},null,null,null,null,null,null,0,null,null,null,null,null,null,null,null,null,null,null,null,null,null,null,0,null,null,null,null,null,null,null,null,null,null,null,null,null,null,null,0,null,null,null,null,null,0,null,null,0,""]
[null,32,{"$f":"'C. FILIACION'!C45","v":0},null,null,null,null,null,null,0,null,null,null,null,null,null,null,null,null,null,null,null,null,null,null,0,null,null,null,null,null,null,null,null,null,null,null,null,null,null,null,0,null,null,null,null,null,0,null,null,0,""]
[null,33,{"$f":"'C. FILIACION'!C46","v":0},null,null,null,null,null,null,0,null,null,null,null,null,null,null,null,null,null,null,null,null,null,null,0,null,null,null,null,null,null,null,null,null,null,null,null,null,null,null,0,null,null,null,null,null,0,null,null,0,""]
[null,34,{"$f":"'C. FILIACION'!C47","v":0},null,null,null,null,null,null,0,null,null,null,null,null,null,null,null,null,null,null,null,null,null,null,0,null,null,null,null,null,null,null,null,null,null,null,null,null,null,null,0,null,null,null,null,null,0,null,null,0,""]
[null,35,{"$f":"'C. FILIACION'!C48","v":0},null,null,null,null,null,null,0,null,null,null,null,null,null,null,null,null,null,null,null,null,null,null,0,null,null,null,null,null,null,null,null,null,null,null,null,null,null,null,0,null,null,null,null,null,0,null,null,0,""]
[null,36,{"$f":"'C. FILIACION'!C49","v":0},null,null,null,null,null,null,0,null,null,null,null,null,null,null,null,null,null,null,null,null,null,null,0,null,null,null,null,null,null,null,null,null,null,null,null,null,null,null,0,null,null,null,null,null,0,null,null,0,""]
[null,37,{"$f":"'C. FILIACION'!C50","v":0},null,null,null,null,null,null,0,null,null,null,null,null,null,null,null,null,null,null,null,null,null,null,0,null,null,null,null,null,null,null,null,null,null,null,null,null,null,null,0,null,null,null,null,null,0,null,null,0,""]
[null,38,{"$f":"'C. FILIACION'!C51","v":0},null,null,null,null,null,null,0,null,null,null,null,null,null,null,null,null,null,null,null,null,null,null,0,null,null,null,null,null,null,null,null,null,null,null,null,null,null,null,0,null,null,null,null,null,0,null,null,0,""]
[null,39,{"$f":"'C. FILIACION'!C52","v":0},null,null,null,null,null,null,0,null,null,null,null,null,null,null,null,null,null,null,null,null,null,null,0,null,null,null,null,null,null,null,null,null,null,null,null,null,null,null,0,null,null,null,null,null,0,null,null,0,""]
[null,40,{"$f":"'C. FILIACION'!C53","v":0},null,null,null,null,null,null,0,null,null,null,null,null,null,null,null,null,null,null,null,null,null,null,0,null,null,null,null,null,null,null,null,null,null,null,null,null,null,null,0,null,null,null,null,null,0,null,null,0,""]
[null,41,{"$f":"'C. FILIACION'!C54","v":0},null,null,null,null,null,null,0,null,null,null,null,null,null,null,null,null,null,null,null,null,null,null,0,null,null,null,null,null,null,null,null,null,null,null,null,null,null,null,0,null,null,null,null,null,0,null,null,0,""]
[null,42,{"$f":"'C. FILIACION'!C55","v":0},null,null,null,null,null,null,0,null,null,null,null,null,null,null,null,null,null,null,null,null,null,null,0,null,null,null,null,null,null,null,null,null,null,null,null,null,null,null,0,null,null,null,null,null,0,null,null,0,""]
[null,43,{"$f":"'C. FILIACION'!C56","v":0},null,null,null,null,null,null,0,null,null,null,null,null,null,null,null,null,null,null,null,null,null,null,0,null,null,null,null,null,null,null,null,null,null,null,null,null,null,null,0,null,null,null,null,null,0,null,null,0,""]
[null,44,{"$f":"'C. FILIACION'!C57","v":0},null,null,null,null,null,null,0,null,null,null,null,null,null,null,null,null,null,null,null,null,null,null,0,null,null,null,null,null,null,null,null,null,null,null,null,null,null,null,0,null,null,null,null,null,0,null,null,0,""]
[null,45,{"$f":"'C. FILIACION'!C58","v":0},null,null,null,null,null,null,0,null,null,null,null,null,null,null,null,null,null,null,null,null,null,null,0,null,null,null,null,null,null,null,null,null,null,null,null,null,null,null,0,null,null,null,null,null,0,null,null,0,""]
[]
[]
[]
[]
[null,null,null,null,null,null,null,null,{"$f":"CARATULA!G22","v":0},null,null,null,null,null,null,null,null,null,null,null,null,null,null,null,null,null,null,null,null,null,{"$f":"CARATULA!G24","v":0}]

{"sheet":"ASIS. 3° B","index":8,"n_rows":70,"n_cols":34,"rows_kept":70,"cut":false,"hidden":false,"merged":[[7,4,7,19],[1,1,2,33],[3,1,3,33],[4,4,4,22],[4,24,4,29],[4,30,4,32],[5,4,5,13],[6,4,6,11],[6,13,6,14],[6,17,6,19],[6,24,6,29],[6,30,6,32],[17,2,17,3],[8,4,8,19],[9,4,9,19],[10,4,10,15],[12,1,13,1],[12,2,13,3],[12,4,12,28],[8,24,8,29],[12,29,12,32],[8,30,8,32],[12,33,13,33],[14,2,14,3],[15,2,15,3],[16,2,16,3],[40,2,40,3],[29,2,29,3],[18,2,18,3],[19,2,19,3],[20,2,20,3],[21,2,21,3],[22,2,22,3],[23,2,23,3],[24,2,24,3],[25,2,25,3],[26,2,26,3],[27,2,27,3],[28,2,28,3],[35,2,35,3],[36,2,36,3],[37,2,37,3],[38,2,38,3],[41,2,41,3],[39,2,39,3],[30,2,30,3],[31,2,31,3],[32,2,32,3],[33,2,33,3],[34,2,34,3],[62,20,62,29],[54,2,54,3],[55,2,55,3],[56,2,56,3],[57,2,57,3],[58,2,58,3],[62,4,62,14],[53,2,53,3],[42,2,42,3],[43,2,43,3],[44,2,44,3],[45,2,45,3],[46,2,46,3],[47,2,47,3],[48,2,48,3],[49,2,49,3],[50,2,50,3],[51,2,51,3],[52,2,52,3]]}
[]
[null,"REGISTRO DE ASISTENCIA 3⁰ BIMESTRE "]
[]
[]
[null,null,"UNIDAD EDUCATIVA ",":",{"$f":"CARATULA!G20","v":0},null,null,null,null,null,null,null,null,null,null,null,null,null,null,null,null,null,null,null,"INICIO DE BIMESTRE ",null,null,null,null,null,"2018-07-02"]
[null,null,"NIVEL ",":",{"$f":"CARATULA!G26","v":0}]
[null,null,"AÑO DE ESCOLARIDAD",":",{"$f":"CARATULA!G28","v":0},null,null,null,null,null,null,null,null,null,null,null,null,null,null,null,null,null,null,null,"FIN DE BIMESTRE ",null,null,null,null,null,"2018-09-21"]
[null,null,"DIRECTOR/A",":",{"$f":"CARATULA!G22","v":0}]
[null,null,"MAESTRO/A",":",{"$f":"CARATULA!G24","v":0},null,null,null,null,null,null,null,null,null,null,null,null,null,null,null,null,null,null,null,"FECHA ACTUAL ",null,null,null,null,null,{"$f":"TODAY()","v":"2018-05-07"}]
[null,null,"CAMPO ",":",{"$f":"CARATULA!G30","v":0}]
[null,null,"ÁREA",":",{"$f":"CARATULA!G32","v":0}]
[]
[null,"N","APELLIDOS Y NOMBRES ",null," 3ER BIMESTRE",null,null,null,null,null,null,null,null,null,null,null,null,null,null,null,null,null,null,null,null,null,null,null,null,"TOTALES ",null,null,null," DÍAS TRABAJADOS "]
[null,null,null,null,null,null,null,null,null,null,null,null,null,null,null,null,null,null,null,null,null,null,null,null,null,null,null,null,null,"ASISTENCIAS (A)","FALTAS (F)","RETRASOS (R)","LICENCIAS (L)"]
[null,1,{"$f":"'C. FILIACION'!C14","v":0},null,null,null,null,null,null,null,null,null,null,null,null,null,null,null,null,null,null,null,null,null,null,null,null,null,null,{"$f":"IF(COUNTIF(E15:AC15,\"A\")=0,\"\",COUNTIF(E15:AC15,\"A\"))","v":""},{"$f":"IF(COUNTIF(E15:AC15,\"F\")=0,\"\",COUNTIF(E15:AC15,\"F\"))","v":""},{"$f":"IF(COUNTIF(E15:AC15,\"R\")=0,\"\",COUNTIF(E15:AC15,\"R\"))","v":""},{"$f":"IF(COUNTIF(E15:AC15,\"L\")=0,\"\",COUNTIF(E15:AC15,\"L\"))","v":""},{"$f":"IF((IF(AD15=\"\",0,AD15)+IF(AF15=\"\",0,AF15))=0,\"\",(IF(AD15=\"\",0,AD15)+IF(AF15=\"\",0,AF15)))","v":""}]
[null,2,{"$f":"'C. FILIACION'!C15","v":0},null,null,null,null,null,null,null,null,null,null,null,null,null,null,null,null,null,null,null,null,null,null,null,null,null,null,{"$f":"IF(COUNTIF(E16:AC16,\"A\")=0,\"\",COUNTIF(E16:AC16,\"A\"))","v":""},{"$f":"IF(COUNTIF(E16:AC16,\"F\")=0,\"\",COUNTIF(E16:AC16,\"F\"))","v":""},{"$f":"IF(COUNTIF(E16:AC16,\"R\")=0,\"\",COUNTIF(E16:AC16,\"R\"))","v":""},{"$f":"IF(COUNTIF(E16:AC16,\"L\")=0,\"\",COUNTIF(E16:AC16,\"L\"))","v":""},{"$f":"IF((IF(AD16=\"\",0,AD16)+IF(AF16=\"\",0,AF16))=0,\"\",(IF(AD16=\"\",0,AD16)+IF(AF16=\"\",0,AF16)))","v":""}]
[null,3,{"$f":"'C. FILIACION'!C16","v":0},null,null,null,null,null,null,null,null,null,null,null,null,null,null,null,null,null,null,null,null,null,null,null,null,null,null,"","","","",""]
[null,4,{"$f":"'C. FILIACION'!C17","v":0},null,null,null,null,null,null,null,null,null,null,null,null,null,null,null,null,null,null,null,null,null,null,null,null,null,null,"","","","",""]
[null,5,{"$f":"'C. FILIACION'!C18","v":0},null,null,null,null,null,null,null,null,null,null,null,null,null,null,null,null,null,null,null,null,null,null,null,null,null,null,"","","","",""]
[null,6,{"$f":"'C. FILIACION'!C19","v":0},null,null,null,null,null,null,null,null,null,null,null,null,null,null,null,null,null,null,null,null,null,null,null,null,null,null,"","","","",""]
[null,7,{"$f":"'C. FILIACION'!C20","v":0},null,null,null,null,null,null,null,null,null,null,null,null,null,null,null,null,null,null,null,null,null,null,null,null,null,null,"","","","",""]
[null,8,{"$f":"'C. FILIACION'!C21","v":0},null,null,null,null,null,null,null,null,null,null,null,null,null,null,null,null,null,null,null,null,null,null,null,null,null,null,"","","","",""]
[null,9,{"$f":"'C. FILIACION'!C22","v":0},null,null,null,null,null,null,null,null,null,null,null,null,null,null,null,null,null,null,null,null,null,null,null,null,null,null,"","","","",""]
[null,10,{"$f":"'C. FILIACION'!C23","v":0},null,null,null,null,null,null,null,null,null,null,null,null,null,null,null,null,null,null,null,null,null,null,null,null,null,null,"","","","",""]
[null,11,{"$f":"'C. FILIACION'!C24","v":0},null,null,null,null,null,null,null,null,null,null,null,null,null,null,null,null,null,null,null,null,null,null,null,null,null,null,"","","","",""]
[null,12,{"$f":"'C. FILIACION'!C25","v":0},null,null,null,null,null,null,null,null,null,null,null,null,null,null,null,null,null,null,null,null,null,null,null,null,null,null,"","","","",""]
[null,13,{"$f":"'C. FILIACION'!C26","v":0},null,null,null,null,null,null,null,null,null,null,null,null,null,null,null,null,null,null,null,null,null,null,null,null,null,null,"","","","",""]
[null,14,{"$f":"'C. FILIACION'!C27","v":0},null,null,null,null,null,null,null,null,null,null,null,null,null,null,null,null,null,null,null,null,null,null,null,null,null,null,"","","","",""]
[null,15,{"$f":"'C. FILIACION'!C28","v":0},null,null,null,null,null,null,null,null,null,null,null,null,null,null,null,null,null,null,null,null,null,null,null,null,null,null,"","","","",""]
[null,16,{"$f":"'C. FILIACION'!C29","v":0},null,null,null,null,null,null,null,null,null,null,null,null,null,null,null,null,null,null,null,null,null,null,null,null,null,null,"","","","",""]
[null,17,{"$f":"'C. FILIACION'!C30","v":0},null,null,null,null,null,null,null,null,null,null,null,null,null,null,null,null,null,null,null,null,null,null,null,null,null,null,"","","","",""]
[null,18,{"$f":"'C. FILIACION'!C31","v":0},null,null,null,null,null,null,null,null,null,null,null,null,null,null,null,null,null,null,null,null,null,null,null,null,null,null,"","","","",""]
[null,19,{"$f":"'C. FILIACION'!C32","v":0},null,null,null,null,null,null,null,null,null,null,null,null,null,null,null,null,null,null,null,null,null,null,null,null,null,null,"","","","",""]
[null,20,{"$f":"'C. FILIACION'!C33","v":0},null,null,null,null,null,null,null,null,null,null,null,null,null,null,null,null,null,null,null,null,null,null,null,null,null,null,"","","","",""]
[null,21,{"$f":"'C. FILIACION'!C34","v":0},null,null,null,null,null,null,null,null,null,null,null,null,null,null,null,null,null,null,null,null,null,null,null,null,null,null,"","","","",""]
[null,22,{"$f":"'C. FILIACION'!C35","v":0},null,null,null,null,null,null,null,null,null,null,null,null,null,null,null,null,null,null,null,null,null,null,null,null,null,null,"","","","",""]
[null,23,{"$f":"'C. FILIACION'!C36","v":0},null,null,null,null,null,null,null,null,null,null,null,null,null,null,null,null,null,null,null,null,null,null,null,null,null,null,"","","","",""]
[null,24,{"$f":"'C. FILIACION'!C37","v":0},null,null,null,null,null,null,null,null,null,null,null,null,null,null,null,null,null,null,null,null,null,null,null,null,null,null,"","","","",""]
[null,25,{"$f":"'C. FILIACION'!C38","v":0},null,null,null,null,null,null,null,null,null,null,null,null,null,null,null,null,null,null,null,null,null,null,null,null,null,null,"","","","",""]
[null,26,{"$f":"'C. FILIACION'!C39","v":0},null,null,null,null,null,null,null,null,null,null,null,null,null,null,null,null,null,null,null,null,null,null,null,null,null,null,"","","","",""]
[null,27,{"$f":"'C. FILIACION'!C40","v":0},null,null,null,null,null,null,null,null,null,null,null,null,null,null,null,null,null,null,null,null,null,null,null,null,null,null,"","","","",""]
[null,28,{"$f":"'C. FILIACION'!C41","v":0},null,null,null,null,null,null,null,null,null,null,null,null,null,null,null,null,null,null,null,null,null,null,null,null,null,null,"","","","",""]
[null,29,{"$f":"'C. FILIACION'!C42","v":0},null,null,null,null,null,null,null,null,null,null,null,null,null,null,null,null,null,null,null,null,null,null,null,null,null,null,"","","","",""]
[null,30,{"$f":"'C. FILIACION'!C43","v":0},null,null,null,null,null,null,null,null,null,null,null,null,null,null,null,null,null,null,null,null,null,null,null,null,null,null,"","","","",""]
[null,31,{"$f":"'C. FILIACION'!C44","v":0},null,null,null,null,null,null,null,null,null,null,null,null,null,null,null,null,null,null,null,null,null,null,null,null,null,null,"","","","",""]
[null,32,{"$f":"'C. FILIACION'!C45","v":0},null,null,null,null,null,null,null,null,null,null,null,null,null,null,null,null,null,null,null,null,null,null,null,null,null,null,"","","","",""]
[null,33,{"$f":"'C. FILIACION'!C46","v":0},null,null,null,null,null,null,null,null,null,null,null,null,null,null,null,null,null,null,null,null,null,null,null,null,null,null,"","","","",""]
[null,34,{"$f":"'C. FILIACION'!C47","v":0},null,null,null,null,null,null,null,null,null,null,null,null,null,null,null,null,null,null,null,null,null,null,null,null,null,null,"","","","",""]
[null,35,{"$f":"'C. FILIACION'!C48","v":0},null,null,null,null,null,null,null,null,null,null,null,null,null,null,null,null,null,null,null,null,null,null,null,null,null,null,"","","","",""]
[null,36,{"$f":"'C. FILIACION'!C49","v":0},null,null,null,null,null,null,null,null,null,null,null,null,null,null,null,null,null,null,null,null,null,null,null,null,null,null,"","","","",""]
[null,37,{"$f":"'C. FILIACION'!C50","v":0},null,null,null,null,null,null,null,null,null,null,null,null,null,null,null,null,null,null,null,null,null,null,null,null,null,null,"","","","",""]
[null,38,{"$f":"'C. FILIACION'!C51","v":0},null,null,null,null,null,null,null,null,null,null,null,null,null,null,null,null,null,null,null,null,null,null,null,null,null,null,"","","","",""]
[null,39,{"$f":"'C. FILIACION'!C52","v":0},null,null,null,null,null,null,null,null,null,null,null,null,null,null,null,null,null,null,null,null,null,null,null,null,null,null,"","","","",""]
[null,40,{"$f":"'C. FILIACION'!C53","v":0},null,null,null,null,null,null,null,null,null,null,null,null,null,null,null,null,null,null,null,null,null,null,null,null,null,null,"","","","",""]
[null,41,{"$f":"'C. FILIACION'!C54","v":0},null,null,null,null,null,null,null,null,null,null,null,null,null,null,null,null,null,null,null,null,null,null,null,null,null,null,"","","","",""]
[null,42,{"$f":"'C. FILIACION'!C55","v":0},null,null,null,null,null,null,null,null,null,null,null,null,null,null,null,null,null,null,null,null,null,null,null,null,null,null,"","","","",""]
[null,43,{"$f":"'C. FILIACION'!C56","v":0},null,null,null,null,null,null,null,null,null,null,null,null,null,null,null,null,null,null,null,null,null,null,null,null,null,null,"","","","",""]
[null,44,{"$f":"'C. FILIACION'!C57","v":0},null,null,null,null,null,null,null,null,null,null,null,null,null,null,null,null,null,null,null,null,null,null,null,null,null,null,"","","","",""]
[null,45,{"$f":"'C. FILIACION'!C58","v":0},null,null,null,null,null,null,null,null,null,null,null,null,null,null,null,null,null,null,null,null,null,null,null,null,null,null,"","","","",""]
[]
[]
[]
[null,null,null,null,{"$f":"CARATULA!G22","v":0},null,null,null,null,null,null,null,null,null,null,null,null,null,null,null,{"$f":"CARATULA!G24","v":0}]
[]
[]
[]
[null,null,"INSCRITO "]
[null,null,"NO INCORPORADO"]
[null,null,"RETIRO O ABANDONO"]
[null,null,"EFECTIVO"]

{"sheet":"VAL. 3° B","index":9,"n_rows":68,"n_cols":52,"rows_kept":68,"cut":false,"hidden":false,"merged":[[2,1,3,51],[5,5,5,18],[5,29,5,33],[5,35,5,41],[5,42,5,43],[5,44,11,49],[5,50,6,51],[6,5,6,18],[6,35,6,41],[6,42,6,43],[7,50,11,51],[8,5,8,18],[9,5,9,18],[9,21,9,27],[9,29,9,33],[7,5,7,18],[13,51,17,51],[14,3,14,47],[14,48,14,49],[15,3,15,9],[15,10,15,25],[15,26,15,41],[15,42,15,47],[16,4,16,8],[16,9,17,9],[13,50,17,50],[16,26,16,30],[13,3,13,47],[13,48,13,49],[16,10,16,14],[16,15,16,19],[16,20,16,24],[19,2,19,3],[20,2,20,3],[16,42,16,46],[16,47,17,47],[25,2,25,3],[22,2,22,3],[23,2,23,3],[24,2,24,3],[21,2,21,3],[18,2,18,3],[13,1,16,2],[16,25,17,25],[16,31,16,35],[16,36,16,40],[16,41,17,41],[26,2,26,3],[39,2,39,3],[28,2,28,3],[29,2,29,3],[30,2,30,3],[31,2,31,3],[32,2,32,3],[33,2,33,3],[34,2,34,3],[35,2,35,3],[36,2,36,3],[37,2,37,3],[38,2,38,3],[27,2,27,3],[62,2,62,3],[51,2,51,3],[40,2,40,3],[41,2,41,3],[42,2,42,3],[43,2,43,3],[44,2,44,3],[45,2,45,3],[46,2,46,3],[47,2,47,3],[48,2,48,3],[49,2,49,3],[50,2,50,3],[57,2,57,3],[58,2,58,3],[59,2,59,3],[60,2,60,3],[61,2,61,3],[52,2,52,3],[53,2,53,3],[54,2,54,3],[55,2,55,3],[56,2,56,3],[5,21,5,28],[65,48,65,49],[66,8,66,19],[66,30,66,42],[67,8,67,19],[67,30,67,42],[64,48,64,49],[11,5,11,18],[16,48,17,48],[16,49,17,49],[7,21,7,28],[7,29,7,33],[7,35,7,41],[7,42,7,43],[10,5,10,18]]}
[]
[]
[null,"REGISTRO DE VALORACION 3⁰ BIMESTRE"]
[]
[]
[null,null,"UNIDAD EDUCATIVA ",":",null,{"$f":"CARATULA!G20","v":0},null,null,null,null,null,null,null,null,null,null,null,null,null,null,null,"INICIO DE BIMESTRE ",null,null,null,null,null,null,null,"2018-07-02",null,null,null,null,null,null,null,null,null,null,null,null,null,null,null,null,null,null,null,null,"DÍAS RESTANTES PARA FIN DE BIMESTRE "]
[null,null,"NIVEL ",":",null,{"$f":"CARATULA!G26","v":0},null,null,null,null,null,null,null,null,null,null,null,null,null,null,null,null,null,null,null,null,null,null,null,null,null,null,null,null,null,"N° TOTAL APROBADOS",null,null,null,null,null,null,{"$f":"COUNTIF(AY19:AY63,\">=51\")","v":0}]
[null,null,"AÑO DE ESCOLARIDAD",":",null,{"$f":"CARATULA!G28","v":0},null,null,null,null,null,null,null,null,null,null,null,null,null,null,null,"FIN DE BIMESTRE ",null,null,null,null,null,null,null,"2018-09-21",null,null,null,null,null,"N° TOTAL REPROBADOS",null,null,null,null,null,null,{"$f":"COUNTIFS(AY19:AY63,\">=1\",AY19:AY63,\"<=50\")","v":0},null,null,null,null,null,null,null,{"$f":"AD8-AD10","v":137}]
[null,null,"DIRECTOR/A",":",null,{"$f":"CARATULA!G22","v":0}]
[null,null,"MAESTRO/A",":",null,{"$f":"CARATULA!G24","v":0},null,null,null,null,null,null,null,null,null,null,null,null,null,null,null,"FECHA ACTUAL",null,null,null,null,null,null,null,{"$f":"TODAY()","v":"2018-05-07"}]
[{"$f":"COUNTIF(AY19:AY63,¨>=50)","v":0},null,"CAMPO ",":",null,{"$f":"CARATULA!G30","v":0}]
[null,null,"ÁREA",":",null,{"$f":"CARATULA!G32","v":0}]
[]
[null,null,null,"EVALUACIÓN MAESTRA(O)",null,null,null,null,null,null,null,null,null,null,null,null,null,null,null,null,null,null,null,null,null,null,null,null,null,null,null,null,null,null,null,null,null,null,null,null,null,null,null,null,null,null,null,null,"AUTO EVALUACIÓN ESTUDIANTE ",null,"TOTAL BIMESTRAL","SITUACIÓN BIMESTRAL"]
[null,null,null,"DIMENSIONES ",null,null,null,null,null,null,null,null,null,null,null,null,null,null,null,null,null,null,null,null,null,null,null,null,null,null,null,null,null,null,null,null,null,null,null,null,null,null,null,null,null,null,null,null,"DIMENSIONES "]
[null,null,null,"SER -10",null,null,null,null,null,null,"SABER - 35",null,null,null,null,null,null,null,null,null,null,null,null,null,null,null,"HACER - 35",null,null,null,null,null,null,null,null,null,null,null,null,null,null,null,"DECIDIR - 10 ",null,null,null,null,null,"SER - 5","DECIDIR - 5"]
[null,null,null,"CRITERIOS DE EVALUACIÓN  ",null,null,null,null,null,"VALORACIÓN 10 PUN.",null,null,null,null,null,null,null,null,null,null,null,null,null,null,null,"VALORACIÓN 35 PUN.",null,null,null,null,null,null,null,null,null,null,null,null,null,null,null,"VALORACIÓN 35 PUN.",null,null,null,null,null,"VALORACIÓN 10 PUN."]
[null,"N ","NOMBRES Y APELLIDOS ","ACTIVIDADES"]
[null,1,{"$f":"'C. FILIACION'!C14","v":0},null,null,null,null,null,null,{"$f":"IFERROR((SUM(E19:I19)/(COUNT(E19:I19))),0)","v":0},null,null,null,null,null,null,null,null,null,null,null,null,null,null,null,{"$f":"IFERROR(((SUM(K19:Y19))/(COUNT(K19:Y19))),0)","v":0},null,null,null,null,null,null,null,null,null,null,null,null,null,null,null,{"$f":"IFERROR(((SUM(AA19:AO19))/(COUNT(AA19:AO19))),0)","v":0},null,null,null,null,null,{"$f":"IFERROR(((SUM(AQ19:AU19))/(COUNT(AQ19:AU19))),0)","v":0},null,null,{"$f":"ROUND((SUM(J19,Z19,AP19,AV19,AW19,AX19)),0)","v":0},{"$f":"IF(AY19=0,\"\",(IF(AY19>=51,\"APROBADO\",\"REPROBADO\")))","v":""}]
[null,2,{"$f":"'C. FILIACION'!C15","v":0},null,null,null,null,null,null,{"$f":"IFERROR((SUM(E20:I20)/(COUNT(E20:I20))),0)","v":0},null,null,null,null,null,null,null,null,null,null,null,null,null,null,null,{"$f":"IFERROR(((SUM(K20:Y20))/(COUNT(K20:Y20))),0)","v":0},null,null,null,null,null,null,null,null,null,null,null,null,null,null,null,{"$f":"IFERROR(((SUM(AA20:AO20))/(COUNT(AA20:AO20))),0)","v":0},null,null,null,null,null,{"$f":"IFERROR(((SUM(AQ20:AU20))/(COUNT(AQ20:AU20))),0)","v":0},null,null,{"$f":"ROUND((SUM(J20,Z20,AP20,AV20,AW20,AX20)),0)","v":0},{"$f":"IF(AY20=0,\"\",(IF(AY20>=51,\"APROBADO\",\"REPROBADO\")))","v":""}]
[null,3,{"$f":"'C. FILIACION'!C16","v":0},null,null,null,null,null,null,0,null,null,null,null,null,null,null,null,null,null,null,null,null,null,null,0,null,null,null,null,null,null,null,null,null,null,null,null,null,null,null,0,null,null,null,null,null,0,null,null,0,""]
[null,4,{"$f":"'C. FILIACION'!C17","v":0},null,null,null,null,null,null,0,null,null,null,null,null,null,null,null,null,null,null,null,null,null,null,0,null,null,null,null,null,null,null,null,null,null,null,null,null,null,null,0,null,null,null,null,null,0,null,null,0,""]
[null,5,{"$f":"'C. FILIACION'!C18","v":0},null,null,null,null,null,null,0,null,null,null,null,null,null,null,null,null,null,null,null,null,null,null,0,null,null,null,null,null,null,null,null,null,null,null,null,null,null,null,0,null,null,null,null,null,0,null,null,0,""]
[null,6,{"$f":"'C. FILIACION'!C19","v":0},null,null,null,null,null,null,0,null,null,null,null,null,null,null,null,null,null,null,null,null,null,null,0,null,null,null,null,null,null,null,null,null,null,null,null,null,null,null,0,null,null,null,null,null,0,null,null,0,""]
[null,7,{"$f":"'C. FILIACION'!C20","v":0},null,null,null,null,null,null,0,null,null,null,null,null,null,null,null,null,null,null,null,null,null,null,0,null,null,null,null,null,null,null,null,null,null,null,null,null,null,null,0,null,null,null,null,null,0,null,null,0,""]
[null,8,{"$f":"'C. FILIACION'!C21","v":0},null,null,null,null,null,null,0,null,null,null,null,null,null,null,null,null,null,null,null,null,null,null,0,null,null,null,null,null,null,null,null,null,null,null,null,null,null,null,0,null,null,null,null,null,0,null,null,0,""]
[null,9,{"$f":"'C. FILIACION'!C22","v":0},null,null,null,null,null,null,0,null,null,null,null,null,null,null,null,null,null,null,null,null,null,null,0,null,null,null,null,null,null,null,null,null,null,null,null,null,null,null,0,null,null,null,null,null,0,null,null,0,""]
[null,10,{"$f":"'C. FILIACION'!C23","v":0},null,null,null,null,null,null,0,null,null,null,null,null,null,null,null,null,null,null,null,null,null,null,0,null,null,null,null,null,null,null,null,null,null,null,null,null,null,null,0,null,null,null,null,null,0,null,null,0,""]
[null,11,{"$f":"'C. FILIACION'!C24","v":0},null,null,null,null,null,null,0,null,null,null,null,null,null,null,null,null,null,null,null,null,null,null,0,null,null,null,null,null,null,null,null,null,null,null,null,null,null,null,0,null,null,null,null,null,0,null,null,0,""]
[null,12,{"$f":"'C. FILIACION'!C25","v":0},null,null,null,null,null,null,0,null,null,null,null,null,null,null,null,null,null,null,null,null,null,null,0,null,null,null,null,null,null,null,null,null,null,null,null,null,null,null,0,null,null,null,null,null,0,null,null,0,""]
[null,13,{"$f":"'C. FILIACION'!C26","v":0},null,null,null,null,null,null,0,null,null,null,null,null,null,null,null,null,null,null,null,null,null,null,0,null,null,null,null,null,null,null,null,null,null,null,null,null,null,null,0,null,null,null,null,null,0,null,null,0,""]
[null,14,{"$f":"'C. FILIACION'!C27","v":0},null,null,null,null,null,null,0,null,null,null,null,null,null,null,null,null,null,null,null,null,null,null,0,null,null,null,null,null,null,null,null,null,null,null,null,null,null,null,0,null,null,null,null,null,0,null,null,0,""]
[null,15,{"$f":"'C. FILIACION'!C28","v":0},null,null,null,null,null,null,0,null,null,null,null,null,null,null,null,null,null,null,null,null,null,null,0,null,null,null,null,null,null,null,null,null,null,null,null,null,null,null,0,null,null,null,null,null,0,null,null,0,""]
[null,16,{"$f":"'C. FILIACION'!C29","v":0},null,null,null,null,null,null,0,null,null,null,null,null,null,null,null,null,null,null,null,null,null,null,0,null,null,null,null,null,null,null,null,null,null,null,null,null,null,null,0,null,null,null,null,null,0,null,null,0,""]
[null,17,{"$f":"'C. FILIACION'!C30","v":0},null,null,null,null,null,null,0,null,null,null,null,null,null,null,null,null,null,null,null,null,null,null,0,null,null,null,null,null,null,null,null,null,null,null,null,null,null,null,0,null,null,null,null,null,0,null,null,0,""]
[null,18,{"$f":"'C. FILIACION'!C31","v":0},null,null,null,null,null,null,0,null,null,null,null,null,null,null,null,null,null,null,null,null,null,null,0,null,null,null,null,null,null,null,null,null,null,null,null,null,null,null,0,null,null,null,null,null,0,null,null,0,""]
[null,19,{"$f":"'C. FILIACION'!C32","v":0},null,null,null,null,null,null,0,null,null,null,null,null,null,null,null,null,null,null,null,null,null,null,0,null,null,null,null,null,null,null,null,null,null,null,null,null,null,null,0,null,null,null,null,null,0,null,null,0,""]
[null,20,{"$f":"'C. FILIACION'!C33","v":0},null,null,null,null,null,null,0,null,null,null,null,null,null,null,null,null,null,null,null,null,null,null,0,null,null,null,null,null,null,null,null,null,null,null,null,null,null,null,0,null,null,null,null,null,0,null,null,0,""]
[null,21,{"$f":"'C. FILIACION'!C34","v":0},null,null,null,null,null,null,0,null,null,null,null,null,null,null,null,null,null,null,null,null,null,null,0,null,null,null,null,null,null,null,null,null,null,null,null,null,null,null,0,null,null,null,null,null,0,null,null,0,""]
[null,22,{"$f":"'C. FILIACION'!C35","v":0},null,null,null,null,null,null,0,null,null,null,null,null,null,null,null,null,null,null,null,null,null,null,0,null,null,null,null,null,null,null,null,null,null,null,null,null,null,null,0,null,null,null,null,null,0,null,null,0,""]
[null,23,{"$f":"'C. FILIACION'!C36","v":0},null,null,null,null,null,null,0,null,null,null,null,null,null,null,null,null,null,null,null,null,null,null,0,null,null,null,null,null,null,null,null,null,null,null,null,null,null,null,0,null,null,null,null,null,0,null,null,0,""]
[null,24,{"$f":"'C. FILIACION'!C37","v":0},null,null,null,null,null,null,0,null,null,null,null,null,null,null,null,null,null,null,null,null,null,null,0,null,null,null,null,null,null,null,null,null,null,null,null,null,null,null,0,null,null,null,null,null,0,null,null,0,""]
[null,25,{"$f":"'C. FILIACION'!C38","v":0},null,null,null,null,null,null,0,null,null,null,null,null,null,null,null,null,null,null,null,null,null,null,0,null,null,null,null,null,null,null,null,null,null,null,null,null,null,null,0,null,null,null,null,null,0,null,null,0,""]
[null,26,{"$f":"'C. FILIACION'!C39","v":0},null,null,null,null,null,null,0,null,null,null,null,null,null,null,null,null,null,null,null,null,null,null,0,null,null,null,null,null,null,null,null,null,null,null,null,null,null,null,0,null,null,null,null,null,0,null,null,0,""]
[null,27,{"$f":"'C. FILIACION'!C40","v":0},null,null,null,null,null,null,0,null,null,null,null,null,null,null,null,null,null,null,null,null,null,null,0,null,null,null,null,null,null,null,null,null,null,null,null,null,null,null,0,null,null,null,null,null,0,null,null,0,""]
[null,28,{"$f":"'C. FILIACION'!C41","v":0},null,null,null,null,null,null,0,null,null,null,null,null,null,null,null,null,null,null,null,null,null,null,0,null,null,null,null,null,null,null,null,null,null,null,null,null,null,null,0,null,null,null,null,null,0,null,null,0,""]
[null,29,{"$f":"'C. FILIACION'!C42","v":0},null,null,null,null,null,null,0,null,null,null,null,null,null,null,null,null,null,null,null,null,null,null,0,null,null,null,null,null,null,null,null,null,null,null,null,null,null,null,0,null,null,null,null,null,0,null,null,0,""]
[null,30,{"$f":"'C. FILIACION'!C43","v":0},null,null,null,null,null,null,0,null,null,null,null,null,null,null,null,null,null,null,null,null,null,null,0,null,null,null,null,null,null,null,null,null,null,null,null,null,null,null,0,null,null,null,null,null,0,null,null,0,""]
[null,31,{"$f":"'C. FILIACION'!C44","v":0},null,null,null,null,null,null,0,null,null,null,null,null,null,null,null,null,null,null,null,null,null,null,0,null,null,null,null,null,null,null,null,null,null,null,null,null,null,null,0,null,null,null,null,null,0,null,null,0,""]
[null,32,{"$f":"'C. FILIACION'!C45","v":0},null,null,null,null,null,null,0,null,null,null,null,null,null,null,null,null,null,null,null,null,null,null,0,null,null,null,null,null,null,null,null,null,null,null,null,null,null,null,0,null,null,null,null,null,0,null,null,0,""]
[null,33,{"$f":"'C. FILIACION'!C46","v":0},null,null,null,null,null,null,0,null,null,null,null,null,null,null,null,null,null,null,null,null,null,null,0,null,null,null,null,null,null,null,null,null,null,null,null,null,null,null,0,null,null,null,null,null,0,null,null,0,""]
[null,34,{"$f":"'C. FILIACION'!C47","v":0},null,null,null,null,null,null,0,null,null,null,null,null,null,null,null,null,null,null,null,null,null,null,0,null,null,null,null,null,null,null,null,null,null,null,null,null,null,null,0,null,null,null,null,null,0,null,null,0,""]
[null,35,{"$f":"'C. FILIACION'!C48","v":0},null,null,null,null,null,null,0,null,null,null,null,null,null,null,null,null,null,null,null,null,null,null,0,null,null,null,null,null,null,null,null,null,null,null,null,null,null,null,0,null,null,null,null,null,0,null,null,0,""]
[null,36,{"$f":"'C. FILIACION'!C49","v":0},null,null,null,null,null,null,0,null,null,null,null,null,null,null,null,null,null,null,null,null,null,null,0,null,null,null,null,null,null,null,null,null,null,null,null,null,null,null,0,null,null,null,null,null,0,null,null,0,""]
[null,37,{"$f":"'C. FILIACION'!C50","v":0},null,null,null,null,null,null,0,null,null,null,null,null,null,null,null,null,null,null,null,null,null,null,0,null,null,null,null,null,null,null,null,null,null,null,null,null,null,null,0,null,null,null,null,null,0,null,null,0,""]
[null,38,{"$f":"'C. FILIACION'!C51","v":0},null,null,null,null,null,null,0,null,null,null,null,null,null,null,null,null,null,null,null,null,null,null,0,null,null,null,null,null,null,null,null,null,null,null,null,null,null,null,0,null,null,null,null,null,0,null,null,0,""]
[null,39,{"$f":"'C. FILIACION'!C52","v":0},null,null,null,null,null,null,0,null,null,null,null,null,null,null,null,null,null,null,null,null,null,null,0,null,null,null,null,null,null,null,null,null,null,null,null,null,null,null,0,null,null,null,null,null,0,null,null,0,""]
[null,40,{"$f":"'C. FILIACION'!C53","v":0},null,null,null,null,null,null,0,null,null,null,null,null,null,null,null,null,null,null,null,null,null,null,0,null,null,null,null,null,null,null,null,null,null,null,null,null,null,null,0,null,null,null,null,null,0,null,null,0,""]
[null,41,{"$f":"'C. FILIACION'!C54","v":0},null,null,null,null,null,null,0,null,null,null,null,null,null,null,null,null,null,null,null,null,null,null,0,null,null,null,null,null,null,null,null,null,null,null,null,null,null,null,0,null,null,null,null,null,0,null,null,0,""]
[null,42,{"$f":"'C. FILIACION'!C55","v":0},null,null,null,null,null,null,0,null,null,null,null,null,null,null,null,null,null,null,null,null,null,null,0,null,null,null,null,null,null,null,null,null,null,null,null,null,null,null,0,null,null,null,null,null,0,null,null,0,""]
[null,43,{"$f":"'C. FILIACION'!C56","v":0},null,null,null,null,null,null,0,null,null,null,null,null,null,null,null,null,null,null,null,null,null,null,0,null,null,null,null,null,null,null,null,null,null,null,null,null,null,null,0,null,null,null,null,null,0,null,null,0,""]
[null,44,{"$f":"'C. FILIACION'!C57","v":0},null,null,null,null,null,null,0,null,null,null,null,null,null,null,null,null,null,null,null,null,null,null,0,null,null,null,null,null,null,null,null,null,null,null,null,null,null,null,0,null,null,null,null,null,0,null,null,0,""]
[null,45,{"$f":"'C. FILIACION'!C58","v":0},null,null,null,null,null,null,0,null,null,null,null,null,null,null,null,null,null,null,null,null,null,null,0,null,null,null,null,null,null,null,null,null,null,null,null,null,null,null,0,null,null,null,null,null,0,null,null,0,""]
[]
[]
[]
[]
[null,null,null,null,null,null,null,null,{"$f":"CARATULA!G22","v":0},null,null,null,null,null,null,null,null,null,null,null,null,null,null,null,null,null,null,null,null,null,{"$f":"CARATULA!G24","v":0}]

{"sheet":"ASIS. 4° B","index":10,"n_rows":70,"n_cols":34,"rows_kept":70,"cut":false,"hidden":false,"merged":[[7,4,7,19],[1,1,2,33],[3,1,3,33],[4,4,4,22],[4,24,4,29],[4,30,4,32],[5,4,5,13],[6,4,6,11],[6,13,6,14],[6,17,6,19],[6,24,6,29],[6,30,6,32],[17,2,17,3],[8,4,8,19],[9,4,9,19],[10,4,10,15],[12,1,13,1],[12,2,13,3],[12,4,12,28],[8,24,8,29],[12,29,12,32],[8,30,8,32],[12,33,13,33],[14,2,14,3],[15,2,15,3],[16,2,16,3],[40,2,40,3],[29,2,29,3],[18,2,18,3],[19,2,19,3],[20,2,20,3],[21,2,21,3],[22,2,22,3],[23,2,23,3],[24,2,24,3],[25,2,25,3],[26,2,26,3],[27,2,27,3],[28,2,28,3],[35,2,35,3],[36,2,36,3],[37,2,37,3],[38,2,38,3],[41,2,41,3],[39,2,39,3],[30,2,30,3],[31,2,31,3],[32,2,32,3],[33,2,33,3],[34,2,34,3],[62,20,62,29],[54,2,54,3],[55,2,55,3],[56,2,56,3],[57,2,57,3],[58,2,58,3],[62,4,62,14],[53,2,53,3],[42,2,42,3],[43,2,43,3],[44,2,44,3],[45,2,45,3],[46,2,46,3],[47,2,47,3],[48,2,48,3],[49,2,49,3],[50,2,50,3],[51,2,51,3],[52,2,52,3]]}
[]
[null,"REGISTRO DE ASISTENCIA 4⁰ BIMESTRE "]
[]
[]
[null,null,"UNIDAD EDUCATIVA ",":",{"$f":"CARATULA!G20","v":0},null,null,null,null,null,null,null,null,null,null,null,null,null,null,null,null,null,null,null,"INICIO DE BIMESTRE ",null,null,null,null,null,"2018-09-24"]
[null,null,"NIVEL ",":",{"$f":"CARATULA!G26","v":0}]
[null,null,"AÑO DE ESCOLARIDAD",":",{"$f":"CARATULA!G28","v":0},null,null,null,null,null,null,null,null,null,null,null,null,null,null,null,null,null,null,null,"FIN DE BIMESTRE ",null,null,null,null,null,"2018-12-06"]
[null,null,"DIRECTOR/A",":",{"$f":"CARATULA!G22","v":0}]
[null,null,"MAESTRO/A",":",{"$f":"CARATULA!G24","v":0},null,null,null,null,null,null,null,null,null,null,null,null,null,null,null,null,null,null,null,"FECHA ACTUAL ",null,null,null,null,null,{"$f":"TODAY()","v":"2018-05-07"}]
[null,null,"CAMPO ",":",{"$f":"CARATULA!G30","v":0}]
[null,null,"ÁREA",":",{"$f":"CARATULA!G32","v":0}]
[]
[null,"N","APELLIDOS Y NOMBRES ",null," 4TO BIMESTRE",null,null,null,null,null,null,null,null,null,null,null,null,null,null,null,null,null,null,null,null,null,null,null,null,"TOTALES ",null,null,null," DÍAS TRABAJADOS "]
[null,null,null,null,null,null,null,null,null,null,null,null,null,null,null,null,null,null,null,null,null,null,null,null,null,null,null,null,null,"ASISTENCIAS (A)","FALTAS (F)","RETRASOS (R)","LICENCIAS (L)"]
[null,1,{"$f":"'C. FILIACION'!C14","v":0},null,null,null,null,null,null,null,null,null,null,null,null,null,null,null,null,null,null,null,null,null,null,null,null,null,null,{"$f":"IF(COUNTIF(E15:AC15,\"A\")=0,\"\",COUNTIF(E15:AC15,\"A\"))","v":""},{"$f":"IF(COUNTIF(E15:AC15,\"F\")=0,\"\",COUNTIF(E15:AC15,\"F\"))","v":""},{"$f":"IF(COUNTIF(E15:AC15,\"R\")=0,\"\",COUNTIF(E15:AC15,\"R\"))","v":""},{"$f":"IF(COUNTIF(E15:AC15,\"L\")=0,\"\",COUNTIF(E15:AC15,\"L\"))","v":""},{"$f":"IF((IF(AD15=\"\",0,AD15)+IF(AF15=\"\",0,AF15))=0,\"\",(IF(AD15=\"\",0,AD15)+IF(AF15=\"\",0,AF15)))","v":""}]
[null,2,{"$f":"'C. FILIACION'!C15","v":0},null,null,null,null,null,null,null,null,null,null,null,null,null,null,null,null,null,null,null,null,null,null,null,null,null,null,{"$f":"IF(COUNTIF(E16:AC16,\"A\")=0,\"\",COUNTIF(E16:AC16,\"A\"))","v":""},{"$f":"IF(COUNTIF(E16:AC16,\"F\")=0,\"\",COUNTIF(E16:AC16,\"F\"))","v":""},{"$f":"IF(COUNTIF(E16:AC16,\"R\")=0,\"\",COUNTIF(E16:AC16,\"R\"))","v":""},{"$f":"IF(COUNTIF(E16:AC16,\"L\")=0,\"\",COUNTIF(E16:AC16,\"L\"))","v":""},{"$f":"IF((IF(AD16=\"\",0,AD16)+IF(AF16=\"\",0,AF16))=0,\"\",(IF(AD16=\"\",0,AD16)+IF(AF16=\"\",0,AF16)))","v":""}]
[null,3,{"$f":"'C. FILIACION'!C16","v":0},null,null,null,null,null,null,null,null,null,null,null,null,null,null,null,null,null,null,null,null,null,null,null,null,null,null,"","","","",""]
[null,4,{"$f":"'C. FILIACION'!C17","v":0},null,null,null,null,null,null,null,null,null,null,null,null,null,null,null,null,null,null,null,null,null,null,null,null,null,null,"","","","",""]
[null,5,{"$f":"'C. FILIACION'!C18","v":0},null,null,null,null,null,null,null,null,null,null,null,null,null,null,null,null,null,null,null,null,null,null,null,null,null,null,"","","","",""]
[null,6,{"$f":"'C. FILIACION'!C19","v":0},null,null,null,null,null,null,null,null,null,null,null,null,null,null,null,null,null,null,null,null,null,null,null,null,null,null,"","","","",""]
[null,7,{"$f":"'C. FILIACION'!C20","v":0},null,null,null,null,null,null,null,null,null,null,null,null,null,null,null,null,null,null,null,null,null,null,null,null,null,null,"","","","",""]
[null,8,{"$f":"'C. FILIACION'!C21","v":0},null,null,null,null,null,null,null,null,null,null,null,null,null,null,null,null,null,null,null,null,null,null,null,null,null,null,"","","","",""]
[null,9,{"$f":"'C. FILIACION'!C22","v":0},null,null,null,null,null,null,null,null,null,null,null,null,null,null,null,null,null,null,null,null,null,null,null,null,null,null,"","","","",""]
[null,10,{"$f":"'C. FILIACION'!C23","v":0},null,null,null,null,null,null,null,null,null,null,null,null,null,null,null,null,null,null,null,null,null,null,null,null,null,null,"","","","",""]
[null,11,{"$f":"'C. FILIACION'!C24","v":0},null,null,null,null,null,null,null,null,null,null,null,null,null,null,null,null,null,null,null,null,null,null,null,null,null,null,"","","","",""]
[null,12,{"$f":"'C. FILIACION'!C25","v":0},null,null,null,null,null,null,null,null,null,null,null,null,null,null,null,null,null,null,null,null,null,null,null,null,null,null,"","","","",""]
[null,13,{"$f":"'C. FILIACION'!C26","v":0},null,null,null,null,null,null,null,null,null,null,null,null,null,null,null,null,null,null,null,null,null,null,null,null,null,null,"","","","",""]
[null,14,{"$f":"'C. FILIACION'!C27","v":0},null,null,null,null,null,null,null,null,null,null,null,null,null,null,null,null,null,null,null,null,null,null,null,null,null,null,"","","","",""]
[null,15,{"$f":"'C. FILIACION'!C28","v":0},null,null,null,null,null,null,null,null,null,null,null,null,null,null,null,null,null,null,null,null,null,null,null,null,null,null,"","","","",""]
[null,16,{"$f":"'C. FILIACION'!C29","v":0},null,null,null,null,null,null,null,null,null,null,null,null,null,null,null,null,null,null,null,null,null,null,null,null,null,null,"","","","",""]
[null,17,{"$f":"'C. FILIACION'!C30","v":0},null,null,null,null,null,null,null,null,null,null,null,null,null,null,null,null,null,null,null,null,null,null,null,null,null,null,"","","","",""]
[null,18,{"$f":"'C. FILIACION'!C31","v":0},null,null,null,null,null,null,null,null,null,null,null,null,null,null,null,null,null,null,null,null,null,null,null,null,null,null,"","","","",""]
[null,19,{"$f":"'C. FILIACION'!C32","v":0},null,null,null,null,null,null,null,null,null,null,null,null,null,null,null,null,null,null,null,null,null,null,null,null,null,null,"","","","",""]
[null,20,{"$f":"'C. FILIACION'!C33","v":0},null,null,null,null,null,null,null,null,null,null,null,null,null,null,null,null,null,null,null,null,null,null,null,null,null,null,"","","","",""]
[null,21,{"$f":"'C. FILIACION'!C34","v":0},null,null,null,null,null,null,null,null,null,null,null,null,null,null,null,null,null,null,null,null,null,null,null,null,null,null,"","","","",""]
[null,22,{"$f":"'C. FILIACION'!C35","v":0},null,null,null,null,null,null,null,null,null,null,null,null,null,null,null,null,null,null,null,null,null,null,null,null,null,null,"","","","",""]
[null,23,{"$f":"'C. FILIACION'!C36","v":0},null,null,null,null,null,null,null,null,null,null,null,null,null,null,null,null,null,null,null,null,null,null,null,null,null,null,"","","","",""]
[null,24,{"$f":"'C. FILIACION'!C37","v":0},null,null,null,null,null,null,null,null,null,null,null,null,null,null,null,null,null,null,null,null,null,null,null,null,null,null,"","","","",""]
[null,25,{"$f":"'C. FILIACION'!C38","v":0},null,null,null,null,null,null,null,null,null,null,null,null,null,null,null,null,null,null,null,null,null,null,null,null,null,null,"","","","",""]
[null,26,{"$f":"'C. FILIACION'!C39","v":0},null,null,null,null,null,null,null,null,null,null,null,null,null,null,null,null,null,null,null,null,null,null,null,null,null,null,"","","","",""]
[null,27,{"$f":"'C. FILIACION'!C40","v":0},null,null,null,null,null,null,null,null,null,null,null,null,null,null,null,null,null,null,null,null,null,null,null,null,null,null,"","","","",""]
[null,28,{"$f":"'C. FILIACION'!C41","v":0},null,null,null,null,null,null,null,null,null,null,null,null,null,null,null,null,null,null,null,null,null,null,null,null,null,null,"","","","",""]
[null,29,{"$f":"'C. FILIACION'!C42","v":0},null,null,null,null,null,null,null,null,null,null,null,null,null,null,null,null,null,null,null,null,null,null,null,null,null,null,"","","","",""]
[null,30,{"$f":"'C. FILIACION'!C43","v":0},null,null,null,null,null,null,null,null,null,null,null,null,null,null,null,null,null,null,null,null,null,null,null,null,null,null,"","","","",""]
[null,31,{"$f":"'C. FILIACION'!C44","v":0},null,null,null,null,null,null,null,null,null,null,null,null,null,null,null,null,null,null,null,null,null,null,null,null,null,null,"","","","",""]
[null,32,{"$f":"'C. FILIACION'!C45","v":0},null,null,null,null,null,null,null,null,null,null,null,null,null,null,null,null,null,null,null,null,null,null,null,null,null,null,"","","","",""]
[null,33,{"$f":"'C. FILIACION'!C46","v":0},null,null,null,null,null,null,null,null,null,null,null,null,null,null,null,null,null,null,null,null,null,null,null,null,null,null,"","","","",""]
[null,34,{"$f":"'C. FILIACION'!C47","v":0},null,null,null,null,null,null,null,null,null,null,null,null,null,null,null,null,null,null,null,null,null,null,null,null,null,null,"","","","",""]
[null,35,{"$f":"'C. FILIACION'!C48","v":0},null,null,null,null,null,null,null,null,null,null,null,null,null,null,null,null,null,null,null,null,null,null,null,null,null,null,"","","","",""]
[null,36,{"$f":"'C. FILIACION'!C49","v":0},null,null,null,null,null,null,null,null,null,null,null,null,null,null,null,null,null,null,null,null,null,null,null,null,null,null,"","","","",""]
[null,37,{"$f":"'C. FILIACION'!C50","v":0},null,null,null,null,null,null,null,null,null,null,null,null,null,null,null,null,null,null,null,null,null,null,null,null,null,null,"","","","",""]
[null,38,{"$f":"'C. FILIACION'!C51","v":0},null,null,null,null,null,null,null,null,null,null,null,null,null,null,null,null,null,null,null,null,null,null,null,null,null,null,"","","","",""]
[null,39,{"$f":"'C. FILIACION'!C52","v":0},null,null,null,null,null,null,null,null,null,null,null,null,null,null,null,null,null,null,null,null,null,null,null,null,null,null,"","","","",""]
[null,40,{"$f":"'C. FILIACION'!C53","v":0},null,null,null,null,null,null,null,null,null,null,null,null,null,null,null,null,null,null,null,null,null,null,null,null,null,null,"","","","",""]
[null,41,{"$f":"'C. FILIACION'!C54","v":0},null,null,null,null,null,null,null,null,null,null,null,null,null,null,null,null,null,null,null,null,null,null,null,null,null,null,"","","","",""]
[null,42,{"$f":"'C. FILIACION'!C55","v":0},null,null,null,null,null,null,null,null,null,null,null,null,null,null,null,null,null,null,null,null,null,null,null,null,null,null,"","","","",""]
[null,43,{"$f":"'C. FILIACION'!C56","v":0},null,null,null,null,null,null,null,null,null,null,null,null,null,null,null,null,null,null,null,null,null,null,null,null,null,null,"","","","",""]
[null,44,{"$f":"'C. FILIACION'!C57","v":0},null,null,null,null,null,null,null,null,null,null,null,null,null,null,null,null,null,null,null,null,null,null,null,null,null,null,"","","","",""]
[null,45,{"$f":"'C. FILIACION'!C58","v":0},null,null,null,null,null,null,null,null,null,null,null,null,null,null,null,null,null,null,null,null,null,null,null,null,null,null,"","","","",""]
[]
[]
[]
[null,null,null,null,{"$f":"CARATULA!G22","v":0},null,null,null,null,null,null,null,null,null,null,null,null,null,null,null,{"$f":"CARATULA!G24","v":0}]
[]
[]
[]
[null,null,"INSCRITO "]
[null,null,"NO INCORPORADO"]
[null,null,"RETIRO O ABANDONO"]
[null,null,"EFECTIVO"]

{"sheet":"VAL. 4° B","index":11,"n_rows":68,"n_cols":52,"rows_kept":68,"cut":false,"hidden":false,"merged":[[2,1,3,51],[5,5,5,18],[5,29,5,33],[5,35,5,41],[5,42,5,43],[5,44,11,49],[5,50,6,51],[6,5,6,18],[6,35,6,41],[6,42,6,43],[7,50,11,51],[8,5,8,18],[9,5,9,18],[9,21,9,27],[9,29,9,33],[7,5,7,18],[7,21,7,28],[7,29,7,33],[7,35,7,41],[7,42,7,43],[10,5,10,18],[11,5,11,18],[13,1,16,2],[13,3,13,47],[13,48,13,49],[16,10,16,14],[16,15,16,19],[16,20,16,24],[16,25,17,25],[16,31,16,35],[16,36,16,40],[16,41,17,41],[16,48,17,48],[16,49,17,49],[13,51,17,51],[14,3,14,47],[14,48,14,49],[15,3,15,9],[15,10,15,25],[15,26,15,41],[15,42,15,47],[16,4,16,8],[16,9,17,9],[13,50,17,50],[16,26,16,30],[19,2,19,3],[20,2,20,3],[16,42,16,46],[16,47,17,47],[25,2,25,3],[22,2,22,3],[23,2,23,3],[24,2,24,3],[21,2,21,3],[18,2,18,3],[26,2,26,3],[39,2,39,3],[28,2,28,3],[29,2,29,3],[30,2,30,3],[31,2,31,3],[32,2,32,3],[33,2,33,3],[34,2,34,3],[35,2,35,3],[36,2,36,3],[37,2,37,3],[38,2,38,3],[27,2,27,3],[51,2,51,3],[40,2,40,3],[41,2,41,3],[42,2,42,3],[43,2,43,3],[44,2,44,3],[45,2,45,3],[46,2,46,3],[47,2,47,3],[48,2,48,3],[49,2,49,3],[50,2,50,3],[64,48,64,49],[52,2,52,3],[53,2,53,3],[54,2,54,3],[55,2,55,3],[56,2,56,3],[57,2,57,3],[58,2,58,3],[59,2,59,3],[60,2,60,3],[61,2,61,3],[62,2,62,3],[65,48,65,49],[66,8,66,19],[66,30,66,42],[67,8,67,19],[67,30,67,42]]}
[]
[]
[null,"REGISTRO DE VALORACION 4⁰ BIMESTRE"]
[]
[]
[null,null,"UNIDAD EDUCATIVA ",":",null,{"$f":"CARATULA!G20","v":0},null,null,null,null,null,null,null,null,null,null,null,null,null,null,null,"INICIO DE BIMESTRE ",null,null,null,null,null,null,null,"2018-09-24",null,null,null,null,null,null,null,null,null,null,null,null,null,null,null,null,null,null,null,null,"DÍAS RESTANTES PARA FIN DE BIMESTRE "]
[null,null,"NIVEL ",":",null,{"$f":"CARATULA!G26","v":0},null,null,null,null,null,null,null,null,null,null,null,null,null,null,null,null,null,null,null,null,null,null,null,null,null,null,null,null,null,"N° TOTAL APROBADOS",null,null,null,null,null,null,{"$f":"COUNTIF(AY19:AY63,\">=51\")","v":0}]
[null,null,"AÑO DE ESCOLARIDAD",":",null,{"$f":"CARATULA!G28","v":0},null,null,null,null,null,null,null,null,null,null,null,null,null,null,null,"FIN DE BIMESTRE ",null,null,null,null,null,null,null,"2018-12-06",null,null,null,null,null,"N° TOTAL REPROBADOS",null,null,null,null,null,null,{"$f":"COUNTIFS(AY19:AY63,\">=1\",AY19:AY63,\"<=50\")","v":0},null,null,null,null,null,null,null,{"$f":"AD8-AD10","v":213}]
[null,null,"DIRECTOR/A",":",null,{"$f":"CARATULA!G22","v":0}]
[null,null,"MAESTRO/A",":",null,{"$f":"CARATULA!G24","v":0},null,null,null,null,null,null,null,null,null,null,null,null,null,null,null,"FECHA ACTUAL",null,null,null,null,null,null,null,{"$f":"TODAY()","v":"2018-05-07"}]
[{"$f":"COUNTIF(AY19:AY63,¨>=50)","v":0},null,"CAMPO ",":",null,{"$f":"CARATULA!G30","v":0}]
[null,null,"ÁREA",":",null,{"$f":"CARATULA!G32","v":0}]
[]
[null,null,null,"EVALUACIÓN MAESTRA(O)",null,null,null,null,null,null,null,null,null,null,null,null,null,null,null,null,null,null,null,null,null,null,null,null,null,null,null,null,null,null,null,null,null,null,null,null,null,null,null,null,null,null,null,null,"AUTO EVALUACION ESTUDIANTE ",null," TOTAL BIMESTRAL","SITUACIÓN BIMESTRAL"]
[null,null,null,"DIMENSIONES ",null,null,null,null,null,null,null,null,null,null,null,null,null,null,null,null,null,null,null,null,null,null,null,null,null,null,null,null,null,null,null,null,null,null,null,null,null,null,null,null,null,null,null,null,"DIMENSIONES "]
[null,null,null,"SER -10",null,null,null,null,null,null,"SABER - 35",null,null,null,null,null,null,null,null,null,null,null,null,null,null,null,"HACER - 35",null,null,null,null,null,null,null,null,null,null,null,null,null,null,null,"DECIDIR - 10 ",null,null,null,null,null,"SER - 5","DECIDIR - 5"]
[null,null,null,"CRITERIOS DE EVALUACIÓN  ",null,null,null,null,null,"VALORACIÓN 10 PUN.",null,null,null,null,null,null,null,null,null,null,null,null,null,null,null,"VALORACIÓN 35 PUN.",null,null,null,null,null,null,null,null,null,null,null,null,null,null,null,"VALORACIÓN 35 PUN.",null,null,null,null,null,"VALORACIÓN 10 PUN."]
[null,"N ","NOMBRES Y APELLIDOS ","ACTIVIDADES"]
[null,1,{"$f":"'C. FILIACION'!C14","v":0},null,null,null,null,null,null,{"$f":"IFERROR((SUM(E19:I19)/(COUNT(E19:I19))),0)","v":0},null,null,null,null,null,null,null,null,null,null,null,null,null,null,null,{"$f":"IFERROR(((SUM(K19:Y19))/(COUNT(K19:Y19))),0)","v":0},null,null,null,null,null,null,null,null,null,null,null,null,null,null,null,{"$f":"IFERROR(((SUM(AA19:AO19))/(COUNT(AA19:AO19))),0)","v":0},null,null,null,null,null,{"$f":"IFERROR(((SUM(AQ19:AU19))/(COUNT(AQ19:AU19))),0)","v":0},null,null,{"$f":"ROUND((SUM(J19,Z19,AP19,AV19,AW19,AX19)),0)","v":0},{"$f":"IF(AY19=0,\"\",(IF(AY19>=51,\"APROBADO\",\"REPROBADO\")))","v":""}]
[null,2,{"$f":"'C. FILIACION'!C15","v":0},null,null,null,null,null,null,{"$f":"IFERROR((SUM(E20:I20)/(COUNT(E20:I20))),0)","v":0},null,null,null,null,null,null,null,null,null,null,null,null,null,null,null,{"$f":"IFERROR(((SUM(K20:Y20))/(COUNT(K20:Y20))),0)","v":0},null,null,null,null,null,null,null,null,null,null,null,null,null,null,null,{"$f":"IFERROR(((SUM(AA20:AO20))/(COUNT(AA20:AO20))),0)","v":0},null,null,null,null,null,{"$f":"IFERROR(((SUM(AQ20:AU20))/(COUNT(AQ20:AU20))),0)","v":0},null,null,{"$f":"ROUND((SUM(J20,Z20,AP20,AV20,AW20,AX20)),0)","v":0},{"$f":"IF(AY20=0,\"\",(IF(AY20>=51,\"APROBADO\",\"REPROBADO\")))","v":""}]
[null,3,{"$f":"'C. FILIACION'!C16","v":0},null,null,null,null,null,null,0,null,null,null,null,null,null,null,null,null,null,null,null,null,null,null,0,null,null,null,null,null,null,null,null,null,null,null,null,null,null,null,0,null,null,null,null,null,0,null,null,0,""]
[null,4,{"$f":"'C. FILIACION'!C17","v":0},null,null,null,null,null,null,0,null,null,null,null,null,null,null,null,null,null,null,null,null,null,null,0,null,null,null,null,null,null,null,null,null,null,null,null,null,null,null,0,null,null,null,null,null,0,null,null,0,""]
[null,5,{"$f":"'C. FILIACION'!C18","v":0},null,null,null,null,null,null,0,null,null,null,null,null,null,null,null,null,null,null,null,null,null,null,0,null,null,null,null,null,null,null,null,null,null,null,null,null,null,null,0,null,null,null,null,null,0,null,null,0,""]
[null,6,{"$f":"'C. FILIACION'!C19","v":0},null,null,null,null,null,null,0,null,null,null,null,null,null,null,null,null,null,null,null,null,null,null,0,null,null,null,null,null,null,null,null,null,null,null,null,null,null,null,0,null,null,null,null,null,0,null,null,0,""]
[null,7,{"$f":"'C. FILIACION'!C20","v":0},null,null,null,null,null,null,0,null,null,null,null,null,null,null,null,null,null,null,null,null,null,null,0,null,null,null,null,null,null,null,null,null,null,null,null,null,null,null,0,null,null,null,null,null,0,null,null,0,""]
[null,8,{"$f":"'C. FILIACION'!C21","v":0},null,null,null,null,null,null,0,null,null,null,null,null,null,null,null,null,null,null,null,null,null,null,0,null,null,null,null,null,null,null,null,null,null,null,null,null,null,null,0,null,null,null,null,null,0,null,null,0,""]
[null,9,{"$f":"'C. FILIACION'!C22","v":0},null,null,null,null,null,null,0,null,null,null,null,null,null,null,null,null,null,null,null,null,null,null,0,null,null,null,null,null,null,null,null,null,null,null,null,null,null,null,0,null,null,null,null,null,0,null,null,0,""]
[null,10,{"$f":"'C. FILIACION'!C23","v":0},null,null,null,null,null,null,0,null,null,null,null,null,null,null,null,null,null,null,null,null,null,null,0,null,null,null,null,null,null,null,null,null,null,null,null,null,null,null,0,null,null,null,null,null,0,null,null,0,""]
[null,11,{"$f":"'C. FILIACION'!C24","v":0},null,null,null,null,null,null,0,null,null,null,null,null,null,null,null,null,null,null,null,null,null,null,0,null,null,null,null,null,null,null,null,null,null,null,null,null,null,null,0,null,null,null,null,null,0,null,null,0,""]
[null,12,{"$f":"'C. FILIACION'!C25","v":0},null,null,null,null,null,null,0,null,null,null,null,null,null,null,null,null,null,null,null,null,null,null,0,null,null,null,null,null,null,null,null,null,null,null,null,null,null,null,0,null,null,null,null,null,0,null,null,0,""]
[null,13,{"$f":"'C. FILIACION'!C26","v":0},null,null,null,null,null,null,0,null,null,null,null,null,null,null,null,null,null,null,null,null,null,null,0,null,null,null,null,null,null,null,null,null,null,null,null,null,null,null,0,null,null,null,null,null,0,null,null,0,""]
[null,14,{"$f":"'C. FILIACION'!C27","v":0},null,null,null,null,null,null,0,null,null,null,null,null,null,null,null,null,null,null,null,null,null,null,0,null,null,null,null,null,null,null,null,null,null,null,null,null,null,null,0,null,null,null,null,null,0,null,null,0,""]
[null,15,{"$f":"'C. FILIACION'!C28","v":0},null,null,null,null,null,null,0,null,null,null,null,null,null,null,null,null,null,null,null,null,null,null,0,null,null,null,null,null,null,null,null,null,null,null,null,null,null,null,0,null,null,null,null,null,0,null,null,0,""]
[null,16,{"$f":"'C. FILIACION'!C29","v":0},null,null,null,null,null,null,0,null,null,null,null,null,null,null,null,null,null,null,null,null,null,null,0,null,null,null,null,null,null,null,null,null,null,null,null,null,null,null,0,null,null,null,null,null,0,null,null,0,""]
[null,17,{"$f":"'C. FILIACION'!C30","v":0},null,null,null,null,null,null,0,null,null,null,null,null,null,null,null,null,null,null,null,null,null,null,0,null,null,null,null,null,null,null,null,null,null,null,null,null,null,null,0,null,null,null,null,null,0,null,null,0,""]
[null,18,{"$f":"'C. FILIACION'!C31","v":0},null,null,null,null,null,null,0,null,null,null,null,null,null,null,null,null,null,null,null,null,null,null,0,null,null,null,null,null,null,null,null,null,null,null,null,null,null,null,0,null,null,null,null,null,0,null,null,0,""]
[null,19,{"$f":"'C. FILIACION'!C32","v":0},null,null,null,null,null,null,0,null,null,null,null,null,null,null,null,null,null,null,null,null,null,null,0,null,null,null,null,null,null,null,null,null,null,null,null,null,null,null,0,null,null,null,null,null,0,null,null,0,""]
[null,20,{"$f":"'C. FILIACION'!C33","v":0},null,null,null,null,null,null,0,null,null,null,null,null,null,null,null,null,null,null,null,null,null,null,0,null,null,null,null,null,null,null,null,null,null,null,null,null,null,null,0,null,null,null,null,null,0,null,null,0,""]
[null,21,{"$f":"'C. FILIACION'!C34","v":0},null,null,null,null,null,null,0,null,null,null,null,null,null,null,null,null,null,null,null,null,null,null,0,null,null,null,null,null,null,null,null,null,null,null,null,null,null,null,0,null,null,null,null,null,0,null,null,0,""]
[null,22,{"$f":"'C. FILIACION'!C35","v":0},null,null,null,null,null,null,0,null,null,null,null,null,null,null,null,null,null,null,null,null,null,null,0,null,null,null,null,null,null,null,null,null,null,null,null,null,null,null,0,null,null,null,null,null,0,null,null,0,""]
[null,23,{"$f":"'C. FILIACION'!C36","v":0},null,null,null,null,null,null,0,null,null,null,null,null,null,null,null,null,null,null,null,null,null,null,0,null,null,null,null,null,null,null,null,null,null,null,null,null,null,null,0,null,null,null,null,null,0,null,null,0,""]
[null,24,{"$f":"'C. FILIACION'!C37","v":0},null,null,null,null,null,null,0,null,null,null,null,null,null,null,null,null,null,null,null,null,null,null,0,null,null,null,null,null,null,null,null,null,null,null,null,null,null,null,0,null,null,null,null,null,0,null,null,0,""]
[null,25,{"$f":"'C. FILIACION'!C38","v":0},null,null,null,null,null,null,0,null,null,null,null,null,null,null,null,null,null,null,null,null,null,null,0,null,null,null,null,null,null,null,null,null,null,null,null,null,null,null,0,null,null,null,null,null,0,null,null,0,""]
[null,26,{"$f":"'C. FILIACION'!C39","v":0},null,null,null,null,null,null,0,null,null,null,null,null,null,null,null,null,null,null,null,null,null,null,0,null,null,null,null,null,null,null,null,null,null,null,null,null,null,null,0,null,null,null,null,null,0,null,null,0,""]
[null,27,{"$f":"'C. FILIACION'!C40","v":0},null,null,null,null,null,null,0,null,null,null,null,null,null,null,null,null,null,null,null,null,null,null,0,null,null,null,null,null,null,null,null,null,null,null,null,null,null,null,0,null,null,null,null,null,0,null,null,0,""]
[null,28,{"$f":"'C. FILIACION'!C41","v":0},null,null,null,null,null,null,0,null,null,null,null,null,null,null,null,null,null,null,null,null,null,null,0,null,null,null,null,null,null,null,null,null,null,null,null,null,null,null,0,null,null,null,null,null,0,null,null,0,""]
[null,29,{"$f":"'C. FILIACION'!C42","v":0},null,null,null,null,null,null,0,null,null,null,null,null,null,null,null,null,null,null,null,null,null,null,0,null,null,null,null,null,null,null,null,null,null,null,null,null,null,null,0,null,null,null,null,null,0,null,null,0,""]
[null,30,{"$f":"'C. FILIACION'!C43","v":0},null,null,null,null,null,null,0,null,null,null,null,null,null,null,null,null,null,null,null,null,null,null,0,null,null,null,null,null,null,null,null,null,null,null,null,null,null,null,0,null,null,null,null,null,0,null,null,0,""]
[null,31,{"$f":"'C. FILIACION'!C44","v":0},null,null,null,null,null,null,0,null,null,null,null,null,null,null,null,null,null,null,null,null,null,null,0,null,null,null,null,null,null,null,null,null,null,null,null,null,null,null,0,null,null,null,null,null,0,null,null,0,""]
[null,32,{"$f":"'C. FILIACION'!C45","v":0},null,null,null,null,null,null,0,null,null,null,null,null,null,null,null,null,null,null,null,null,null,null,0,null,null,null,null,null,null,null,null,null,null,null,null,null,null,null,0,null,null,null,null,null,0,null,null,0,""]
[null,33,{"$f":"'C. FILIACION'!C46","v":0},null,null,null,null,null,null,0,null,null,null,null,null,null,null,null,null,null,null,null,null,null,null,0,null,null,null,null,null,null,null,null,null,null,null,null,null,null,null,0,null,null,null,null,null,0,null,null,0,""]
[null,34,{"$f":"'C. FILIACION'!C47","v":0},null,null,null,null,null,null,0,null,null,null,null,null,null,null,null,null,null,null,null,null,null,null,0,null,null,null,null,null,null,null,null,null,null,null,null,null,null,null,0,null,null,null,null,null,0,null,null,0,""]
[null,35,{"$f":"'C. FILIACION'!C48","v":0},null,null,null,null,null,null,0,null,null,null,null,null,null,null,null,null,null,null,null,null,null,null,0,null,null,null,null,null,null,null,null,null,null,null,null,null,null,null,0,null,null,null,null,null,0,null,null,0,""]
[null,36,{"$f":"'C. FILIACION'!C49","v":0},null,null,null,null,null,null,0,null,null,null,null,null,null,null,null,null,null,null,null,null,null,null,0,null,null,null,null,null,null,null,null,null,null,null,null,null,null,null,0,null,null,null,null,null,0,null,null,0,""]
[null,37,{"$f":"'C. FILIACION'!C50","v":0},null,null,null,null,null,null,0,null,null,null,null,null,null,null,null,null,null,null,null,null,null,null,0,null,null,null,null,null,null,null,null,null,null,null,null,null,null,null,0,null,null,null,null,null,0,null,null,0,""]
[null,38,{"$f":"'C. FILIACION'!C51","v":0},null,null,null,null,null,null,0,null,null,null,null,null,null,null,null,null,null,null,null,null,null,null,0,null,null,null,null,null,null,null,null,null,null,null,null,null,null,null,0,null,null,null,null,null,0,null,null,0,""]
[null,39,{"$f":"'C. FILIACION'!C52","v":0},null,null,null,null,null,null,0,null,null,null,null,null,null,null,null,null,null,null,null,null,null,null,0,null,null,null,null,null,null,null,null,null,null,null,null,null,null,null,0,null,null,null,null,null,0,null,null,0,""]
[null,40,{"$f":"'C. FILIACION'!C53","v":0},null,null,null,null,null,null,0,null,null,null,null,null,null,null,null,null,null,null,null,null,null,null,0,null,null,null,null,null,null,null,null,null,null,null,null,null,null,null,0,null,null,null,null,null,0,null,null,0,""]
[null,41,{"$f":"'C. FILIACION'!C54","v":0},null,null,null,null,null,null,0,null,null,null,null,null,null,null,null,null,null,null,null,null,null,null,0,null,null,null,null,null,null,null,null,null,null,null,null,null,null,null,0,null,null,null,null,null,0,null,null,0,""]
[null,42,{"$f":"'C. FILIACION'!C55","v":0},null,null,null,null,null,null,0,null,null,null,null,null,null,null,null,null,null,null,null,null,null,null,0,null,null,null,null,null,null,null,null,null,null,null,null,null,null,null,0,null,null,null,null,null,0,null,null,0,""]
[null,43,{"$f":"'C. FILIACION'!C56","v":0},null,null,null,null,null,null,0,null,null,null,null,null,null,null,null,null,null,null,null,null,null,null,0,null,null,null,null,null,null,null,null,null,null,null,null,null,null,null,0,null,null,null,null,null,0,null,null,0,""]
[null,44,{"$f":"'C. FILIACION'!C57","v":0},null,null,null,null,null,null,0,null,null,null,null,null,null,null,null,null,null,null,null,null,null,null,0,null,null,null,null,null,null,null,null,null,null,null,null,null,null,null,0,null,null,null,null,null,0,null,null,0,""]
[null,45,{"$f":"'C. FILIACION'!C58","v":0},null,null,null,null,null,null,0,null,null,null,null,null,null,null,null,null,null,null,null,null,null,null,0,null,null,null,null,null,null,null,null,null,null,null,null,null,null,null,0,null,null,null,null,null,0,null,null,0,""]
[]
[]
[]
[]
[null,null,null,null,null,null,null,null,{"$f":"CARATULA!G22","v":0},null,null,null,null,null,null,null,null,null,null,null,null,null,null,null,null,null,null,null,null,null,{"$f":"CARATULA!G24","v":0}]

{"sheet":"CENTRALIZADOR","index":12,"n_rows":63,"n_cols":33,"rows_kept":63,"cut":false,"hidden":false,"merged":[[62,3,62,10],[62,17,62,24],[5,3,5,6],[7,3,7,16],[8,3,8,16],[9,3,9,16],[11,24,11,30],[9,18,9,25],[8,27,8,31],[9,27,9,31],[5,9,5,12],[5,13,5,16],[11,31,13,31],[1,1,1,26],[1,27,1,32],[6,3,6,15],[8,18,8,19],[8,20,8,21],[8,22,8,23],[8,24,8,25],[4,3,4,16],[3,3,3,16],[11,1,13,1],[11,2,13,2],[11,3,11,9],[11,10,11,16],[11,17,11,23],[12,3,12,6],[11,32,13,32],[12,7,12,8],[12,9,13,9],[12,10,12,13],[12,14,12,15],[12,16,13,16],[12,17,12,20],[12,21,12,22],[12,23,13,23],[12,24,12,27],[12,28,12,29],[12,30,13,30]]}
[]
[null,"                CENTRALIZADOR DE NOTAS ",null,null,null,null,null,null,null,null,null,null,null,null,null,null,null,null,null,null,null,null,null,null,null,null,null,{"$f":"TODAY()","v":"2018-05-07"}]
[]
[null,null,"UNIDAD EDUCATIVA ",{"$f":"CARATULA!G20","v":0}]
[null,null,"NIVEL ",{"$f":"CARATULA!G26","v":0}]
[null,null,"AÑO DE ESCOLARIDAD",{"$f":"CARATULA!G28","v":0}]
[null,null,"DIRECTOR(A)",{"$f":"CARATULA!G22","v":0}]
[null,null,"MAESTRO(A)",{"$f":"CARATULA!G24","v":0}]
[null,null,"CAMPO ",{"$f":"CARATULA!G30","v":0},null,null,null,null,null,null,null,null,null,null,null,null,null,null,{"$f":"COUNTIF(J15:J59,\">=51\")","v":0},null,{"$f":"COUNTIF(Q15:Q59,\">=51\")","v":0},null,{"$f":"COUNTIF(X15:X59,\">=51\")","v":0},null,{"$f":"COUNTIF(AE15:AE59,\">=51\")","v":0},null,null,"% TOTAL APROBADOS ",null,null,null,null,{"$f":"COUNTIF(AG15:AG59,\"APROBADO\")","v":0}]
[null,null,"ÁREA",{"$f":"CARATULA!G32","v":0},null,null,null,null,null,null,null,null,null,null,null,null,null,null,"N° APROBADOS POR BIMESTRE ",null,null,null,null,null,null,null,null,"% TOTAL REPROBADOS ",null,null,null,null,{"$f":"COUNTIF(AG15:AG59,\"REPROBADO\")","v":0}]
[]
[null,"N","NOMBRE ","1° BIMESTRE ",null,null,null,null,null,null,"2° BIMESTRE ",null,null,null,null,null,null,"3° BIMESTRE ",null,null,null,null,null,null,"4° BIMESTRE ",null,null,null,null,null,null,"PROMEDIO FINAL ","ESTADO ACTUAL DEL ESTUDIANTE "]
[null,null,null,"EV. MAESTRO",null,null,null,"EV.EST.",null,"SUMA TOTAL","EV. MAESTRO",null,null,null,"EV.EST.",null,"SUMA TOTAL ","EV. MAESTRO",null,null,null,"EV.EST.",null,"SUMA TOTAL ","EV. MAESTRO",null,null,null,"EV.EST.",null,"SUMA TOTAL "]
[null,null,null,"SER","SABER ","HACER ","DECIDIR","SER","DECIDIR",null,"SER","SABER ","HACER ","DECIDIR","SER","DECIDIR",null,"SER","SABER ","HACER ","DECIDIR","SER","DECIDIR",null,"SER","SABER ","HACER ","DECIDIR","SER","DECIDIR"]
[null,1,{"$f":"'C. FILIACION'!C14:D14","v":0},{"$f":"'VAL. 1° B'!J19","v":0},{"$f":"'VAL. 1° B'!Z19","v":0},{"$f":"'VAL. 1° B'!AP19","v":0},{"$f":"'VAL. 1° B'!AV19","v":0},{"$f":"'VAL. 1° B'!AW19","v":0},{"$f":"'VAL. 1° B'!AX19","v":0},{"$f":"SUM(D15:I15)","v":0},{"$f":"'VAL. 2° B'!J19","v":0},{"$f":"'VAL. 2° B'!Z19","v":0},{"$f":"'VAL. 2° B'!AP19","v":0},{"$f":"'VAL. 2° B'!AV19","v":0},{"$f":"'VAL. 2° B'!AW19","v":0},{"$f":"'VAL. 2° B'!AX19","v":0},{"$f":"SUM(K15:P15)","v":0},{"$f":"'VAL. 3° B'!J19","v":0},{"$f":"'VAL. 3° B'!Z19","v":0},{"$f":"'VAL. 3° B'!AP19","v":0},{"$f":"'VAL. 3° B'!AV19","v":0},{"$f":"'VAL. 3° B'!AW19","v":0},{"$f":"'VAL. 3° B'!AX19","v":0},{"$f":"SUM(R15:W15)","v":0},{"$f":"'VAL. 4° B'!J19","v":0},{"$f":"'VAL. 4° B'!Z19","v":0},{"$f":"'VAL. 4° B'!AP19","v":0},{"$f":"'VAL. 4° B'!AV19","v":0},{"$f":"'VAL. 4° B'!AW19","v":0},{"$f":"'VAL. 4° B'!AX19","v":0},{"$f":"SUM(Y15:AD15)","v":0},{"$f":"ROUND(IF((J15+Q15+X15+AE15)<0,\"\",(J15+Q15+X15+AE15)/(IF(COUNT(J15,Q15,X15,AE15)=0,\"\",COUNT(J15,Q15,X15,AE15)))),0)","v":0},{"$f":"IF(AF15<1,\"\",(IF(AF15>50,\"APROBADO\",\"REPROBADO\")))","v":""}]
[null,2,{"$f":"'C. FILIACION'!C15:D15","v":0},{"$f":"'VAL. 1° B'!J20","v":0},{"$f":"'VAL. 1° B'!Z20","v":0},{"$f":"'VAL. 1° B'!AP20","v":0},{"$f":"'VAL. 1° B'!AV20","v":0},{"$f":"'VAL. 1° B'!AW20","v":0},{"$f":"'VAL. 1° B'!AX20","v":0},{"$f":"SUM(D16:I16)","v":0},{"$f":"'VAL. 2° B'!J20","v":0},{"$f":"'VAL. 2° B'!Z20","v":0},{"$f":"'VAL. 2° B'!AP20","v":0},{"$f":"'VAL. 2° B'!AV20","v":0},{"$f":"'VAL. 2° B'!AW20","v":0},{"$f":"'VAL. 2° B'!AX20","v":0},{"$f":"SUM(K16:P16)","v":0},{"$f":"'VAL. 3° B'!J20","v":0},{"$f":"'VAL. 3° B'!Z20","v":0},{"$f":"'VAL. 3° B'!AP20","v":0},{"$f":"'VAL. 3° B'!AV20","v":0},{"$f":"'VAL. 3° B'!AW20","v":0},{"$f":"'VAL. 3° B'!AX20","v":0},{"$f":"SUM(R16:W16)","v":0},{"$f":"'VAL. 4° B'!J20","v":0},{"$f":"'VAL. 4° B'!Z20","v":0},{"$f":"'VAL. 4° B'!AP20","v":0},{"$f":"'VAL. 4° B'!AV20","v":0},{"$f":"'VAL. 4° B'!AW20","v":0},{"$f":"'VAL. 4° B'!AX20","v":0},{"$f":"SUM(Y16:AD16)","v":0},0,""]
[null,3,{"$f":"'C. FILIACION'!C16:D16","v":0},{"$f":"'VAL. 1° B'!J21","v":0},{"$f":"'VAL. 1° B'!Z21","v":0},{"$f":"'VAL. 1° B'!AP21","v":0},{"$f":"'VAL. 1° B'!AV21","v":0},{"$f":"'VAL. 1° B'!AW21","v":0},{"$f":"'VAL. 1° B'!AX21","v":0},0,{"$f":"'VAL. 2° B'!J21","v":0},{"$f":"'VAL. 2° B'!Z21","v":0},{"$f":"'VAL. 2° B'!AP21","v":0},{"$f":"'VAL. 2° B'!AV21","v":0},{"$f":"'VAL. 2° B'!AW21","v":0},{"$f":"'VAL. 2° B'!AX21","v":0},0,{"$f":"'VAL. 3° B'!J21","v":0},{"$f":"'VAL. 3° B'!Z21","v":0},{"$f":"'VAL. 3° B'!AP21","v":0},{"$f":"'VAL. 3° B'!AV21","v":0},{"$f":"'VAL. 3° B'!AW21","v":0},{"$f":"'VAL. 3° B'!AX21","v":0},0,{"$f":"'VAL. 4° B'!J21","v":0},{"$f":"'VAL. 4° B'!Z21","v":0},{"$f":"'VAL. 4° B'!AP21","v":0},{"$f":"'VAL. 4° B'!AV21","v":0},{"$f":"'VAL. 4° B'!AW21","v":0},{"$f":"'VAL. 4° B'!AX21","v":0},0,0,""]
[null,4,{"$f":"'C. FILIACION'!C17:D17","v":0},{"$f":"'VAL. 1° B'!J22","v":0},{"$f":"'VAL. 1° B'!Z22","v":0},{"$f":"'VAL. 1° B'!AP22","v":0},{"$f":"'VAL. 1° B'!AV22","v":0},{"$f":"'VAL. 1° B'!AW22","v":0},{"$f":"'VAL. 1° B'!AX22","v":0},0,{"$f":"'VAL. 2° B'!J22","v":0},{"$f":"'VAL. 2° B'!Z22","v":0},{"$f":"'VAL. 2° B'!AP22","v":0},{"$f":"'VAL. 2° B'!AV22","v":0},{"$f":"'VAL. 2° B'!AW22","v":0},{"$f":"'VAL. 2° B'!AX22","v":0},0,{"$f":"'VAL. 3° B'!J22","v":0},{"$f":"'VAL. 3° B'!Z22","v":0},{"$f":"'VAL. 3° B'!AP22","v":0},{"$f":"'VAL. 3° B'!AV22","v":0},{"$f":"'VAL. 3° B'!AW22","v":0},{"$f":"'VAL. 3° B'!AX22","v":0},0,{"$f":"'VAL. 4° B'!J22","v":0},{"$f":"'VAL. 4° B'!Z22","v":0},{"$f":"'VAL. 4° B'!AP22","v":0},{"$f":"'VAL. 4° B'!AV22","v":0},{"$f":"'VAL. 4° B'!AW22","v":0},{"$f":"'VAL. 4° B'!AX22","v":0},0,0,""]
[null,5,{"$f":"'C. FILIACION'!C18:D18","v":0},{"$f":"'VAL. 1° B'!J23","v":0},{"$f":"'VAL. 1° B'!Z23","v":0},{"$f":"'VAL. 1° B'!AP23","v":0},{"$f":"'VAL. 1° B'!AV23","v":0},{"$f":"'VAL. 1° B'!AW23","v":0},{"$f":"'VAL. 1° B'!AX23","v":0},{"$f":"SUM(D19:I19)","v":0},{"$f":"'VAL. 2° B'!J23","v":0},{"$f":"'VAL. 2° B'!Z23","v":0},{"$f":"'VAL. 2° B'!AP23","v":0},{"$f":"'VAL. 2° B'!AV23","v":0},{"$f":"'VAL. 2° B'!AW23","v":0},{"$f":"'VAL. 2° B'!AX23","v":0},0,{"$f":"'VAL. 3° B'!J23","v":0},{"$f":"'VAL. 3° B'!Z23","v":0},{"$f":"'VAL. 3° B'!AP23","v":0},{"$f":"'VAL. 3° B'!AV23","v":0},{"$f":"'VAL. 3° B'!AW23","v":0},{"$f":"'VAL. 3° B'!AX23","v":0},0,{"$f":"'VAL. 4° B'!J23","v":0},{"$f":"'VAL. 4° B'!Z23","v":0},{"$f":"'VAL. 4° B'!AP23","v":0},{"$f":"'VAL. 4° B'!AV23","v":0},{"$f":"'VAL. 4° B'!AW23","v":0},{"$f":"'VAL. 4° B'!AX23","v":0},0,0,""]
[null,6,{"$f":"'C. FILIACION'!C19:D19","v":0},{"$f":"'VAL. 1° B'!J24","v":0},{"$f":"'VAL. 1° B'!Z24","v":0},{"$f":"'VAL. 1° B'!AP24","v":0},{"$f":"'VAL. 1° B'!AV24","v":0},{"$f":"'VAL. 1° B'!AW24","v":0},{"$f":"'VAL. 1° B'!AX24","v":0},0,{"$f":"'VAL. 2° B'!J24","v":0},{"$f":"'VAL. 2° B'!Z24","v":0},{"$f":"'VAL. 2° B'!AP24","v":0},{"$f":"'VAL. 2° B'!AV24","v":0},{"$f":"'VAL. 2° B'!AW24","v":0},{"$f":"'VAL. 2° B'!AX24","v":0},0,{"$f":"'VAL. 3° B'!J24","v":0},{"$f":"'VAL. 3° B'!Z24","v":0},{"$f":"'VAL. 3° B'!AP24","v":0},{"$f":"'VAL. 3° B'!AV24","v":0},{"$f":"'VAL. 3° B'!AW24","v":0},{"$f":"'VAL. 3° B'!AX24","v":0},0,{"$f":"'VAL. 4° B'!J24","v":0},{"$f":"'VAL. 4° B'!Z24","v":0},{"$f":"'VAL. 4° B'!AP24","v":0},{"$f":"'VAL. 4° B'!AV24","v":0},{"$f":"'VAL. 4° B'!AW24","v":0},{"$f":"'VAL. 4° B'!AX24","v":0},0,0,""]
[null,7,{"$f":"'C. FILIACION'!C20:D20","v":0},{"$f":"'VAL. 1° B'!J25","v":0},{"$f":"'VAL. 1° B'!Z25","v":0},{"$f":"'VAL. 1° B'!AP25","v":0},{"$f":"'VAL. 1° B'!AV25","v":0},{"$f":"'VAL. 1° B'!AW25","v":0},{"$f":"'VAL. 1° B'!AX25","v":0},0,{"$f":"'VAL. 2° B'!J25","v":0},{"$f":"'VAL. 2° B'!Z25","v":0},{"$f":"'VAL. 2° B'!AP25","v":0},{"$f":"'VAL. 2° B'!AV25","v":0},{"$f":"'VAL. 2° B'!AW25","v":0},{"$f":"'VAL. 2° B'!AX25","v":0},0,{"$f":"'VAL. 3° B'!J25","v":0},{"$f":"'VAL. 3° B'!Z25","v":0},{"$f":"'VAL. 3° B'!AP25","v":0},{"$f":"'VAL. 3° B'!AV25","v":0},{"$f":"'VAL. 3° B'!AW25","v":0},{"$f":"'VAL. 3° B'!AX25","v":0},0,{"$f":"'VAL. 4° B'!J25","v":0},{"$f":"'VAL. 4° B'!Z25","v":0},{"$f":"'VAL. 4° B'!AP25","v":0},{"$f":"'VAL. 4° B'!AV25","v":0},{"$f":"'VAL. 4° B'!AW25","v":0},{"$f":"'VAL. 4° B'!AX25","v":0},0,0,""]
[null,8,{"$f":"'C. FILIACION'!C21:D21","v":0},{"$f":"'VAL. 1° B'!J26","v":0},{"$f":"'VAL. 1° B'!Z26","v":0},{"$f":"'VAL. 1° B'!AP26","v":0},{"$f":"'VAL. 1° B'!AV26","v":0},{"$f":"'VAL. 1° B'!AW26","v":0},{"$f":"'VAL. 1° B'!AX26","v":0},0,{"$f":"'VAL. 2° B'!J26","v":0},{"$f":"'VAL. 2° B'!Z26","v":0},{"$f":"'VAL. 2° B'!AP26","v":0},{"$f":"'VAL. 2° B'!AV26","v":0},{"$f":"'VAL. 2° B'!AW26","v":0},{"$f":"'VAL. 2° B'!AX26","v":0},0,{"$f":"'VAL. 3° B'!J26","v":0},{"$f":"'VAL. 3° B'!Z26","v":0},{"$f":"'VAL. 3° B'!AP26","v":0},{"$f":"'VAL. 3° B'!AV26","v":0},{"$f":"'VAL. 3° B'!AW26","v":0},{"$f":"'VAL. 3° B'!AX26","v":0},0,{"$f":"'VAL. 4° B'!J26","v":0},{"$f":"'VAL. 4° B'!Z26","v":0},{"$f":"'VAL. 4° B'!AP26","v":0},{"$f":"'VAL. 4° B'!AV26","v":0},{"$f":"'VAL. 4° B'!AW26","v":0},{"$f":"'VAL. 4° B'!AX26","v":0},0,0,""]
[null,9,{"$f":"'C. FILIACION'!C22:D22","v":0},{"$f":"'VAL. 1° B'!J27","v":0},{"$f":"'VAL. 1° B'!Z27","v":0},{"$f":"'VAL. 1° B'!AP27","v":0},{"$f":"'VAL. 1° B'!AV27","v":0},{"$f":"'VAL. 1° B'!AW27","v":0},{"$f":"'VAL. 1° B'!AX27","v":0},0,{"$f":"'VAL. 2° B'!J27","v":0},{"$f":"'VAL. 2° B'!Z27","v":0},{"$f":"'VAL. 2° B'!AP27","v":0},{"$f":"'VAL. 2° B'!AV27","v":0},{"$f":"'VAL. 2° B'!AW27","v":0},{"$f":"'VAL. 2° B'!AX27","v":0},0,{"$f":"'VAL. 3° B'!J27","v":0},{"$f":"'VAL. 3° B'!Z27","v":0},{"$f":"'VAL. 3° B'!AP27","v":0},{"$f":"'VAL. 3° B'!AV27","v":0},{"$f":"'VAL. 3° B'!AW27","v":0},{"$f":"'VAL. 3° B'!AX27","v":0},0,{"$f":"'VAL. 4° B'!J27","v":0},{"$f":"'VAL. 4° B'!Z27","v":0},{"$f":"'VAL. 4° B'!AP27","v":0},{"$f":"'VAL. 4° B'!AV27","v":0},{"$f":"'VAL. 4° B'!AW27","v":0},{"$f":"'VAL. 4° B'!AX27","v":0},0,0,""]
[null,10,{"$f":"'C. FILIACION'!C23:D23","v":0},{"$f":"'VAL. 1° B'!J28","v":0},{"$f":"'VAL. 1° B'!Z28","v":0},{"$f":"'VAL. 1° B'!AP28","v":0},{"$f":"'VAL. 1° B'!AV28","v":0},{"$f":"'VAL. 1° B'!AW28","v":0},{"$f":"'VAL. 1° B'!AX28","v":0},0,{"$f":"'VAL. 2° B'!J28","v":0},{"$f":"'VAL. 2° B'!Z28","v":0},{"$f":"'VAL. 2° B'!AP28","v":0},{"$f":"'VAL. 2° B'!AV28","v":0},{"$f":"'VAL. 2° B'!AW28","v":0},{"$f":"'VAL. 2° B'!AX28","v":0},0,{"$f":"'VAL. 3° B'!J28","v":0},{"$f":"'VAL. 3° B'!Z28","v":0},{"$f":"'VAL. 3° B'!AP28","v":0},{"$f":"'VAL. 3° B'!AV28","v":0},{"$f":"'VAL. 3° B'!AW28","v":0},{"$f":"'VAL. 3° B'!AX28","v":0},0,{"$f":"'VAL. 4° B'!J28","v":0},{"$f":"'VAL. 4° B'!Z28","v":0},{"$f":"'VAL. 4° B'!AP28","v":0},{"$f":"'VAL. 4° B'!AV28","v":0},{"$f":"'VAL. 4° B'!AW28","v":0},{"$f":"'VAL. 4° B'!AX28","v":0},0,0,""]
[null,11,{"$f":"'C. FILIACION'!C24:D24","v":0},{"$f":"'VAL. 1° B'!J29","v":0},{"$f":"'VAL. 1° B'!Z29","v":0},{"$f":"'VAL. 1° B'!AP29","v":0},{"$f":"'VAL. 1° B'!AV29","v":0},{"$f":"'VAL. 1° B'!AW29","v":0},{"$f":"'VAL. 1° B'!AX29","v":0},0,{"$f":"'VAL. 2° B'!J29","v":0},{"$f":"'VAL. 2° B'!Z29","v":0},{"$f":"'VAL. 2° B'!AP29","v":0},{"$f":"'VAL. 2° B'!AV29","v":0},{"$f":"'VAL. 2° B'!AW29","v":0},{"$f":"'VAL. 2° B'!AX29","v":0},0,{"$f":"'VAL. 3° B'!J29","v":0},{"$f":"'VAL. 3° B'!Z29","v":0},{"$f":"'VAL. 3° B'!AP29","v":0},{"$f":"'VAL. 3° B'!AV29","v":0},{"$f":"'VAL. 3° B'!AW29","v":0},{"$f":"'VAL. 3° B'!AX29","v":0},0,{"$f":"'VAL. 4° B'!J29","v":0},{"$f":"'VAL. 4° B'!Z29","v":0},{"$f":"'VAL. 4° B'!AP29","v":0},{"$f":"'VAL. 4° B'!AV29","v":0},{"$f":"'VAL. 4° B'!AW29","v":0},{"$f":"'VAL. 4° B'!AX29","v":0},0,0,""]
[null,12,{"$f":"'C. FILIACION'!C25:D25","v":0},{"$f":"'VAL. 1° B'!J30","v":0},{"$f":"'VAL. 1° B'!Z30","v":0},{"$f":"'VAL. 1° B'!AP30","v":0},{"$f":"'VAL. 1° B'!AV30","v":0},{"$f":"'VAL. 1° B'!AW30","v":0},{"$f":"'VAL. 1° B'!AX30","v":0},0,{"$f":"'VAL. 2° B'!J30","v":0},{"$f":"'VAL. 2° B'!Z30","v":0},{"$f":"'VAL. 2° B'!AP30","v":0},{"$f":"'VAL. 2° B'!AV30","v":0},{"$f":"'VAL. 2° B'!AW30","v":0},{"$f":"'VAL. 2° B'!AX30","v":0},0,{"$f":"'VAL. 3° B'!J30","v":0},{"$f":"'VAL. 3° B'!Z30","v":0},{"$f":"'VAL. 3° B'!AP30","v":0},{"$f":"'VAL. 3° B'!AV30","v":0},{"$f":"'VAL. 3° B'!AW30","v":0},{"$f":"'VAL. 3° B'!AX30","v":0},0,{"$f":"'VAL. 4° B'!J30","v":0},{"$f":"'VAL. 4° B'!Z30","v":0},{"$f":"'VAL. 4° B'!AP30","v":0},{"$f":"'VAL. 4° B'!AV30","v":0},{"$f":"'VAL. 4° B'!AW30","v":0},{"$f":"'VAL. 4° B'!AX30","v":0},0,0,""]
[null,13,{"$f":"'C. FILIACION'!C26:D26","v":0},{"$f":"'VAL. 1° B'!J31","v":0},{"$f":"'VAL. 1° B'!Z31","v":0},{"$f":"'VAL. 1° B'!AP31","v":0},{"$f":"'VAL. 1° B'!AV31","v":0},{"$f":"'VAL. 1° B'!AW31","v":0},{"$f":"'VAL. 1° B'!AX31","v":0},0,{"$f":"'VAL. 2° B'!J31","v":0},{"$f":"'VAL. 2° B'!Z31","v":0},{"$f":"'VAL. 2° B'!AP31","v":0},{"$f":"'VAL. 2° B'!AV31","v":0},{"$f":"'VAL. 2° B'!AW31","v":0},{"$f":"'VAL. 2° B'!AX31","v":0},0,{"$f":"'VAL. 3° B'!J31","v":0},{"$f":"'VAL. 3° B'!Z31","v":0},{"$f":"'VAL. 3° B'!AP31","v":0},{"$f":"'VAL. 3° B'!AV31","v":0},{"$f":"'VAL. 3° B'!AW31","v":0},{"$f":"'VAL. 3° B'!AX31","v":0},0,{"$f":"'VAL. 4° B'!J31","v":0},{"$f":"'VAL. 4° B'!Z31","v":0},{"$f":"'VAL. 4° B'!AP31","v":0},{"$f":"'VAL. 4° B'!AV31","v":0},{"$f":"'VAL. 4° B'!AW31","v":0},{"$f":"'VAL. 4° B'!AX31","v":0},0,0,""]
[null,14,{"$f":"'C. FILIACION'!C27:D27","v":0},{"$f":"'VAL. 1° B'!J32","v":0},{"$f":"'VAL. 1° B'!Z32","v":0},{"$f":"'VAL. 1° B'!AP32","v":0},{"$f":"'VAL. 1° B'!AV32","v":0},{"$f":"'VAL. 1° B'!AW32","v":0},{"$f":"'VAL. 1° B'!AX32","v":0},0,{"$f":"'VAL. 2° B'!J32","v":0},{"$f":"'VAL. 2° B'!Z32","v":0},{"$f":"'VAL. 2° B'!AP32","v":0},{"$f":"'VAL. 2° B'!AV32","v":0},{"$f":"'VAL. 2° B'!AW32","v":0},{"$f":"'VAL. 2° B'!AX32","v":0},0,{"$f":"'VAL. 3° B'!J32","v":0},{"$f":"'VAL. 3° B'!Z32","v":0},{"$f":"'VAL. 3° B'!AP32","v":0},{"$f":"'VAL. 3° B'!AV32","v":0},{"$f":"'VAL. 3° B'!AW32","v":0},{"$f":"'VAL. 3° B'!AX32","v":0},0,{"$f":"'VAL. 4° B'!J32","v":0},{"$f":"'VAL. 4° B'!Z32","v":0},{"$f":"'VAL. 4° B'!AP32","v":0},{"$f":"'VAL. 4° B'!AV32","v":0},{"$f":"'VAL. 4° B'!AW32","v":0},{"$f":"'VAL. 4° B'!AX32","v":0},0,0,""]
[null,15,{"$f":"'C. FILIACION'!C28:D28","v":0},{"$f":"'VAL. 1° B'!J33","v":0},{"$f":"'VAL. 1° B'!Z33","v":0},{"$f":"'VAL. 1° B'!AP33","v":0},{"$f":"'VAL. 1° B'!AV33","v":0},{"$f":"'VAL. 1° B'!AW33","v":0},{"$f":"'VAL. 1° B'!AX33","v":0},0,{"$f":"'VAL. 2° B'!J33","v":0},{"$f":"'VAL. 2° B'!Z33","v":0},{"$f":"'VAL. 2° B'!AP33","v":0},{"$f":"'VAL. 2° B'!AV33","v":0},{"$f":"'VAL. 2° B'!AW33","v":0},{"$f":"'VAL. 2° B'!AX33","v":0},0,{"$f":"'VAL. 3° B'!J33","v":0},{"$f":"'VAL. 3° B'!Z33","v":0},{"$f":"'VAL. 3° B'!AP33","v":0},{"$f":"'VAL. 3° B'!AV33","v":0},{"$f":"'VAL. 3° B'!AW33","v":0},{"$f":"'VAL. 3° B'!AX33","v":0},0,{"$f":"'VAL. 4° B'!J33","v":0},{"$f":"'VAL. 4° B'!Z33","v":0},{"$f":"'VAL. 4° B'!AP33","v":0},{"$f":"'VAL. 4° B'!AV33","v":0},{"$f":"'VAL. 4° B'!AW33","v":0},{"$f":"'VAL. 4° B'!AX33","v":0},0,0,""]
[null,16,{"$f":"'C. FILIACION'!C29:D29","v":0},{"$f":"'VAL. 1° B'!J34","v":0},{"$f":"'VAL. 1° B'!Z34","v":0},{"$f":"'VAL. 1° B'!AP34","v":0},{"$f":"'VAL. 1° B'!AV34","v":0},{"$f":"'VAL. 1° B'!AW34","v":0},{"$f":"'VAL. 1° B'!AX34","v":0},0,{"$f":"'VAL. 2° B'!J34","v":0},{"$f":"'VAL. 2° B'!Z34","v":0},{"$f":"'VAL. 2° B'!AP34","v":0},{"$f":"'VAL. 2° B'!AV34","v":0},{"$f":"'VAL. 2° B'!AW34","v":0},{"$f":"'VAL. 2° B'!AX34","v":0},0,{"$f":"'VAL. 3° B'!J34","v":0},{"$f":"'VAL. 3° B'!Z34","v":0},{"$f":"'VAL. 3° B'!AP34","v":0},{"$f":"'VAL. 3° B'!AV34","v":0},{"$f":"'VAL. 3° B'!AW34","v":0},{"$f":"'VAL. 3° B'!AX34","v":0},0,{"$f":"'VAL. 4° B'!J34","v":0},{"$f":"'VAL. 4° B'!Z34","v":0},{"$f":"'VAL. 4° B'!AP34","v":0},{"$f":"'VAL. 4° B'!AV34","v":0},{"$f":"'VAL. 4° B'!AW34","v":0},{"$f":"'VAL. 4° B'!AX34","v":0},0,0,""]
[null,17,{"$f":"'C. FILIACION'!C30:D30","v":0},{"$f":"'VAL. 1° B'!J35","v":0},{"$f":"'VAL. 1° B'!Z35","v":0},{"$f":"'VAL. 1° B'!AP35","v":0},{"$f":"'VAL. 1° B'!AV35","v":0},{"$f":"'VAL. 1° B'!AW35","v":0},{"$f":"'VAL. 1° B'!AX35","v":0},0,{"$f":"'VAL. 2° B'!J35","v":0},{"$f":"'VAL. 2° B'!Z35","v":0},{"$f":"'VAL. 2° B'!AP35","v":0},{"$f":"'VAL. 2° B'!AV35","v":0},{"$f":"'VAL. 2° B'!AW35","v":0},{"$f":"'VAL. 2° B'!AX35","v":0},0,{"$f":"'VAL. 3° B'!J35","v":0},{"$f":"'VAL. 3° B'!Z35","v":0},{"$f":"'VAL. 3° B'!AP35","v":0},{"$f":"'VAL. 3° B'!AV35","v":0},{"$f":"'VAL. 3° B'!AW35","v":0},{"$f":"'VAL. 3° B'!AX35","v":0},0,{"$f":"'VAL. 4° B'!J35","v":0},{"$f":"'VAL. 4° B'!Z35","v":0},{"$f":"'VAL. 4° B'!AP35","v":0},{"$f":"'VAL. 4° B'!AV35","v":0},{"$f":"'VAL. 4° B'!AW35","v":0},{"$f":"'VAL. 4° B'!AX35","v":0},0,0,""]
[null,18,{"$f":"'C. FILIACION'!C31:D31","v":0},{"$f":"'VAL. 1° B'!J36","v":0},{"$f":"'VAL. 1° B'!Z36","v":0},{"$f":"'VAL. 1° B'!AP36","v":0},{"$f":"'VAL. 1° B'!AV36","v":0},{"$f":"'VAL. 1° B'!AW36","v":0},{"$f":"'VAL. 1° B'!AX36","v":0},0,{"$f":"'VAL. 2° B'!J36","v":0},{"$f":"'VAL. 2° B'!Z36","v":0},{"$f":"'VAL. 2° B'!AP36","v":0},{"$f":"'VAL. 2° B'!AV36","v":0},{"$f":"'VAL. 2° B'!AW36","v":0},{"$f":"'VAL. 2° B'!AX36","v":0},0,{"$f":"'VAL. 3° B'!J36","v":0},{"$f":"'VAL. 3° B'!Z36","v":0},{"$f":"'VAL. 3° B'!AP36","v":0},{"$f":"'VAL. 3° B'!AV36","v":0},{"$f":"'VAL. 3° B'!AW36","v":0},{"$f":"'VAL. 3° B'!AX36","v":0},0,{"$f":"'VAL. 4° B'!J36","v":0},{"$f":"'VAL. 4° B'!Z36","v":0},{"$f":"'VAL. 4° B'!AP36","v":0},{"$f":"'VAL. 4° B'!AV36","v":0},{"$f":"'VAL. 4° B'!AW36","v":0},{"$f":"'VAL. 4° B'!AX36","v":0},0,0,""]
[null,19,{"$f":"'C. FILIACION'!C32:D32","v":0},{"$f":"'VAL. 1° B'!J37","v":0},{"$f":"'VAL. 1° B'!Z37","v":0},{"$f":"'VAL. 1° B'!AP37","v":0},{"$f":"'VAL. 1° B'!AV37","v":0},{"$f":"'VAL. 1° B'!AW37","v":0},{"$f":"'VAL. 1° B'!AX37","v":0},0,{"$f":"'VAL. 2° B'!J37","v":0},{"$f":"'VAL. 2° B'!Z37","v":0},{"$f":"'VAL. 2° B'!AP37","v":0},{"$f":"'VAL. 2° B'!AV37","v":0},{"$f":"'VAL. 2° B'!AW37","v":0},{"$f":"'VAL. 2° B'!AX37","v":0},0,{"$f":"'VAL. 3° B'!J37","v":0},{"$f":"'VAL. 3° B'!Z37","v":0},{"$f":"'VAL. 3° B'!AP37","v":0},{"$f":"'VAL. 3° B'!AV37","v":0},{"$f":"'VAL. 3° B'!AW37","v":0},{"$f":"'VAL. 3° B'!AX37","v":0},0,{"$f":"'VAL. 4° B'!J37","v":0},{"$f":"'VAL. 4° B'!Z37","v":0},{"$f":"'VAL. 4° B'!AP37","v":0},{"$f":"'VAL. 4° B'!AV37","v":0},{"$f":"'VAL. 4° B'!AW37","v":0},{"$f":"'VAL. 4° B'!AX37","v":0},0,0,""]
[null,20,{"$f":"'C. FILIACION'!C33:D33","v":0},{"$f":"'VAL. 1° B'!J38","v":0},{"$f":"'VAL. 1° B'!Z38","v":0},{"$f":"'VAL. 1° B'!AP38","v":0},{"$f":"'VAL. 1° B'!AV38","v":0},{"$f":"'VAL. 1° B'!AW38","v":0},{"$f":"'VAL. 1° B'!AX38","v":0},0,{"$f":"'VAL. 2° B'!J38","v":0},{"$f":"'VAL. 2° B'!Z38","v":0},{"$f":"'VAL. 2° B'!AP38","v":0},{"$f":"'VAL. 2° B'!AV38","v":0},{"$f":"'VAL. 2° B'!AW38","v":0},{"$f":"'VAL. 2° B'!AX38","v":0},0,{"$f":"'VAL. 3° B'!J38","v":0},{"$f":"'VAL. 3° B'!Z38","v":0},{"$f":"'VAL. 3° B'!AP38","v":0},{"$f":"'VAL. 3° B'!AV38","v":0},{"$f":"'VAL. 3° B'!AW38","v":0},{"$f":"'VAL. 3° B'!AX38","v":0},0,{"$f":"'VAL. 4° B'!J38","v":0},{"$f":"'VAL. 4° B'!Z38","v":0},{"$f":"'VAL. 4° B'!AP38","v":0},{"$f":"'VAL. 4° B'!AV38","v":0},{"$f":"'VAL. 4° B'!AW38","v":0},{"$f":"'VAL. 4° B'!AX38","v":0},0,0,""]
[null,21,{"$f":"'C. FILIACION'!C34:D34","v":0},{"$f":"'VAL. 1° B'!J39","v":0},{"$f":"'VAL. 1° B'!Z39","v":0},{"$f":"'VAL. 1° B'!AP39","v":0},{"$f":"'VAL. 1° B'!AV39","v":0},{"$f":"'VAL. 1° B'!AW39","v":0},{"$f":"'VAL. 1° B'!AX39","v":0},0,{"$f":"'VAL. 2° B'!J39","v":0},{"$f":"'VAL. 2° B'!Z39","v":0},{"$f":"'VAL. 2° B'!AP39","v":0},{"$f":"'VAL. 2° B'!AV39","v":0},{"$f":"'VAL. 2° B'!AW39","v":0},{"$f":"'VAL. 2° B'!AX39","v":0},0,{"$f":"'VAL. 3° B'!J39","v":0},{"$f":"'VAL. 3° B'!Z39","v":0},{"$f":"'VAL. 3° B'!AP39","v":0},{"$f":"'VAL. 3° B'!AV39","v":0},{"$f":"'VAL. 3° B'!AW39","v":0},{"$f":"'VAL. 3° B'!AX39","v":0},0,{"$f":"'VAL. 4° B'!J39","v":0},{"$f":"'VAL. 4° B'!Z39","v":0},{"$f":"'VAL. 4° B'!AP39","v":0},{"$f":"'VAL. 4° B'!AV39","v":0},{"$f":"'VAL. 4° B'!AW39","v":0},{"$f":"'VAL. 4° B'!AX39","v":0},0,0,""]
[null,22,{"$f":"'C. FILIACION'!C35:D35","v":0},{"$f":"'VAL. 1° B'!J40","v":0},{"$f":"'VAL. 1° B'!Z40","v":0},{"$f":"'VAL. 1° B'!AP40","v":0},{"$f":"'VAL. 1° B'!AV40","v":0},{"$f":"'VAL. 1° B'!AW40","v":0},{"$f":"'VAL. 1° B'!AX40","v":0},0,{"$f":"'VAL. 2° B'!J40","v":0},{"$f":"'VAL. 2° B'!Z40","v":0},{"$f":"'VAL. 2° B'!AP40","v":0},{"$f":"'VAL. 2° B'!AV40","v":0},{"$f":"'VAL. 2° B'!AW40","v":0},{"$f":"'VAL. 2° B'!AX40","v":0},0,{"$f":"'VAL. 3° B'!J40","v":0},{"$f":"'VAL. 3° B'!Z40","v":0},{"$f":"'VAL. 3° B'!AP40","v":0},{"$f":"'VAL. 3° B'!AV40","v":0},{"$f":"'VAL. 3° B'!AW40","v":0},{"$f":"'VAL. 3° B'!AX40","v":0},0,{"$f":"'VAL. 4° B'!J40","v":0},{"$f":"'VAL. 4° B'!Z40","v":0},{"$f":"'VAL. 4° B'!AP40","v":0},{"$f":"'VAL. 4° B'!AV40","v":0},{"$f":"'VAL. 4° B'!AW40","v":0},{"$f":"'VAL. 4° B'!AX40","v":0},0,0,""]
[null,23,{"$f":"'C. FILIACION'!C36:D36","v":0},{"$f":"'VAL. 1° B'!J41","v":0},{"$f":"'VAL. 1° B'!Z41","v":0},{"$f":"'VAL. 1° B'!AP41","v":0},{"$f":"'VAL. 1° B'!AV41","v":0},{"$f":"'VAL. 1° B'!AW41","v":0},{"$f":"'VAL. 1° B'!AX41","v":0},0,{"$f":"'VAL. 2° B'!J41","v":0},{"$f":"'VAL. 2° B'!Z41","v":0},{"$f":"'VAL. 2° B'!AP41","v":0},{"$f":"'VAL. 2° B'!AV41","v":0},{"$f":"'VAL. 2° B'!AW41","v":0},{"$f":"'VAL. 2° B'!AX41","v":0},0,{"$f":"'VAL. 3° B'!J41","v":0},{"$f":"'VAL. 3° B'!Z41","v":0},{"$f":"'VAL. 3° B'!AP41","v":0},{"$f":"'VAL. 3° B'!AV41","v":0},{"$f":"'VAL. 3° B'!AW41","v":0},{"$f":"'VAL. 3° B'!AX41","v":0},0,{"$f":"'VAL. 4° B'!J41","v":0},{"$f":"'VAL. 4° B'!Z41","v":0},{"$f":"'VAL. 4° B'!AP41","v":0},{"$f":"'VAL. 4° B'!AV41","v":0},{"$f":"'VAL. 4° B'!AW41","v":0},{"$f":"'VAL. 4° B'!AX41","v":0},0,{"$f":"ROUND(AVERAGE(J37,Q37,X37,AE37),1)","v":0},""]
[null,24,{"$f":"'C. FILIACION'!C37:D37","v":0},{"$f":"'VAL. 1° B'!J42","v":0},{"$f":"'VAL. 1° B'!Z42","v":0},{"$f":"'VAL. 1° B'!AP42","v":0},{"$f":"'VAL. 1° B'!AV42","v":0},{"$f":"'VAL. 1° B'!AW42","v":0},{"$f":"'VAL. 1° B'!AX42","v":0},0,{"$f":"'VAL. 2° B'!J42","v":0},{"$f":"'VAL. 2° B'!Z42","v":0},{"$f":"'VAL. 2° B'!AP42","v":0},{"$f":"'VAL. 2° B'!AV42","v":0},{"$f":"'VAL. 2° B'!AW42","v":0},{"$f":"'VAL. 2° B'!AX42","v":0},0,{"$f":"'VAL. 3° B'!J42","v":0},{"$f":"'VAL. 3° B'!Z42","v":0},{"$f":"'VAL. 3° B'!AP42","v":0},{"$f":"'VAL. 3° B'!AV42","v":0},{"$f":"'VAL. 3° B'!AW42","v":0},{"$f":"'VAL. 3° B'!AX42","v":0},0,{"$f":"'VAL. 4° B'!J42","v":0},{"$f":"'VAL. 4° B'!Z42","v":0},{"$f":"'VAL. 4° B'!AP42","v":0},{"$f":"'VAL. 4° B'!AV42","v":0},{"$f":"'VAL. 4° B'!AW42","v":0},{"$f":"'VAL. 4° B'!AX42","v":0},0,{"$f":"IF((J38+Q38+X38+AE38)<0,\"\",(J38+Q38+X38+AE38)/(IF(COUNT(J38,Q38,X38,AE38)=0,\"\",COUNT(J38,Q38,X38,AE38))))","v":0},""]
[null,25,{"$f":"'C. FILIACION'!C38:D38","v":0},{"$f":"'VAL. 1° B'!J43","v":0},{"$f":"'VAL. 1° B'!Z43","v":0},{"$f":"'VAL. 1° B'!AP43","v":0},{"$f":"'VAL. 1° B'!AV43","v":0},{"$f":"'VAL. 1° B'!AW43","v":0},{"$f":"'VAL. 1° B'!AX43","v":0},0,{"$f":"'VAL. 2° B'!J43","v":0},{"$f":"'VAL. 2° B'!Z43","v":0},{"$f":"'VAL. 2° B'!AP43","v":0},{"$f":"'VAL. 2° B'!AV43","v":0},{"$f":"'VAL. 2° B'!AW43","v":0},{"$f":"'VAL. 2° B'!AX43","v":0},0,{"$f":"'VAL. 3° B'!J43","v":0},{"$f":"'VAL. 3° B'!Z43","v":0},{"$f":"'VAL. 3° B'!AP43","v":0},{"$f":"'VAL. 3° B'!AV43","v":0},{"$f":"'VAL. 3° B'!AW43","v":0},{"$f":"'VAL. 3° B'!AX43","v":0},0,{"$f":"'VAL. 4° B'!J43","v":0},{"$f":"'VAL. 4° B'!Z43","v":0},{"$f":"'VAL. 4° B'!AP43","v":0},{"$f":"'VAL. 4° B'!AV43","v":0},{"$f":"'VAL. 4° B'!AW43","v":0},{"$f":"'VAL. 4° B'!AX43","v":0},0,0,""]
[null,26,{"$f":"'C. FILIACION'!C39:D39","v":0},{"$f":"'VAL. 1° B'!J44","v":0},{"$f":"'VAL. 1° B'!Z44","v":0},{"$f":"'VAL. 1° B'!AP44","v":0},{"$f":"'VAL. 1° B'!AV44","v":0},{"$f":"'VAL. 1° B'!AW44","v":0},{"$f":"'VAL. 1° B'!AX44","v":0},0,{"$f":"'VAL. 2° B'!J44","v":0},{"$f":"'VAL. 2° B'!Z44","v":0},{"$f":"'VAL. 2° B'!AP44","v":0},{"$f":"'VAL. 2° B'!AV44","v":0},{"$f":"'VAL. 2° B'!AW44","v":0},{"$f":"'VAL. 2° B'!AX44","v":0},0,{"$f":"'VAL. 3° B'!J44","v":0},{"$f":"'VAL. 3° B'!Z44","v":0},{"$f":"'VAL. 3° B'!AP44","v":0},{"$f":"'VAL. 3° B'!AV44","v":0},{"$f":"'VAL. 3° B'!AW44","v":0},{"$f":"'VAL. 3° B'!AX44","v":0},0,{"$f":"'VAL. 4° B'!J44","v":0},{"$f":"'VAL. 4° B'!Z44","v":0},{"$f":"'VAL. 4° B'!AP44","v":0},{"$f":"'VAL. 4° B'!AV44","v":0},{"$f":"'VAL. 4° B'!AW44","v":0},{"$f":"'VAL. 4° B'!AX44","v":0},0,0,""]
[null,27,{"$f":"'C. FILIACION'!C40:D40","v":0},{"$f":"'VAL. 1° B'!J45","v":0},{"$f":"'VAL. 1° B'!Z45","v":0},{"$f":"'VAL. 1° B'!AP45","v":0},{"$f":"'VAL. 1° B'!AV45","v":0},{"$f":"'VAL. 1° B'!AW45","v":0},{"$f":"'VAL. 1° B'!AX45","v":0},0,{"$f":"'VAL. 2° B'!J45","v":0},{"$f":"'VAL. 2° B'!Z45","v":0},{"$f":"'VAL. 2° B'!AP45","v":0},{"$f":"'VAL. 2° B'!AV45","v":0},{"$f":"'VAL. 2° B'!AW45","v":0},{"$f":"'VAL. 2° B'!AX45","v":0},0,{"$f":"'VAL. 3° B'!J45","v":0},{"$f":"'VAL. 3° B'!Z45","v":0},{"$f":"'VAL. 3° B'!AP45","v":0},{"$f":"'VAL. 3° B'!AV45","v":0},{"$f":"'VAL. 3° B'!AW45","v":0},{"$f":"'VAL. 3° B'!AX45","v":0},0,{"$f":"'VAL. 4° B'!J45","v":0},{"$f":"'VAL. 4° B'!Z45","v":0},{"$f":"'VAL. 4° B'!AP45","v":0},{"$f":"'VAL. 4° B'!AV45","v":0},{"$f":"'VAL. 4° B'!AW45","v":0},{"$f":"'VAL. 4° B'!AX45","v":0},0,0,""]
[null,28,{"$f":"'C. FILIACION'!C41:D41","v":0},{"$f":"'VAL. 1° B'!J46","v":0},{"$f":"'VAL. 1° B'!Z46","v":0},{"$f":"'VAL. 1° B'!AP46","v":0},{"$f":"'VAL. 1° B'!AV46","v":0},{"$f":"'VAL. 1° B'!AW46","v":0},{"$f":"'VAL. 1° B'!AX46","v":0},0,{"$f":"'VAL. 2° B'!J46","v":0},{"$f":"'VAL. 2° B'!Z46","v":0},{"$f":"'VAL. 2° B'!AP46","v":0},{"$f":"'VAL. 2° B'!AV46","v":0},{"$f":"'VAL. 2° B'!AW46","v":0},{"$f":"'VAL. 2° B'!AX46","v":0},0,{"$f":"'VAL. 3° B'!J46","v":0},{"$f":"'VAL. 3° B'!Z46","v":0},{"$f":"'VAL. 3° B'!AP46","v":0},{"$f":"'VAL. 3° B'!AV46","v":0},{"$f":"'VAL. 3° B'!AW46","v":0},{"$f":"'VAL. 3° B'!AX46","v":0},0,{"$f":"'VAL. 4° B'!J46","v":0},{"$f":"'VAL. 4° B'!Z46","v":0},{"$f":"'VAL. 4° B'!AP46","v":0},{"$f":"'VAL. 4° B'!AV46","v":0},{"$f":"'VAL. 4° B'!AW46","v":0},{"$f":"'VAL. 4° B'!AX46","v":0},0,0,""]
[null,29,{"$f":"'C. FILIACION'!C42:D42","v":0},{"$f":"'VAL. 1° B'!J47","v":0},{"$f":"'VAL. 1° B'!Z47","v":0},{"$f":"'VAL. 1° B'!AP47","v":0},{"$f":"'VAL. 1° B'!AV47","v":0},{"$f":"'VAL. 1° B'!AW47","v":0},{"$f":"'VAL. 1° B'!AX47","v":0},0,{"$f":"'VAL. 2° B'!J47","v":0},{"$f":"'VAL. 2° B'!Z47","v":0},{"$f":"'VAL. 2° B'!AP47","v":0},{"$f":"'VAL. 2° B'!AV47","v":0},{"$f":"'VAL. 2° B'!AW47","v":0},{"$f":"'VAL. 2° B'!AX47","v":0},0,{"$f":"'VAL. 3° B'!J47","v":0},{"$f":"'VAL. 3° B'!Z47","v":0},{"$f":"'VAL. 3° B'!AP47","v":0},{"$f":"'VAL. 3° B'!AV47","v":0},{"$f":"'VAL. 3° B'!AW47","v":0},{"$f":"'VAL. 3° B'!AX47","v":0},0,{"$f":"'VAL. 4° B'!J47","v":0},{"$f":"'VAL. 4° B'!Z47","v":0},{"$f":"'VAL. 4° B'!AP47","v":0},{"$f":"'VAL. 4° B'!AV47","v":0},{"$f":"'VAL. 4° B'!AW47","v":0},{"$f":"'VAL. 4° B'!AX47","v":0},0,0,""]
[null,30,{"$f":"'C. FILIACION'!C43:D43","v":0},{"$f":"'VAL. 1° B'!J48","v":0},{"$f":"'VAL. 1° B'!Z48","v":0},{"$f":"'VAL. 1° B'!AP48","v":0},{"$f":"'VAL. 1° B'!AV48","v":0},{"$f":"'VAL. 1° B'!AW48","v":0},{"$f":"'VAL. 1° B'!AX48","v":0},0,{"$f":"'VAL. 2° B'!J48","v":0},{"$f":"'VAL. 2° B'!Z48","v":0},{"$f":"'VAL. 2° B'!AP48","v":0},{"$f":"'VAL. 2° B'!AV48","v":0},{"$f":"'VAL. 2° B'!AW48","v":0},{"$f":"'VAL. 2° B'!AX48","v":0},0,{"$f":"'VAL. 3° B'!J48","v":0},{"$f":"'VAL. 3° B'!Z48","v":0},{"$f":"'VAL. 3° B'!AP48","v":0},{"$f":"'VAL. 3° B'!AV48","v":0},{"$f":"'VAL. 3° B'!AW48","v":0},{"$f":"'VAL. 3° B'!AX48","v":0},0,{"$f":"'VAL. 4° B'!J48","v":0},{"$f":"'VAL. 4° B'!Z48","v":0},{"$f":"'VAL. 4° B'!AP48","v":0},{"$f":"'VAL. 4° B'!AV48","v":0},{"$f":"'VAL. 4° B'!AW48","v":0},{"$f":"'VAL. 4° B'!AX48","v":0},0,0,""]
[null,31,{"$f":"'C. FILIACION'!C44:D44","v":0},{"$f":"'VAL. 1° B'!J49","v":0},{"$f":"'VAL. 1° B'!Z49","v":0},{"$f":"'VAL. 1° B'!AP49","v":0},{"$f":"'VAL. 1° B'!AV49","v":0},{"$f":"'VAL. 1° B'!AW49","v":0},{"$f":"'VAL. 1° B'!AX49","v":0},0,{"$f":"'VAL. 2° B'!J49","v":0},{"$f":"'VAL. 2° B'!Z49","v":0},{"$f":"'VAL. 2° B'!AP49","v":0},{"$f":"'VAL. 2° B'!AV49","v":0},{"$f":"'VAL. 2° B'!AW49","v":0},{"$f":"'VAL. 2° B'!AX49","v":0},0,{"$f":"'VAL. 3° B'!J49","v":0},{"$f":"'VAL. 3° B'!Z49","v":0},{"$f":"'VAL. 3° B'!AP49","v":0},{"$f":"'VAL. 3° B'!AV49","v":0},{"$f":"'VAL. 3° B'!AW49","v":0},{"$f":"'VAL. 3° B'!AX49","v":0},0,{"$f":"'VAL. 4° B'!J49","v":0},{"$f":"'VAL. 4° B'!Z49","v":0},{"$f":"'VAL. 4° B'!AP49","v":0},{"$f":"'VAL. 4° B'!AV49","v":0},{"$f":"'VAL. 4° B'!AW49","v":0},{"$f":"'VAL. 4° B'!AX49","v":0},0,0,""]
[null,32,{"$f":"'C. FILIACION'!C45:D45","v":0},{"$f":"'VAL. 1° B'!J50","v":0},{"$f":"'VAL. 1° B'!Z50","v":0},{"$f":"'VAL. 1° B'!AP50","v":0},{"$f":"'VAL. 1° B'!AV50","v":0},{"$f":"'VAL. 1° B'!AW50","v":0},{"$f":"'VAL. 1° B'!AX50","v":0},0,{"$f":"'VAL. 2° B'!J50","v":0},{"$f":"'VAL. 2° B'!Z50","v":0},{"$f":"'VAL. 2° B'!AP50","v":0},{"$f":"'VAL. 2° B'!AV50","v":0},{"$f":"'VAL. 2° B'!AW50","v":0},{"$f":"'VAL. 2° B'!AX50","v":0},0,{"$f":"'VAL. 3° B'!J50","v":0},{"$f":"'VAL. 3° B'!Z50","v":0},{"$f":"'VAL. 3° B'!AP50","v":0},{"$f":"'VAL. 3° B'!AV50","v":0},{"$f":"'VAL. 3° B'!AW50","v":0},{"$f":"'VAL. 3° B'!AX50","v":0},0,{"$f":"'VAL. 4° B'!J50","v":0},{"$f":"'VAL. 4° B'!Z50","v":0},{"$f":"'VAL. 4° B'!AP50","v":0},{"$f":"'VAL. 4° B'!AV50","v":0},{"$f":"'VAL. 4° B'!AW50","v":0},{"$f":"'VAL. 4° B'!AX50","v":0},0,0,""]
[null,33,{"$f":"'C. FILIACION'!C46:D46","v":0},{"$f":"'VAL. 1° B'!J51","v":0},{"$f":"'VAL. 1° B'!Z51","v":0},{"$f":"'VAL. 1° B'!AP51","v":0},{"$f":"'VAL. 1° B'!AV51","v":0},{"$f":"'VAL. 1° B'!AW51","v":0},{"$f":"'VAL. 1° B'!AX51","v":0},0,{"$f":"'VAL. 2° B'!J51","v":0},{"$f":"'VAL. 2° B'!Z51","v":0},{"$f":"'VAL. 2° B'!AP51","v":0},{"$f":"'VAL. 2° B'!AV51","v":0},{"$f":"'VAL. 2° B'!AW51","v":0},{"$f":"'VAL. 2° B'!AX51","v":0},0,{"$f":"'VAL. 3° B'!J51","v":0},{"$f":"'VAL. 3° B'!Z51","v":0},{"$f":"'VAL. 3° B'!AP51","v":0},{"$f":"'VAL. 3° B'!AV51","v":0},{"$f":"'VAL. 3° B'!AW51","v":0},{"$f":"'VAL. 3° B'!AX51","v":0},0,{"$f":"'VAL. 4° B'!J51","v":0},{"$f":"'VAL. 4° B'!Z51","v":0},{"$f":"'VAL. 4° B'!AP51","v":0},{"$f":"'VAL. 4° B'!AV51","v":0},{"$f":"'VAL. 4° B'!AW51","v":0},{"$f":"'VAL. 4° B'!AX51","v":0},0,0,""]
[null,34,{"$f":"'C. FILIACION'!C47:D47","v":0},{"$f":"'VAL. 1° B'!J52","v":0},{"$f":"'VAL. 1° B'!Z52","v":0},{"$f":"'VAL. 1° B'!AP52","v":0},{"$f":"'VAL. 1° B'!AV52","v":0},{"$f":"'VAL. 1° B'!AW52","v":0},{"$f":"'VAL. 1° B'!AX52","v":0},0,{"$f":"'VAL. 2° B'!J52","v":0},{"$f":"'VAL. 2° B'!Z52","v":0},{"$f":"'VAL. 2° B'!AP52","v":0},{"$f":"'VAL. 2° B'!AV52","v":0},{"$f":"'VAL. 2° B'!AW52","v":0},{"$f":"'VAL. 2° B'!AX52","v":0},0,{"$f":"'VAL. 3° B'!J52","v":0},{"$f":"'VAL. 3° B'!Z52","v":0},{"$f":"'VAL. 3° B'!AP52","v":0},{"$f":"'VAL. 3° B'!AV52","v":0},{"$f":"'VAL. 3° B'!AW52","v":0},{"$f":"'VAL. 3° B'!AX52","v":0},0,{"$f":"'VAL. 4° B'!J52","v":0},{"$f":"'VAL. 4° B'!Z52","v":0},{"$f":"'VAL. 4° B'!AP52","v":0},{"$f":"'VAL. 4° B'!AV52","v":0},{"$f":"'VAL. 4° B'!AW52","v":0},{"$f":"'VAL. 4° B'!AX52","v":0},0,0,""]
[null,35,{"$f":"'C. FILIACION'!C48:D48","v":0},{"$f":"'VAL. 1° B'!J53","v":0},{"$f":"'VAL. 1° B'!Z53","v":0},{"$f":"'VAL. 1° B'!AP53","v":0},{"$f":"'VAL. 1° B'!AV53","v":0},{"$f":"'VAL. 1° B'!AW53","v":0},{"$f":"'VAL. 1° B'!AX53","v":0},0,{"$f":"'VAL. 2° B'!J53","v":0},{"$f":"'VAL. 2° B'!Z53","v":0},{"$f":"'VAL. 2° B'!AP53","v":0},{"$f":"'VAL. 2° B'!AV53","v":0},{"$f":"'VAL. 2° B'!AW53","v":0},{"$f":"'VAL. 2° B'!AX53","v":0},0,{"$f":"'VAL. 3° B'!J53","v":0},{"$f":"'VAL. 3° B'!Z53","v":0},{"$f":"'VAL. 3° B'!AP53","v":0},{"$f":"'VAL. 3° B'!AV53","v":0},{"$f":"'VAL. 3° B'!AW53","v":0},{"$f":"'VAL. 3° B'!AX53","v":0},0,{"$f":"'VAL. 4° B'!J53","v":0},{"$f":"'VAL. 4° B'!Z53","v":0},{"$f":"'VAL. 4° B'!AP53","v":0},{"$f":"'VAL. 4° B'!AV53","v":0},{"$f":"'VAL. 4° B'!AW53","v":0},{"$f":"'VAL. 4° B'!AX53","v":0},0,0,""]
[null,36,{"$f":"'C. FILIACION'!C49:D49","v":0},{"$f":"'VAL. 1° B'!J54","v":0},{"$f":"'VAL. 1° B'!Z54","v":0},{"$f":"'VAL. 1° B'!AP54","v":0},{"$f":"'VAL. 1° B'!AV54","v":0},{"$f":"'VAL. 1° B'!AW54","v":0},{"$f":"'VAL. 1° B'!AX54","v":0},0,{"$f":"'VAL. 2° B'!J54","v":0},{"$f":"'VAL. 2° B'!Z54","v":0},{"$f":"'VAL. 2° B'!AP54","v":0},{"$f":"'VAL. 2° B'!AV54","v":0},{"$f":"'VAL. 2° B'!AW54","v":0},{"$f":"'VAL. 2° B'!AX54","v":0},0,{"$f":"'VAL. 3° B'!J54","v":0},{"$f":"'VAL. 3° B'!Z54","v":0},{"$f":"'VAL. 3° B'!AP54","v":0},{"$f":"'VAL. 3° B'!AV54","v":0},{"$f":"'VAL. 3° B'!AW54","v":0},{"$f":"'VAL. 3° B'!AX54","v":0},0,{"$f":"'VAL. 4° B'!J54","v":0},{"$f":"'VAL. 4° B'!Z54","v":0},{"$f":"'VAL. 4° B'!AP54","v":0},{"$f":"'VAL. 4° B'!AV54","v":0},{"$f":"'VAL. 4° B'!AW54","v":0},{"$f":"'VAL. 4° B'!AX54","v":0},0,0,""]
[null,37,{"$f":"'C. FILIACION'!C50:D50","v":0},{"$f":"'VAL. 1° B'!J55","v":0},{"$f":"'VAL. 1° B'!Z55","v":0},{"$f":"'VAL. 1° B'!AP55","v":0},{"$f":"'VAL. 1° B'!AV55","v":0},{"$f":"'VAL. 1° B'!AW55","v":0},{"$f":"'VAL. 1° B'!AX55","v":0},0,{"$f":"'VAL. 2° B'!J55","v":0},{"$f":"'VAL. 2° B'!Z55","v":0},{"$f":"'VAL. 2° B'!AP55","v":0},{"$f":"'VAL. 2° B'!AV55","v":0},{"$f":"'VAL. 2° B'!AW55","v":0},{"$f":"'VAL. 2° B'!AX55","v":0},0,{"$f":"'VAL. 3° B'!J55","v":0},{"$f":"'VAL. 3° B'!Z55","v":0},{"$f":"'VAL. 3° B'!AP55","v":0},{"$f":"'VAL. 3° B'!AV55","v":0},{"$f":"'VAL. 3° B'!AW55","v":0},{"$f":"'VAL. 3° B'!AX55","v":0},0,{"$f":"'VAL. 4° B'!J55","v":0},{"$f":"'VAL. 4° B'!Z55","v":0},{"$f":"'VAL. 4° B'!AP55","v":0},{"$f":"'VAL. 4° B'!AV55","v":0},{"$f":"'VAL. 4° B'!AW55","v":0},{"$f":"'VAL. 4° B'!AX55","v":0},0,0,""]
[null,38,{"$f":"'C. FILIACION'!C51:D51","v":0},{"$f":"'VAL. 1° B'!J56","v":0},{"$f":"'VAL. 1° B'!Z56","v":0},{"$f":"'VAL. 1° B'!AP56","v":0},{"$f":"'VAL. 1° B'!AV56","v":0},{"$f":"'VAL. 1° B'!AW56","v":0},{"$f":"'VAL. 1° B'!AX56","v":0},0,{"$f":"'VAL. 2° B'!J56","v":0},{"$f":"'VAL. 2° B'!Z56","v":0},{"$f":"'VAL. 2° B'!AP56","v":0},{"$f":"'VAL. 2° B'!AV56","v":0},{"$f":"'VAL. 2° B'!AW56","v":0},{"$f":"'VAL. 2° B'!AX56","v":0},0,{"$f":"'VAL. 3° B'!J56","v":0},{"$f":"'VAL. 3° B'!Z56","v":0},{"$f":"'VAL. 3° B'!AP56","v":0},{"$f":"'VAL. 3° B'!AV56","v":0},{"$f":"'VAL. 3° B'!AW56","v":0},{"$f":"'VAL. 3° B'!AX56","v":0},0,{"$f":"'VAL. 4° B'!J56","v":0},{"$f":"'VAL. 4° B'!Z56","v":0},{"$f":"'VAL. 4° B'!AP56","v":0},{"$f":"'VAL. 4° B'!AV56","v":0},{"$f":"'VAL. 4° B'!AW56","v":0},{"$f":"'VAL. 4° B'!AX56","v":0},0,0,""]
[null,39,{"$f":"'C. FILIACION'!C52:D52","v":0},{"$f":"'VAL. 1° B'!J57","v":0},{"$f":"'VAL. 1° B'!Z57","v":0},{"$f":"'VAL. 1° B'!AP57","v":0},{"$f":"'VAL. 1° B'!AV57","v":0},{"$f":"'VAL. 1° B'!AW57","v":0},{"$f":"'VAL. 1° B'!AX57","v":0},0,{"$f":"'VAL. 2° B'!J57","v":0},{"$f":"'VAL. 2° B'!Z57","v":0},{"$f":"'VAL. 2° B'!AP57","v":0},{"$f":"'VAL. 2° B'!AV57","v":0},{"$f":"'VAL. 2° B'!AW57","v":0},{"$f":"'VAL. 2° B'!AX57","v":0},0,{"$f":"'VAL. 3° B'!J57","v":0},{"$f":"'VAL. 3° B'!Z57","v":0},{"$f":"'VAL. 3° B'!AP57","v":0},{"$f":"'VAL. 3° B'!AV57","v":0},{"$f":"'VAL. 3° B'!AW57","v":0},{"$f":"'VAL. 3° B'!AX57","v":0},0,{"$f":"'VAL. 4° B'!J57","v":0},{"$f":"'VAL. 4° B'!Z57","v":0},{"$f":"'VAL. 4° B'!AP57","v":0},{"$f":"'VAL. 4° B'!AV57","v":0},{"$f":"'VAL. 4° B'!AW57","v":0},{"$f":"'VAL. 4° B'!AX57","v":0},0,0,""]
[null,40,{"$f":"'C. FILIACION'!C53:D53","v":0},{"$f":"'VAL. 1° B'!J58","v":0},{"$f":"'VAL. 1° B'!Z58","v":0},{"$f":"'VAL. 1° B'!AP58","v":0},{"$f":"'VAL. 1° B'!AV58","v":0},{"$f":"'VAL. 1° B'!AW58","v":0},{"$f":"'VAL. 1° B'!AX58","v":0},0,{"$f":"'VAL. 2° B'!J58","v":0},{"$f":"'VAL. 2° B'!Z58","v":0},{"$f":"'VAL. 2° B'!AP58","v":0},{"$f":"'VAL. 2° B'!AV58","v":0},{"$f":"'VAL. 2° B'!AW58","v":0},{"$f":"'VAL. 2° B'!AX58","v":0},0,{"$f":"'VAL. 3° B'!J58","v":0},{"$f":"'VAL. 3° B'!Z58","v":0},{"$f":"'VAL. 3° B'!AP58","v":0},{"$f":"'VAL. 3° B'!AV58","v":0},{"$f":"'VAL. 3° B'!AW58","v":0},{"$f":"'VAL. 3° B'!AX58","v":0},0,{"$f":"'VAL. 4° B'!J58","v":0},{"$f":"'VAL. 4° B'!Z58","v":0},{"$f":"'VAL. 4° B'!AP58","v":0},{"$f":"'VAL. 4° B'!AV58","v":0},{"$f":"'VAL. 4° B'!AW58","v":0},{"$f":"'VAL. 4° B'!AX58","v":0},0,0,""]
[null,41,{"$f":"'C. FILIACION'!C54:D54","v":0},{"$f":"'VAL. 1° B'!J59","v":0},{"$f":"'VAL. 1° B'!Z59","v":0},{"$f":"'VAL. 1° B'!AP59","v":0},{"$f":"'VAL. 1° B'!AV59","v":0},{"$f":"'VAL. 1° B'!AW59","v":0},{"$f":"'VAL. 1° B'!AX59","v":0},0,{"$f":"'VAL. 2° B'!J59","v":0},{"$f":"'VAL. 2° B'!Z59","v":0},{"$f":"'VAL. 2° B'!AP59","v":0},{"$f":"'VAL. 2° B'!AV59","v":0},{"$f":"'VAL. 2° B'!AW59","v":0},{"$f":"'VAL. 2° B'!AX59","v":0},0,{"$f":"'VAL. 3° B'!J59","v":0},{"$f":"'VAL. 3° B'!Z59","v":0},{"$f":"'VAL. 3° B'!AP59","v":0},{"$f":"'VAL. 3° B'!AV59","v":0},{"$f":"'VAL. 3° B'!AW59","v":0},{"$f":"'VAL. 3° B'!AX59","v":0},0,{"$f":"'VAL. 4° B'!J59","v":0},{"$f":"'VAL. 4° B'!Z59","v":0},{"$f":"'VAL. 4° B'!AP59","v":0},{"$f":"'VAL. 4° B'!AV59","v":0},{"$f":"'VAL. 4° B'!AW59","v":0},{"$f":"'VAL. 4° B'!AX59","v":0},0,0,""]
[null,42,{"$f":"'C. FILIACION'!C55:D55","v":0},{"$f":"'VAL. 1° B'!J60","v":0},{"$f":"'VAL. 1° B'!Z60","v":0},{"$f":"'VAL. 1° B'!AP60","v":0},{"$f":"'VAL. 1° B'!AV60","v":0},{"$f":"'VAL. 1° B'!AW60","v":0},{"$f":"'VAL. 1° B'!AX60","v":0},0,{"$f":"'VAL. 2° B'!J60","v":0},{"$f":"'VAL. 2° B'!Z60","v":0},{"$f":"'VAL. 2° B'!AP60","v":0},{"$f":"'VAL. 2° B'!AV60","v":0},{"$f":"'VAL. 2° B'!AW60","v":0},{"$f":"'VAL. 2° B'!AX60","v":0},0,{"$f":"'VAL. 3° B'!J60","v":0},{"$f":"'VAL. 3° B'!Z60","v":0},{"$f":"'VAL. 3° B'!AP60","v":0},{"$f":"'VAL. 3° B'!AV60","v":0},{"$f":"'VAL. 3° B'!AW60","v":0},{"$f":"'VAL. 3° B'!AX60","v":0},0,{"$f":"'VAL. 4° B'!J60","v":0},{"$f":"'VAL. 4° B'!Z60","v":0},{"$f":"'VAL. 4° B'!AP60","v":0},{"$f":"'VAL. 4° B'!AV60","v":0},{"$f":"'VAL. 4° B'!AW60","v":0},{"$f":"'VAL. 4° B'!AX60","v":0},0,0,""]
[null,43,{"$f":"'C. FILIACION'!C56:D56","v":0},{"$f":"'VAL. 1° B'!J61","v":0},{"$f":"'VAL. 1° B'!Z61","v":0},{"$f":"'VAL. 1° B'!AP61","v":0},{"$f":"'VAL. 1° B'!AV61","v":0},{"$f":"'VAL. 1° B'!AW61","v":0},{"$f":"'VAL. 1° B'!AX61","v":0},0,{"$f":"'VAL. 2° B'!J61","v":0},{"$f":"'VAL. 2° B'!Z61","v":0},{"$f":"'VAL. 2° B'!AP61","v":0},{"$f":"'VAL. 2° B'!AV61","v":0},{"$f":"'VAL. 2° B'!AW61","v":0},{"$f":"'VAL. 2° B'!AX61","v":0},0,{"$f":"'VAL. 3° B'!J61","v":0},{"$f":"'VAL. 3° B'!Z61","v":0},{"$f":"'VAL. 3° B'!AP61","v":0},{"$f":"'VAL. 3° B'!AV61","v":0},{"$f":"'VAL. 3° B'!AW61","v":0},{"$f":"'VAL. 3° B'!AX61","v":0},0,{"$f":"'VAL. 4° B'!J61","v":0},{"$f":"'VAL. 4° B'!Z61","v":0},{"$f":"'VAL. 4° B'!AP61","v":0},{"$f":"'VAL. 4° B'!AV61","v":0},{"$f":"'VAL. 4° B'!AW61","v":0},{"$f":"'VAL. 4° B'!AX61","v":0},0,0,""]
[null,44,{"$f":"'C. FILIACION'!C57:D57","v":0},{"$f":"'VAL. 1° B'!J62","v":0},{"$f":"'VAL. 1° B'!Z62","v":0},{"$f":"'VAL. 1° B'!AP62","v":0},{"$f":"'VAL. 1° B'!AV62","v":0},{"$f":"'VAL. 1° B'!AW62","v":0},{"$f":"'VAL. 1° B'!AX62","v":0},0,{"$f":"'VAL. 2° B'!J62","v":0},{"$f":"'VAL. 2° B'!Z62","v":0},{"$f":"'VAL. 2° B'!AP62","v":0},{"$f":"'VAL. 2° B'!AV62","v":0},{"$f":"'VAL. 2° B'!AW62","v":0},{"$f":"'VAL. 2° B'!AX62","v":0},0,{"$f":"'VAL. 3° B'!J62","v":0},{"$f":"'VAL. 3° B'!Z62","v":0},{"$f":"'VAL. 3° B'!AP62","v":0},{"$f":"'VAL. 3° B'!AV62","v":0},{"$f":"'VAL. 3° B'!AW62","v":0},{"$f":"'VAL. 3° B'!AX62","v":0},0,{"$f":"'VAL. 4° B'!J62","v":0},{"$f":"'VAL. 4° B'!Z62","v":0},{"$f":"'VAL. 4° B'!AP62","v":0},{"$f":"'VAL. 4° B'!AV62","v":0},{"$f":"'VAL. 4° B'!AW62","v":0},{"$f":"'VAL. 4° B'!AX62","v":0},0,0,""]
[null,45,{"$f":"'C. FILIACION'!C58:D58","v":0},{"$f":"'VAL. 1° B'!J63","v":0},{"$f":"'VAL. 1° B'!Z63","v":0},{"$f":"'VAL. 1° B'!AP63","v":0},{"$f":"'VAL. 1° B'!AV63","v":0},{"$f":"'VAL. 1° B'!AW63","v":0},{"$f":"'VAL. 1° B'!AX63","v":0},0,{"$f":"'VAL. 2° B'!J63","v":0},{"$f":"'VAL. 2° B'!Z63","v":0},{"$f":"'VAL. 2° B'!AP63","v":0},{"$f":"'VAL. 2° B'!AV63","v":0},{"$f":"'VAL. 2° B'!AW63","v":0},{"$f":"'VAL. 2° B'!AX63","v":0},0,{"$f":"'VAL. 3° B'!J63","v":0},{"$f":"'VAL. 3° B'!Z63","v":0},{"$f":"'VAL. 3° B'!AP63","v":0},{"$f":"'VAL. 3° B'!AV63","v":0},{"$f":"'VAL. 3° B'!AW63","v":0},{"$f":"'VAL. 3° B'!AX63","v":0},0,{"$f":"'VAL. 4° B'!J63","v":0},{"$f":"'VAL. 4° B'!Z63","v":0},{"$f":"'VAL. 4° B'!AP63","v":0},{"$f":"'VAL. 4° B'!AV63","v":0},{"$f":"'VAL. 4° B'!AW63","v":0},{"$f":"'VAL. 4° B'!AX63","v":0},0,0,""]
[]
[]
[]
[null,null,null,{"$f":"CARATULA!G22","v":0},null,null,null,null,null,null,null,null,null,null,null,null,null,{"$f":"CARATULA!G24","v":0}]

{"sheet":"% REP-APR","index":13,"n_rows":34,"n_cols":12,"rows_kept":34,"cut":false,"hidden":false,"merged":[[2,2,2,11],[33,2,33,4],[33,8,33,11],[18,2,19,11],[9,2,9,11],[11,3,11,4],[12,3,12,4],[13,3,13,4],[14,3,14,4],[15,3,15,4],[30,3,30,5],[30,7,30,9]]}
[]
[]
[null,null,"CUADRO DE EDADES "]
[]
[null,null,null,12,{"$f":"D5+1","v":13},{"$f":"E5+1","v":14},15,16,17,18,19,"TOTALES "]
[null,null,"FEMENINO",{"$f":"COUNTIFS('C. FILIACION'!I14:I58,\"12\",'C. FILIACION'!E14:E58,\"F\")","v":0},{"$f":"COUNTIFS('C. FILIACION'!I14:I58,\"13\",'C. FILIACION'!E14:E58,\"F\")","v":0},{"$f":"COUNTIFS('C. FILIACION'!I14:I58,\"14\",'C. FILIACION'!E14:E58,\"F\")","v":0},{"$f":"COUNTIFS('C. FILIACION'!I14:I58,\"15\",'C. FILIACION'!E14:E58,\"F\")","v":0},{"$f":"COUNTIFS('C. FILIACION'!I14:I58,\"16\",'C. FILIACION'!E14:E58,\"F\")","v":0},{"$f":"COUNTIFS('C. FILIACION'!I14:I58,\"17\",'C. FILIACION'!E14:E58,\"F\")","v":0},{"$f":"COUNTIFS('C. FILIACION'!I14:I58,\"18\",'C. FILIACION'!E14:E58,\"F\")","v":0},{"$f":"COUNTIFS('C. FILIACION'!I14:I58,\"19\",'C. FILIACION'!E14:E58,\"F\")","v":0},{"$f":"SUM(D6:K6)","v":0}]
[null,null,"MASCULINO ",{"$f":"COUNTIFS('C. FILIACION'!I14:I58,\"12\",'C. FILIACION'!E14:E58,\"M\")","v":0},{"$f":"COUNTIFS('C. FILIACION'!I14:I58,\"13\",'C. FILIACION'!E14:E58,\"M\")","v":0},{"$f":"COUNTIFS('C. FILIACION'!I14:I58,\"14\",'C. FILIACION'!E14:E58,\"M\")","v":0},{"$f":"COUNTIFS('C. FILIACION'!I14:I58,\"15\",'C. FILIACION'!E14:E58,\"M\")","v":0},{"$f":"COUNTIFS('C. FILIACION'!I14:I58,\"16\",'C. FILIACION'!E14:E58,\"M\")","v":0},{"$f":"COUNTIFS('C. FILIACION'!I14:I58,\"17\",'C. FILIACION'!E14:E58,\"M\")","v":0},{"$f":"COUNTIFS('C. FILIACION'!I14:I58,\"18\",'C. FILIACION'!E14:E58,\"M\")","v":0},{"$f":"COUNTIFS('C. FILIACION'!I14:I58,\"19\",'C. FILIACION'!E14:E58,\"M\")","v":0},{"$f":"SUM(D7:K7)","v":0}]
[null,null,"TOTALES ",{"$f":"D6+D7","v":0},{"$f":"E6+E7","v":0},0,0,0,0,0,0,{"$f":"L6+L7","v":0}]
[]
[null,null,"DATOS DE REGISTRO"]
[]
[null,null,"ESTADO DEL ESTUDIANTE","CANTIDAD"]
[null,null,"INSCRITO ",{"$f":"'C. FILIACION'!Q6","v":0}]
[null,null,"RETIRO O ABANDONO",{"$f":"'C. FILIACION'!Q7","v":0}]
[null,null,"NO INCORPORADO",{"$f":"'C. FILIACION'!Q8","v":0}]
[null,null,"EFECTIVO",{"$f":"'C. FILIACION'!Q9","v":0}]
[]
[]
[null,null,"GRÁFICO DE BARRAS SEGÚN PORCENTAJE (%) DE REPROBADOS Y APROBADOS ANUAL"]
[]
[]
[]
[]
[]
[]
[]
[]
[]
[]
[]
[null,null,null,"% APROBADOS ",null,null,null,"% REPOBADOS "]
[]
[]
[null,null,{"$f":"CARATULA!G22","v":0},null,null,null,null,null,{"$f":"CARATULA!G24","v":0}]

{"sheet":"CEN. POR AREA","index":14,"n_rows":60,"n_cols":69,"rows_kept":60,"cut":false,"hidden":false,"merged":[[4,3,4,15],[6,3,6,15],[5,3,5,14],[1,1,1,68],[11,68,12,68],[11,51,11,66],[12,1,12,2],[7,3,7,15],[9,3,9,15],[8,3,8,15],[3,3,3,15],[59,8,59,16],[59,24,59,32],[59,40,59,48],[59,56,59,64],[11,1,11,2],[11,3,11,18],[11,19,11,34],[11,35,11,50]]}
[]
[null,"CENTRALIZADOR DE NOTAS POR ÁREAS Y BIMESTRES "]
[]
[null,null,"UNIDAD EDUCATIVA ",{"$f":"CARATULA!G20","v":0}]
[null,null,"NIVEL ",{"$f":"CARATULA!G26","v":0}]
[null,null,"AÑO DE ESCOLARIDAD ",{"$f":"CARATULA!G28","v":0}]
[null,null,"DIRECTOR(A)",{"$f":"CARATULA!G22","v":0}]
[null,null,"MAESTRO(A)",{"$f":"CARATULA!G24","v":0}]
[null,null,"CAMPO ",{"$f":"CARATULA!G30","v":0}]
[null,null,"ÁREA",{"$f":"CARATULA!G32","v":0}]
[]
[null,"ÁREAS",null,"1⁰ BIMESTRE ",null,null,null,null,null,null,null,null,null,null,null,null,null,null,null,"2⁰ BIMESTRE ",null,null,null,null,null,null,null,null,null,null,null,null,null,null,null,"3⁰ BIMESTRE ",null,null,null,null,null,null,null,null,null,null,null,null,null,null,null,"4⁰ BIMESTRE ",null,null,null,null,null,null,null,null,null,null,null,null,null,null,null,null,"TOTAL ÁREAS REPROBADAS  "]
[null,"      NOBRE ",null,"COMUNICACIÓN Y LENGUAJE ","LENGUA EXTRANJERA ","CIENCIAS SOCIALES ","EDUCACIÓN FÍSICA Y DEPORTES","EDCACIÓN MUSICAL ","ARTES PLASTICAS Y VISUALES","MATEMÁTICA ","BIOLOGÍA - GEOGRAFÍA","FÍSICA","QUÍMICA ","FÍSICA - QUÍMICA ","FILOSOFÍA - SICOLOGÍA ","VALORES Y ESPIRITUALIDAD ","TEC. TECNOLOGÍA GENERAL/ESPECIALIZADA","PROMEDIO BIMESTRAL","ÁREAS REPROBADAS POR ESTUDIANTE ","COMUNICACIÓN Y LENGUAJE ","LENGUA EXTRANJERA ","CIENCIAS SOCIALES ","EDUCACIÓN FÍSICA Y DEPORTES","EDCACIÓN MUSICAL ","ARTES PLASTICAS Y VISUALES","MATEMÁTICA ","BIOLOGÍA - GEOGRAFÍA","FÍSICA ","QUÍMICA ","FÍSICA - QUÍMICA ","FILOSOFÍA - SICOLOGÍA ","VALORES Y ESPIRITUALIDAD ","TEC. TECNOLOGÍA GENERAL/ESPECIALIZADA","PROMEDIO BIMESTRAL","ÁREAS REPROBADAS POR ESTUDIANTE ","COMUNICACIÓN Y LENGUAJE ","LENGUA EXTRANJERA ","CIENCIAS SOCIALES ","EDUCACIÓN FÍSICA Y DEPORTES","EDCACIÓN MUSICAL ","ARTES PLASTICAS Y VISUALES","MATEMÁTICA ","BIOLOGÍA - GEOGRAFÍA","FÍSICA ","QUÍMICA ","FÍSICA - QUÍMICA ","FILOSOFÍA - SICOLOGÍA ","VALORES Y ESPIRITUALIDAD ","TEC. TECNOLOGÍA GENERAL/ESPECIALIZADA","PROMEDIO BIMESTRAL","ÁREAS REPROBADAS POR ESTUDIANTE ","COMUNICACIÓN Y LENGUAJE ","LENGUA EXTRANJERA ","CIENCIAS SOCIALES ","EDUCACIÓN FÍSICA Y DEPORTES","EDCACIÓN MUSICAL ","ARTES PLASTICAS Y VISUALES","MATEMÁTICA ","BIOLOGÍA - GEOGRAFÍA","FÍSICA","QUÍMICA ","FÍSICA - QUÍMICA ","FILOSOFÍA - SICOLOGÍA ","VALORES Y ESPIRITUALIDAD ","TEC. TECNOLOGÍA GENERAL/ESPECIALIZADA","PROMEDIO BIMESTRAL","ÁREAS REPROBADAS POR ESTUDIANTE ","PROMEDIO FINAL "]
["A1",1,{"$f":"'C. FILIACION'!C14:D14","v":0},null,null,null,null,null,null,null,null,null,null,null,null,null,null,{"$f":"IFERROR((SUM(D14,E14,F14,G14,H14,I14,J14,K14,N14,O14,P14,Q14)/(COUNT(D14,E14,F14,G14,H14,I14,J14,K14,N14,O14,P14,Q14))),0)","v":0},{"$f":"IF((COUNTIF(D14:Q14,\"<51\"))=0,\"\",COUNTIF(D14:Q14,\"<51\"))","v":""},null,null,null,null,null,null,null,null,null,null,null,null,null,null,{"$f":"IFERROR((SUM(T14,U14,V14,W14,X14,Y14,Z14,AA14,AD14,AE14,AF14,AG14)/(COUNT(T14,U14,V14,W14,X14,Y14,Z14,AA14,AD14,AE14,AF14,AG14))),0)","v":0},{"$f":"IF((COUNTIF(T14:AG14,\"<51\"))=0,\"\",COUNTIF(T14:AG14,\"<51\"))","v":""},null,null,null,null,null,null,null,null,null,null,null,null,null,null,{"$f":"IFERROR((SUM(AJ14,AK14,AL14,AM14,AN14,AO14,AP14,AQ14,AT14,AU14,AV14,AW14)/(COUNT(AJ14,AK14,AL14,AM14,AN14,AO14,AP14,AQ14,AT14,AU14,AV14,AW14))),0)","v":0},{"$f":"IF((COUNTIF(AJ14:AW14,\"<51\"))=0,\"\",COUNTIF(AJ14:AW14,\"<51\"))","v":""},null,null,null,null,null,null,null,null,null,null,null,null,null,null,{"$f":"IFERROR((SUM(AZ14,BA14,BB14,BC14,BD14,BE14,BF14,BG14,BJ14,BK14,BL14,BM14)/(COUNT(AZ14,BA14,BB14,BC14,BD14,BE14,BF14,BG14,BJ14,BK14,BL14,BM14))),0)","v":0},{"$f":"IF((COUNTIF(AZ14:BM14,\"<51\"))=0,\"\",COUNTIF(AZ14:BM14,\"<51\"))","v":""},{"$f":"(R14+AH14+AX14+BN14)/4","v":0},{"$f":"SUM(S14,AI14,AY14,BO14)","v":0}]
["A2",2,{"$f":"'C. FILIACION'!C15:D15","v":0},null,null,null,null,null,null,null,null,null,null,null,null,null,null,{"$f":"IFERROR((SUM(D15,E15,F15,G15,H15,I15,J15,K15,N15,O15,P15,Q15)/(COUNT(D15,E15,F15,G15,H15,I15,J15,K15,N15,O15,P15,Q15))),0)","v":0},"",null,null,null,null,null,null,null,null,null,null,null,null,null,null,{"$f":"IFERROR((SUM(T15,U15,V15,W15,X15,Y15,Z15,AA15,AD15,AE15,AF15,AG15)/(COUNT(T15,U15,V15,W15,X15,Y15,Z15,AA15,AD15,AE15,AF15,AG15))),0)","v":0},"",null,null,null,null,null,null,null,null,null,null,null,null,null,null,{"$f":"IFERROR((SUM(AJ15,AK15,AL15,AM15,AN15,AO15,AP15,AQ15,AT15,AU15,AV15,AW15)/(COUNT(AJ15,AK15,AL15,AM15,AN15,AO15,AP15,AQ15,AT15,AU15,AV15,AW15))),0)","v":0},"",null,null,null,null,null,null,null,null,null,null,null,null,null,null,{"$f":"IFERROR((SUM(AZ15,BA15,BB15,BC15,BD15,BE15,BF15,BG15,BJ15,BK15,BL15,BM15)/(COUNT(AZ15,BA15,BB15,BC15,BD15,BE15,BF15,BG15,BJ15,BK15,BL15,BM15))),0)","v":0},"",{"$f":"(R15+AH15+AX15+BN15)/4","v":0},0]
["A3",3,{"$f":"'C. FILIACION'!C16:D16","v":0},null,null,null,null,null,null,null,null,null,null,null,null,null,null,0,"",null,null,null,null,null,null,null,null,null,null,null,null,null,null,0,"",null,null,null,null,null,null,null,null,null,null,null,null,null,null,0,"",null,null,null,null,null,null,null,null,null,null,null,null,null,null,0,"",0,0]
["A4",4,{"$f":"'C. FILIACION'!C17:D17","v":0},null,null,null,null,null,null,null,null,null,null,null,null,null,null,0,"",null,null,null,null,null,null,null,null,null,null,null,null,null,null,0,"",null,null,null,null,null,null,null,null,null,null,null,null,null,null,0,"",null,null,null,null,null,null,null,null,null,null,null,null,null,null,0,"",0,0]
["A5",5,{"$f":"'C. FILIACION'!C18:D18","v":0},null,null,null,null,null,null,null,null,null,null,null,null,null,null,0,"",null,null,null,null,null,null,null,null,null,null,null,null,null,null,0,"",null,null,null,null,null,null,null,null,null,null,null,null,null,null,0,"",null,null,null,null,null,null,null,null,null,null,null,null,null,null,0,"",0,0]
["A6",6,{"$f":"'C. FILIACION'!C19:D19","v":0},null,null,null,null,null,null,null,null,null,null,null,null,null,null,0,"",null,null,null,null,null,null,null,null,null,null,null,null,null,null,0,"",null,null,null,null,null,null,null,null,null,null,null,null,null,null,0,"",null,null,null,null,null,null,null,null,null,null,null,null,null,null,0,"",0,0]
["A7",7,{"$f":"'C. FILIACION'!C20:D20","v":0},null,null,null,null,null,null,null,null,null,null,null,null,null,null,0,"",null,null,null,null,null,null,null,null,null,null,null,null,null,null,0,"",null,null,null,null,null,null,null,null,null,null,null,null,null,null,0,"",null,null,null,null,null,null,null,null,null,null,null,null,null,null,0,"",0,0]
["A8",8,{"$f":"'C. FILIACION'!C21:D21","v":0},null,null,null,null,null,null,null,null,null,null,null,null,null,null,0,"",null,null,null,null,null,null,null,null,null,null,null,null,null,null,0,"",null,null,null,null,null,null,null,null,null,null,null,null,null,null,0,"",null,null,null,null,null,null,null,null,null,null,null,null,null,null,0,"",0,0]
["A9",9,{"$f":"'C. FILIACION'!C22:D22","v":0},null,null,null,null,null,null,null,null,null,null,null,null,null,null,0,"",null,null,null,null,null,null,null,null,null,null,null,null,null,null,0,"",null,null,null,null,null,null,null,null,null,null,null,null,null,null,0,"",null,null,null,null,null,null,null,null,null,null,null,null,null,null,0,"",0,0]
["A10",10,{"$f":"'C. FILIACION'!C23:D23","v":0},null,null,null,null,null,null,null,null,null,null,null,null,null,null,0,"",null,null,null,null,null,null,null,null,null,null,null,null,null,null,0,"",null,null,null,null,null,null,null,null,null,null,null,null,null,null,0,"",null,null,null,null,null,null,null,null,null,null,null,null,null,null,0,"",0,0]
["A11",11,{"$f":"'C. FILIACION'!C24:D24","v":0},null,null,null,null,null,null,null,null,null,null,null,null,null,null,0,"",null,null,null,null,null,null,null,null,null,null,null,null,null,null,0,"",null,null,null,null,null,null,null,null,null,null,null,null,null,null,0,"",null,null,null,null,null,null,null,null,null,null,null,null,null,null,0,"",0,0]
["A12",12,{"$f":"'C. FILIACION'!C25:D25","v":0},null,null,null,null,null,null,null,null,null,null,null,null,null,null,0,"",null,null,null,null,null,null,null,null,null,null,null,null,null,null,0,"",null,null,null,null,null,null,null,null,null,null,null,null,null,null,0,"",null,null,null,null,null,null,null,null,null,null,null,null,null,null,0,"",0,0]
["A13",13,{"$f":"'C. FILIACION'!C26:D26","v":0},null,null,null,null,null,null,null,null,null,null,null,null,null,null,0,"",null,null,null,null,null,null,null,null,null,null,null,null,null,null,0,"",null,null,null,null,null,null,null,null,null,null,null,null,null,null,0,"",null,null,null,null,null,null,null,null,null,null,null,null,null,null,0,"",0,0]
["A14",14,{"$f":"'C. FILIACION'!C27:D27","v":0},null,null,null,null,null,null,null,null,null,null,null,null,null,null,0,"",null,null,null,null,null,null,null,null,null,null,null,null,null,null,0,"",null,null,null,null,null,null,null,null,null,null,null,null,null,null,0,"",null,null,null,null,null,null,null,null,null,null,null,null,null,null,0,"",0,0]
["A15",15,{"$f":"'C. FILIACION'!C28:D28","v":0},null,null,null,null,null,null,null,null,null,null,null,null,null,null,0,"",null,null,null,null,null,null,null,null,null,null,null,null,null,null,0,"",null,null,null,null,null,null,null,null,null,null,null,null,null,null,0,"",null,null,null,null,null,null,null,null,null,null,null,null,null,null,0,"",0,0]
["A16",16,{"$f":"'C. FILIACION'!C29:D29","v":0},null,null,null,null,null,null,null,null,null,null,null,null,null,null,0,"",null,null,null,null,null,null,null,null,null,null,null,null,null,null,0,"",null,null,null,null,null,null,null,null,null,null,null,null,null,null,0,"",null,null,null,null,null,null,null,null,null,null,null,null,null,null,0,"",0,0]
["A17",17,{"$f":"'C. FILIACION'!C30:D30","v":0},null,null,null,null,null,null,null,null,null,null,null,null,null,null,0,"",null,null,null,null,null,null,null,null,null,null,null,null,null,null,0,"",null,null,null,null,null,null,null,null,null,null,null,null,null,null,0,"",null,null,null,null,null,null,null,null,null,null,null,null,null,null,0,"",0,0]
["A18",18,{"$f":"'C. FILIACION'!C31:D31","v":0},null,null,null,null,null,null,null,null,null,null,null,null,null,null,0,"",null,null,null,null,null,null,null,null,null,null,null,null,null,null,0,"",null,null,null,null,null,null,null,null,null,null,null,null,null,null,0,"",null,null,null,null,null,null,null,null,null,null,null,null,null,null,0,"",0,0]
["A19",19,{"$f":"'C. FILIACION'!C32:D32","v":0},null,null,null,null,null,null,null,null,null,null,null,null,null,null,0,"",null,null,null,null,null,null,null,null,null,null,null,null,null,null,0,"",null,null,null,null,null,null,null,null,null,null,null,null,null,null,0,"",null,null,null,null,null,null,null,null,null,null,null,null,null,null,0,"",0,0]
["A20",20,{"$f":"'C. FILIACION'!C33:D33","v":0},null,null,null,null,null,null,null,null,null,null,null,null,null,null,0,"",null,null,null,null,null,null,null,null,null,null,null,null,null,null,0,"",null,null,null,null,null,null,null,null,null,null,null,null,null,null,0,"",null,null,null,null,null,null,null,null,null,null,null,null,null,null,0,"",0,0]
["A21",21,{"$f":"'C. FILIACION'!C34:D34","v":0},null,null,null,null,null,null,null,null,null,null,null,null,null,null,0,"",null,null,null,null,null,null,null,null,null,null,null,null,null,null,0,"",null,null,null,null,null,null,null,null,null,null,null,null,null,null,0,"",null,null,null,null,null,null,null,null,null,null,null,null,null,null,0,"",0,0]
["A22",22,{"$f":"'C. FILIACION'!C35:D35","v":0},null,null,null,null,null,null,null,null,null,null,null,null,null,null,0,"",null,null,null,null,null,null,null,null,null,null,null,null,null,null,0,"",null,null,null,null,null,null,null,null,null,null,null,null,null,null,0,"",null,null,null,null,null,null,null,null,null,null,null,null,null,null,0,"",0,0]
["A23",23,{"$f":"'C. FILIACION'!C36:D36","v":0},null,null,null,null,null,null,null,null,null,null,null,null,null,null,0,"",null,null,null,null,null,null,null,null,null,null,null,null,null,null,0,"",null,null,null,null,null,null,null,null,null,null,null,null,null,null,0,"",null,null,null,null,null,null,null,null,null,null,null,null,null,null,0,"",0,0]
["A24",24,{"$f":"'C. FILIACION'!C37:D37","v":0},null,null,null,null,null,null,null,null,null,null,null,null,null,null,0,"",null,null,null,null,null,null,null,null,null,null,null,null,null,null,0,"",null,null,null,null,null,null,null,null,null,null,null,null,null,null,0,"",null,null,null,null,null,null,null,null,null,null,null,null,null,null,0,"",0,0]
["A25",25,{"$f":"'C. FILIACION'!C38:D38","v":0},null,null,null,null,null,null,null,null,null,null,null,null,null,null,0,"",null,null,null,null,null,null,null,null,null,null,null,null,null,null,0,"",null,null,null,null,null,null,null,null,null,null,null,null,null,null,0,"",null,null,null,null,null,null,null,null,null,null,null,null,null,null,0,"",0,0]
["A26",26,{"$f":"'C. FILIACION'!C39:D39","v":0},null,null,null,null,null,null,null,null,null,null,null,null,null,null,0,"",null,null,null,null,null,null,null,null,null,null,null,null,null,null,0,"",null,null,null,null,null,null,null,null,null,null,null,null,null,null,0,"",null,null,null,null,null,null,null,null,null,null,null,null,null,null,0,"",0,0]
["A27",27,{"$f":"'C. FILIACION'!C40:D40","v":0},null,null,null,null,null,null,null,null,null,null,null,null,null,null,0,"",null,null,null,null,null,null,null,null,null,null,null,null,null,null,0,"",null,null,null,null,null,null,null,null,null,null,null,null,null,null,0,"",null,null,null,null,null,null,null,null,null,null,null,null,null,null,0,"",0,0]
["A28",28,{"$f":"'C. FILIACION'!C41:D41","v":0},null,null,null,null,null,null,null,null,null,null,null,null,null,null,0,"",null,null,null,null,null,null,null,null,null,null,null,null,null,null,0,"",null,null,null,null,null,null,null,null,null,null,null,null,null,null,0,"",null,null,null,null,null,null,null,null,null,null,null,null,null,null,0,"",0,0]
["A29",29,{"$f":"'C. FILIACION'!C42:D42","v":0},null,null,null,null,null,null,null,null,null,null,null,null,null,null,0,"",null,null,null,null,null,null,null,null,null,null,null,null,null,null,0,"",null,null,null,null,null,null,null,null,null,null,null,null,null,null,0,"",null,null,null,null,null,null,null,null,null,null,null,null,null,null,0,"",0,0]
["A30",30,{"$f":"'C. FILIACION'!C43:D43","v":0},null,null,null,null,null,null,null,null,null,null,null,null,null,null,0,"",null,null,null,null,null,null,null,null,null,null,null,null,null,null,0,"",null,null,null,null,null,null,null,null,null,null,null,null,null,null,0,"",null,null,null,null,null,null,null,null,null,null,null,null,null,null,0,"",0,0]
["A31",31,{"$f":"'C. FILIACION'!C44:D44","v":0},null,null,null,null,null,null,null,null,null,null,null,null,null,null,0,"",null,null,null,null,null,null,null,null,null,null,null,null,null,null,0,"",null,null,null,null,null,null,null,null,null,null,null,null,null,null,0,"",null,null,null,null,null,null,null,null,null,null,null,null,null,null,0,"",0,0]
["A32",32,{"$f":"'C. FILIACION'!C45:D45","v":0},null,null,null,null,null,null,null,null,null,null,null,null,null,null,0,"",null,null,null,null,null,null,null,null,null,null,null,null,null,null,0,"",null,null,null,null,null,null,null,null,null,null,null,null,null,null,0,"",null,null,null,null,null,null,null,null,null,null,null,null,null,null,0,"",0,0]
["A33",33,{"$f":"'C. FILIACION'!C46:D46","v":0},null,null,null,null,null,null,null,null,null,null,null,null,null,null,0,"",null,null,null,null,null,null,null,null,null,null,null,null,null,null,0,"",null,null,null,null,null,null,null,null,null,null,null,null,null,null,0,"",null,null,null,null,null,null,null,null,null,null,null,null,null,null,0,"",0,0]
["A34",34,{"$f":"'C. FILIACION'!C47:D47","v":0},null,null,null,null,null,null,null,null,null,null,null,null,null,null,0,"",null,null,null,null,null,null,null,null,null,null,null,null,null,null,0,"",null,null,null,null,null,null,null,null,null,null,null,null,null,null,0,"",null,null,null,null,null,null,null,null,null,null,null,null,null,null,0,"",0,0]
["A35",35,{"$f":"'C. FILIACION'!C48:D48","v":0},null,null,null,null,null,null,null,null,null,null,null,null,null,null,0,"",null,null,null,null,null,null,null,null,null,null,null,null,null,null,0,"",null,null,null,null,null,null,null,null,null,null,null,null,null,null,0,"",null,null,null,null,null,null,null,null,null,null,null,null,null,null,0,"",0,0]
["A36",36,{"$f":"'C. FILIACION'!C49:D49","v":0},null,null,null,null,null,null,null,null,null,null,null,null,null,null,0,"",null,null,null,null,null,null,null,null,null,null,null,null,null,null,0,"",null,null,null,null,null,null,null,null,null,null,null,null,null,null,0,"",null,null,null,null,null,null,null,null,null,null,null,null,null,null,0,"",0,0]
["A37",37,{"$f":"'C. FILIACION'!C50:D50","v":0},null,null,null,null,null,null,null,null,null,null,null,null,null,null,0,"",null,null,null,null,null,null,null,null,null,null,null,null,null,null,0,"",null,null,null,null,null,null,null,null,null,null,null,null,null,null,0,"",null,null,null,null,null,null,null,null,null,null,null,null,null,null,0,"",0,0]
["A38",38,{"$f":"'C. FILIACION'!C51:D51","v":0},null,null,null,null,null,null,null,null,null,null,null,null,null,null,0,"",null,null,null,null,null,null,null,null,null,null,null,null,null,null,0,"",null,null,null,null,null,null,null,null,null,null,null,null,null,null,0,"",null,null,null,null,null,null,null,null,null,null,null,null,null,null,0,"",0,0]
["A39",39,{"$f":"'C. FILIACION'!C52:D52","v":0},null,null,null,null,null,null,null,null,null,null,null,null,null,null,0,"",null,null,null,null,null,null,null,null,null,null,null,null,null,null,0,"",null,null,null,null,null,null,null,null,null,null,null,null,null,null,0,"",null,null,null,null,null,null,null,null,null,null,null,null,null,null,0,"",0,0]
["A40",40,{"$f":"'C. FILIACION'!C53:D53","v":0},null,null,null,null,null,null,null,null,null,null,null,null,null,null,0,"",null,null,null,null,null,null,null,null,null,null,null,null,null,null,0,"",null,null,null,null,null,null,null,null,null,null,null,null,null,null,0,"",null,null,null,null,null,null,null,null,null,null,null,null,null,null,0,"",0,0]
["A41",41,{"$f":"'C. FILIACION'!C54:D54","v":0},null,null,null,null,null,null,null,null,null,null,null,null,null,null,0,"",null,null,null,null,null,null,null,null,null,null,null,null,null,null,0,"",null,null,null,null,null,null,null,null,null,null,null,null,null,null,0,"",null,null,null,null,null,null,null,null,null,null,null,null,null,null,0,"",0,0]
["A42",42,{"$f":"'C. FILIACION'!C55:D55","v":0},null,null,null,null,null,null,null,null,null,null,null,null,null,null,0,"",null,null,null,null,null,null,null,null,null,null,null,null,null,null,0,"",null,null,null,null,null,null,null,null,null,null,null,null,null,null,0,"",null,null,null,null,null,null,null,null,null,null,null,null,null,null,0,"",0,0]
["A43",43,{"$f":"'C. FILIACION'!C56:D56","v":0},null,null,null,null,null,null,null,null,null,null,null,null,null,null,0,"",null,null,null,null,null,null,null,null,null,null,null,null,null,null,0,"",null,null,null,null,null,null,null,null,null,null,null,null,null,null,0,"",null,null,null,null,null,null,null,null,null,null,null,null,null,null,0,"",0,0]
["A44",44,{"$f":"'C. FILIACION'!C57:D57","v":0},null,null,null,null,null,null,null,null,null,null,null,null,null,null,0,"",null,null,null,null,null,null,null,null,null,null,null,null,null,null,0,"",null,null,null,null,null,null,null,null,null,null,null,null,null,null,0,"",null,null,null,null,null,null,null,null,null,null,null,null,null,null,0,"",0,0]
["A45",45,{"$f":"'C. FILIACION'!C58:D58","v":0},null,null,null,null,null,null,null,null,null,null,null,null,null,null,0,"",null,null,null,null,null,null,null,null,null,null,null,null,null,null,0,"",null,null,null,null,null,null,null,null,null,null,null,null,null,null,0,"",null,null,null,null,null,null,null,null,null,null,null,null,null,null,0,"",0,0]
[]
[null,null,null,null,null,null,null,null,"TOTAL REPROBADOS POR BIMESTRE",null,null,null,null,null,null,null,null,null,{"$f":"COUNT(S14:S58)","v":0},null,null,null,null,null,"TOTAL REPROBADOS POR BIMESTRE",null,null,null,null,null,null,null,null,null,{"$f":"COUNT(AI14:AI58)","v":0},null,null,null,null,null,"TOTAL REPROBADOS POR BIMESTRE",null,null,null,null,null,null,null,null,null,{"$f":"COUNT(AY14:AY58)","v":0},null,null,null,null,null,"TOTAL REPROBADOS POR BIMESTRE",null,null,null,null,null,null,null,null,null,{"$f":"COUNT(BO14:BO58)","v":0}]

{"sheet":"BOLETINES ","index":15,"n_rows":38,"n_cols":8,"rows_kept":38,"cut":false,"hidden":false,"merged":[[13,4,13,5],[13,6,13,8],[36,5,36,7],[8,6,8,8],[9,6,9,8],[10,6,10,8],[11,6,11,8],[12,6,12,8],[18,2,19,2],[18,3,18,7],[37,5,37,7],[3,1,3,9],[17,2,17,3],[17,4,17,7],[6,2,15,2],[6,4,6,5],[7,4,7,5],[8,4,8,5],[9,4,9,5],[10,4,10,5],[11,4,11,5],[12,4,12,5],[6,6,6,8],[7,6,7,8]]}
[]
[]
[]
[null,"DATOS DEL ESTUDIANTE "]
[null,null,"CÓDIGO DE ESTUDIANTE ","A1"]
[]
[null,null,{"$f":"INDEX('CODIGO Y FOTOGRAFIA '!B3:E47,MATCH('BOLETINES '!D5,'CODIGO Y FOTOGRAFIA '!B3:B47,0),4)","v":"IMAG1"},null,"NOMBRE ",null,{"$f":"INDEX('C. FILIACION'!A14:Q58,MATCH('BOLETINES '!D5,'C. FILIACION'!A14:A58,0),3)","v":0}]
[null,null,null,null,"GENERO",null,{"$f":"INDEX('C. FILIACION'!A14:Q58,MATCH('BOLETINES '!D5,'C. FILIACION'!A14:A58,0),5)","v":0}]
[null,null,null,null,"EDAD",null,{"$f":"INDEX('C. FILIACION'!A14:Q58,MATCH('BOLETINES '!D5,'C. FILIACION'!A14:A58,0),9)","v":{"$error":"#NUM!"}}]
[null,null,null,null,"RUDE ",null,{"$f":"INDEX('C. FILIACION'!A14:Q58,MATCH('BOLETINES '!D5,'C. FILIACION'!A14:A58,0),11)","v":0}]
[null,null,null,null,"C.I.",null,{"$f":"INDEX('C. FILIACION'!A14:Q58,MATCH('BOLETINES '!D5,'C. FILIACION'!A14:A58,0),12)","v":0}]
[null,null,null,null,"DIRECCIÓN ACTUAL",null,{"$f":"INDEX('C. FILIACION'!A14:Q58,MATCH('BOLETINES '!D5,'C. FILIACION'!A14:A58,0),14)","v":0}]
[null,null,null,null,"NOMBRE DE TUTOR",null,{"$f":"INDEX('C. FILIACION'!A14:Q58,MATCH('BOLETINES '!D5,'C. FILIACION'!A14:A58,0),15)","v":0}]
[null,null,null,null,"TELEFONO ",null,{"$f":"INDEX('C. FILIACION'!A14:Q58,MATCH('BOLETINES '!D5,'C. FILIACION'!A14:A58,0),17)","v":0}]
[]
[]
[]
[null,null,{"$f":"G7","v":0},null,{"$f":"CARATULA!G28","v":0}]
[null,null,"ÁREAS CURRICULARES ","VALORACIÓN CUANTITATIVA "]
[null,null,null,"1⁰ BIMESTRE","2⁰ BIMESTRE","3⁰ BIMESTRE","4⁰ BIMESTRE","PRO. ANUAL"]
[null,null,"COMUNICACIÓN Y LEGUAJES: LENGUA CASTELLANA Y ORIGINARIA  ",{"$f":"INDEX('CEN. POR AREA'!A14:Q58,MATCH('BOLETINES '!D5,'CEN. POR AREA'!A14:A58,0),4)","v":0},{"$f":"INDEX('CEN. POR AREA'!A14:AG58,MATCH('BOLETINES '!D5,'CEN. POR AREA'!A14:A58,0),19)","v":""},{"$f":"INDEX('CEN. POR AREA'!A14:AW58,MATCH('BOLETINES '!D5,'CEN. POR AREA'!A14:A58,0),34)","v":0},{"$f":"INDEX('CEN. POR AREA'!A14:BM58,MATCH('BOLETINES '!D5,'CEN. POR AREA'!A14:A58,0),49)","v":0},{"$f":"IFERROR(((SUM(D21:G21)/COUNT(D21:G21))),0)","v":0}]
[null,null,"LENGUA EXTRANJERA",{"$f":"INDEX('CEN. POR AREA'!A14:Q58,MATCH('BOLETINES '!D5,'CEN. POR AREA'!A14:A58,0),5)","v":0},{"$f":"INDEX('CEN. POR AREA'!A14:AG58,MATCH('BOLETINES '!D5,'CEN. POR AREA'!A14:A58,0),20)","v":0},{"$f":"INDEX('CEN. POR AREA'!A14:AW58,MATCH('BOLETINES '!D5,'CEN. POR AREA'!A14:A58,0),35)","v":""},{"$f":"INDEX('CEN. POR AREA'!A14:BM58,MATCH('BOLETINES '!D5,'CEN. POR AREA'!A14:A58,0),50)","v":0},{"$f":"IFERROR(((SUM(D22:G22)/COUNT(D22:G22))),0)","v":0}]
[null,null,"CIENCIAS SOCIALES ",{"$f":"INDEX('CEN. POR AREA'!A14:Q58,MATCH('BOLETINES '!D5,'CEN. POR AREA'!A14:A58,0),6)","v":0},{"$f":"INDEX('CEN. POR AREA'!A14:AG58,MATCH('BOLETINES '!D5,'CEN. POR AREA'!A14:A58,0),21)","v":0},{"$f":"INDEX('CEN. POR AREA'!A14:AW58,MATCH('BOLETINES '!D5,'CEN. POR AREA'!A14:A58,0),36)","v":0},{"$f":"INDEX('CEN. POR AREA'!A14:BM58,MATCH('BOLETINES '!D5,'CEN. POR AREA'!A14:A58,0),51)","v":""},0]
[null,null,"EDUCACIÓN FÍSICA Y DEPORTES ",{"$f":"INDEX('CEN. POR AREA'!A14:Q58,MATCH('BOLETINES '!D5,'CEN. POR AREA'!A14:A58,0),7)","v":0},{"$f":"INDEX('CEN. POR AREA'!A14:AG58,MATCH('BOLETINES '!D5,'CEN. POR AREA'!A14:A58,0),22)","v":0},{"$f":"INDEX('CEN. POR AREA'!A14:AW58,MATCH('BOLETINES '!D5,'CEN. POR AREA'!A14:A58,0),37)","v":0},{"$f":"INDEX('CEN. POR AREA'!A14:BM58,MATCH('BOLETINES '!D5,'CEN. POR AREA'!A14:A58,0),52)","v":0},0]
[null,null,"EDUCACIÓN MUSICAL",{"$f":"INDEX('CEN. POR AREA'!A14:Q58,MATCH('BOLETINES '!D5,'CEN. POR AREA'!A14:A58,0),8)","v":0},{"$f":"INDEX('CEN. POR AREA'!A14:AG58,MATCH('BOLETINES '!D5,'CEN. POR AREA'!A14:A58,0),23)","v":0},{"$f":"INDEX('CEN. POR AREA'!A14:AW58,MATCH('BOLETINES '!D5,'CEN. POR AREA'!A14:A58,0),38)","v":0},{"$f":"INDEX('CEN. POR AREA'!A14:BM58,MATCH('BOLETINES '!D5,'CEN. POR AREA'!A14:A58,0),53)","v":0},0]
[null,null,"ARTES PLÁSTICAS Y VISUALES ",{"$f":"INDEX('CEN. POR AREA'!A14:Q58,MATCH('BOLETINES '!D5,'CEN. POR AREA'!A14:A58,0),9)","v":0},{"$f":"INDEX('CEN. POR AREA'!A14:AG58,MATCH('BOLETINES '!D5,'CEN. POR AREA'!A14:A58,0),24)","v":0},{"$f":"INDEX('CEN. POR AREA'!A14:AW58,MATCH('BOLETINES '!D5,'CEN. POR AREA'!A14:A58,0),39)","v":0},{"$f":"INDEX('CEN. POR AREA'!A14:BM58,MATCH('BOLETINES '!D5,'CEN. POR AREA'!A14:A58,0),54)","v":0},0]
[null,null,"MATEMÁTICA",{"$f":"INDEX('CEN. POR AREA'!A14:Q58,MATCH('BOLETINES '!D5,'CEN. POR AREA'!A14:A58,0),10)","v":0},{"$f":"INDEX('CEN. POR AREA'!A14:AG58,MATCH('BOLETINES '!D5,'CEN. POR AREA'!A14:A58,0),25)","v":0},{"$f":"INDEX('CEN. POR AREA'!A14:AW58,MATCH('BOLETINES '!D5,'CEN. POR AREA'!A14:A58,0),40)","v":0},{"$f":"INDEX('CEN. POR AREA'!A14:BM58,MATCH('BOLETINES '!D5,'CEN. POR AREA'!A14:A58,0),55)","v":0},0]
[null,null,"CIENCIAS NATURALES: BIOLOGGÍA - GEOGRAFÍA",{"$f":"INDEX('CEN. POR AREA'!A14:Q58,MATCH('BOLETINES '!D5,'CEN. POR AREA'!A14:A58,0),11)","v":0},{"$f":"INDEX('CEN. POR AREA'!A14:AG58,MATCH('BOLETINES '!D5,'CEN. POR AREA'!A14:A58,0),26)","v":0},{"$f":"INDEX('CEN. POR AREA'!A14:AW58,MATCH('BOLETINES '!D5,'CEN. POR AREA'!A14:A58,0),41)","v":0},{"$f":"INDEX('CEN. POR AREA'!A14:BM58,MATCH('BOLETINES '!D5,'CEN. POR AREA'!A14:A58,0),56)","v":0},0]
[null,null,"CIENCIAS NATURALES FÍSICA - QUÍMICA ",{"$f":"INDEX('CEN. POR AREA'!A14:Q58,MATCH('BOLETINES '!D5,'CEN. POR AREA'!A14:A58,0),14)","v":0},{"$f":"INDEX('CEN. POR AREA'!A14:AG58,MATCH('BOLETINES '!D5,'CEN. POR AREA'!A14:A58,0),29)","v":0},{"$f":"INDEX('CEN. POR AREA'!A14:AW58,MATCH('BOLETINES '!D5,'CEN. POR AREA'!A14:A58,0),44)","v":0},{"$f":"INDEX('CEN. POR AREA'!A14:BM58,MATCH('BOLETINES '!D5,'CEN. POR AREA'!A14:A58,0),59)","v":0},{"$f":"IFERROR(((SUM(D29:G29)/COUNT(D29:G29))),0)","v":0}]
[null,null,"___    CIENCIAS NATURALES: FÍSICA ",{"$f":"INDEX('CEN. POR AREA'!A14:Q58,MATCH('BOLETINES '!D5,'CEN. POR AREA'!A14:A58,0),12)","v":0},{"$f":"INDEX('CEN. POR AREA'!A14:AG58,MATCH('BOLETINES '!D5,'CEN. POR AREA'!A14:A58,0),27)","v":0},{"$f":"INDEX('CEN. POR AREA'!A14:AW58,MATCH('BOLETINES '!D5,'CEN. POR AREA'!A14:A58,0),42)","v":0},{"$f":"INDEX('CEN. POR AREA'!A14:BM58,MATCH('BOLETINES '!D5,'CEN. POR AREA'!A14:A58,0),57)","v":0},0]
[null,null," ___ CIENCIAS NATURALES:QUÍMICA ",{"$f":"INDEX('CEN. POR AREA'!A14:Q58,MATCH('BOLETINES '!D5,'CEN. POR AREA'!A14:A58,0),13)","v":0},{"$f":"INDEX('CEN. POR AREA'!A14:AG58,MATCH('BOLETINES '!D5,'CEN. POR AREA'!A14:A58,0),28)","v":0},{"$f":"INDEX('CEN. POR AREA'!A14:AW58,MATCH('BOLETINES '!D5,'CEN. POR AREA'!A14:A58,0),43)","v":0},{"$f":"INDEX('CEN. POR AREA'!A14:BM58,MATCH('BOLETINES '!D5,'CEN. POR AREA'!A14:A58,0),58)","v":0},0]
[null,null,"COSMOVISIONES, FILOSOFÍA Y SICOLOGÍA ",{"$f":"INDEX('CEN. POR AREA'!A14:Q58,MATCH('BOLETINES '!D5,'CEN. POR AREA'!A14:A58,0),15)","v":0},{"$f":"INDEX('CEN. POR AREA'!A14:AG58,MATCH('BOLETINES '!D5,'CEN. POR AREA'!A14:A58,0),30)","v":0},{"$f":"INDEX('CEN. POR AREA'!A14:AW58,MATCH('BOLETINES '!D5,'CEN. POR AREA'!A14:A58,0),45)","v":0},{"$f":"INDEX('CEN. POR AREA'!A14:BM58,MATCH('BOLETINES '!D5,'CEN. POR AREA'!A14:A58,0),60)","v":0},0]
[null,null,"VALORES, ESPIRITUALIDAD Y RELIGIÓN ",{"$f":"INDEX('CEN. POR AREA'!A14:Q58,MATCH('BOLETINES '!D5,'CEN. POR AREA'!A14:A58,0),16)","v":0},{"$f":"INDEX('CEN. POR AREA'!A14:AG58,MATCH('BOLETINES '!D5,'CEN. POR AREA'!A14:A58,0),31)","v":0},{"$f":"INDEX('CEN. POR AREA'!A14:AW58,MATCH('BOLETINES '!D5,'CEN. POR AREA'!A14:A58,0),46)","v":0},{"$f":"INDEX('CEN. POR AREA'!A14:BM58,MATCH('BOLETINES '!D5,'CEN. POR AREA'!A14:A58,0),61)","v":0},0]
[null,null,"TEC. TECNOLOGÍA GENERAL/ESPECIALIZADA ",{"$f":"INDEX('CEN. POR AREA'!A14:Q58,MATCH('BOLETINES '!D5,'CEN. POR AREA'!A14:A58,0),17)","v":0},{"$f":"INDEX('CEN. POR AREA'!A14:AG58,MATCH('BOLETINES '!D5,'CEN. POR AREA'!A14:A58,0),32)","v":0},{"$f":"INDEX('CEN. POR AREA'!A14:AW58,MATCH('BOLETINES '!D5,'CEN. POR AREA'!A14:A58,0),47)","v":0},{"$f":"INDEX('CEN. POR AREA'!A14:BM58,MATCH('BOLETINES '!D5,'CEN. POR AREA'!A14:A58,0),62)","v":0},0]
[]
[]
[]
[null,null,{"$f":"CARATULA!G22","v":0},null,null,{"$f":"CARATULA!G24","v":0}]